Workbook

Sheet Main
B10: 2023-01-27
B12: Sheet No. | C12: Template Name | D12: Summary
B13: 1 | C13: Future Intra | D13: For Intraday trading in F&O segment
B14: 2 | C14: Cash Intra | D14: For Intraday trading in cash market segment
B15: 3 | C15: Mid-cap Intra | D15: For Intraday trading in Mid-cap stocks
B16: 4 | C16: Bulk Deals | D16: Reveals Bulk Deals carried on NSE & BSE
B17: 5 | C17: Call Tracker
K27: `

Sheet Future Intra
M5: Back to Main Page
A6: FOR INTRA DAY TRADING | L6: =Main!B10 -> 2023-01-27
A9: Sr.no | B9: Sector | C9: Scrip | D9: Expiry Date | E9: CLOSE RATE | F9: Pivot Point | G9: Supports | J9: Resistances
E10: Point | F10: Point | G10: S1 | H10: S2 | I10: S3 | J10: R1 | K10: R2 | L10: R3 | M10: HIGH | N10: LOW | O10: OI | P10: % Change in OI
A11: 1 | B11: Index | C11: NIFTY | D11: 2023-02-23 | E11: 17985.90 | F11: 18044.98 | G11: 17874.97 | H11: 17764.03 | I11: 17594.02 | J11: 18155.92 | K11: 18325.93 | L11: 18436.87 | M11: 18215 | N11: 17934.05 | O11: 10419750 | P11: -24.10%
A12: 2 | B12: Index | C12: BANKNIFTY | D12: 2023-02-23 | E12: 41864.45 | F12: 42193.95 | G12: 41426.05 | H12: 40987.65 | I12: 40219.75 | J12: 42632.35 | K12: 43400.25 | L12: 43838.65 | M12: 42961.85 | N12: 41755.55 | O12: 2070800 | P12: -10.21%
A13: 3 | B13: Index | C13: FINNIFTY | D13: 2023-02-28 | E13: 18623.15 | F13: 18700.22 | G13: 18473.43 | H13: 18323.72 | I13: 18096.93 | J13: 18849.93 | K13: 19076.72 | L13: 19226.43 | M13: 18927 | N13: 18550.5 | O13: 6240 | P13: -79.45%
A14: 4 | B14: Index | C14: MIDCPNIFTY | D14: 2023-02-28 | E14: 7425.95 | F14: 2475.32 | G14: 4950.63 | H14: 2475.32 | I14: 4950.63 | J14: 4950.63 | K14: 2475.32 | L14: 4950.63 | M14: 0 | N14: 0 | O14: 0 | P14: -100.00%
A15: 5 | B15: Chemical | C15: AARTIIND | D15: 2023-02-23 | E15: 536.30 | F15: 542.10 | G15: 528.25 | H15: 520.20 | I15: 506.35 | J15: 550.15 | K15: 564.00 | L15: 572.05 | M15: 555.95 | N15: 534.05 | O15: 4015400 | P15: -8.82%
A16: 6 | B16: Capital_Goods | C16: ABB | D16: 2023-02-23 | E16: 2889.05 | F16: 2908.07 | G16: 2854.23 | H16: 2819.42 | I16: 2765.58 | J16: 2942.88 | K16: 2996.72 | L16: 3031.53 | M16: 2961.9 | N16: 2873.25 | O16: 1324000 | P16: -9.44%
A17: 7 | B17: Pharma | C17: ABBOTINDIA | D17: 2023-02-23 | E17: 21445.20 | F17: 21549.20 | G17: 21269.35 | H17: 21093.50 | I17: 20813.65 | J17: 21725.05 | K17: 22004.90 | L17: 22180.75 | M17: 21829.05 | N17: 21373.35 | O17: 40960 | P17: -12.18%
A18: 8 | B18: Others | C18: ABCAPITAL | D18: 2023-02-23 | E18: 140.40 | F18: 141.47 | G18: 138.68 | H18: 136.97 | I18: 134.18 | J18: 143.18 | K18: 145.97 | L18: 147.68 | M18: 144.25 | N18: 139.75 | O18: 32146200 | P18: -3.19%
A19: 9 | B19: Textile | C19: ABFRL | D19: 2023-02-23 | E19: 256.75 | F19: 257.68 | G19: 253.47 | H19: 250.18 | I19: 245.97 | J19: 260.97 | K19: 265.18 | L19: 268.47 | M19: 261.9 | N19: 254.4 | O19: 17682600 | P19: -6.81%
A20: 10 | B20: Cement | C20: ACC | D20: 2023-02-23 | E20: 2181.15 | F20: 2230.48 | G20: 2123.32 | H20: 2065.48 | I20: 1958.32 | J20: 2288.32 | K20: 2395.48 | L20: 2453.32 | M20: 2337.65 | N20: 2172.65 | O20: 2822000 | P20: -4.23%
A21: 11 | B21: Others | C21: ADANIENT | D21: 2023-02-23 | E21: 3406.00 | F21: 3390.35 | G21: 3340.70 | H21: 3275.40 | I21: 3225.75 | J21: 3455.65 | K21: 3505.30 | L21: 3570.60 | M21: 3440 | N21: 3325.05 | O21: 14174750 | P21: -14.08%
A22: 12 | B22: Others | C22: ADANIPORTS | D22: 2023-02-23 | E22: 717.25 | F22: 729.40 | G22: 696.35 | H22: 675.45 | I22: 642.40 | J22: 750.30 | K22: 783.35 | L22: 804.25 | M22: 762.45 | N22: 708.5 | O22: 66652500 | P22: -0.62%
A23: 13 | B23: Pharma | C23: ALKEM | D23: 2023-02-23 | E23: 2966.60 | F23: 2955.47 | G23: 2937.98 | H23: 2909.37 | I23: 2891.88 | J23: 2984.08 | K23: 3001.57 | L23: 3030.18 | M23: 2972.95 | N23: 2926.85 | O23: 228000 | P23: -23.80%
A24: 14 | B24: Cement | C24: AMBUJACEM | D24: 2023-02-23 | E24: 463.50 | F24: 473.25 | G24: 444.45 | H24: 425.40 | I24: 396.60 | J24: 492.30 | K24: 521.10 | L24: 540.15 | M24: 502.05 | N24: 454.2 | O24: 91683000 | P24: 7.15%
A25: 15 | B25: Others | C25: APOLLOHOSP | D25: 2023-02-23 | E25: 4240.75 | F25: 4263.97 | G25: 4192.08 | H25: 4143.42 | I25: 4071.53 | J25: 4312.63 | K25: 4384.52 | L25: 4433.18 | M25: 4335.85 | N25: 4215.3 | O25: 1650625 | P25: -8.83%
A26: 16 | B26: Automobile | C26: APOLLOTYRE | D26: 2023-02-23 | E26: 323.10 | F26: 322.23 | G26: 319.07 | H26: 315.03 | I26: 311.87 | J26: 326.27 | K26: 329.43 | L26: 333.47 | M26: 325.4 | N26: 318.2 | O26: 10790500 | P26: -10.92%
A27: 17 | B27: Automobile | C27: ASHOKLEY | D27: 2023-02-23 | E27: 146.95 | F27: 146.77 | G27: 144.93 | H27: 142.92 | I27: 141.08 | J27: 148.78 | K27: 150.62 | L27: 152.63 | M27: 148.6 | N27: 144.75 | O27: 76645000 | P27: -0.22%
A28: 18 | B28: FMCG | C28: ASIANPAINT | D28: 2023-02-23 | E28: 2786.30 | F28: 2796.43 | G28: 2767.87 | H28: 2749.43 | I28: 2720.87 | J28: 2814.87 | K28: 2843.43 | L28: 2861.87 | M28: 2825 | N28: 2778 | O28: 7587000 | P28: -4.16%
A29: 19 | B29: Others | C29: ASTRAL | D29: 2023-02-23 | E29: 1989.00 | F29: 1997.85 | G29: 1961.75 | H29: 1934.50 | I29: 1898.40 | J29: 2025.10 | K29: 2061.20 | L29: 2088.45 | M29: 2033.95 | N29: 1970.6 | O29: 1899425 | P29: -7.70%
A30: 20 | B30: Others | C30: ATUL | D30: 2023-02-23 | E30: 6954.05 | F30: 7016.58 | G30: 6864.47 | H30: 6774.88 | I30: 6622.77 | J30: 7106.17 | K30: 7258.28 | L30: 7347.87 | M30: 7168.7 | N30: 6927 | O30: 202800 | P30: -17.59%
A31: 21 | B31: Banking | C31: AUBANK | D31: 2023-02-23 | E31: 609.75 | F31: 614.43 | G31: 602.07 | H31: 594.38 | I31: 582.02 | J31: 622.12 | K31: 634.48 | L31: 642.17 | M31: 626.8 | N31: 606.75 | O31: 8677000 | P31: -12.54%
A32: 22 | B32: Pharma | C32: AUROPHARMA | D32: 2023-02-23 | E32: 420.10 | F32: 426.13 | G32: 412.22 | H32: 404.33 | I32: 390.42 | J32: 434.02 | K32: 447.93 | L32: 455.82 | M32: 440.05 | N32: 418.25 | O32: 15054000 | P32: -0.13%
A33: 23 | B33: Banking | C33: AXISBANK | D33: 2023-02-23 | E33: 895.40 | F33: 898.48 | G33: 885.02 | H33: 874.63 | I33: 861.17 | J33: 908.87 | K33: 922.33 | L33: 932.72 | M33: 911.95 | N33: 888.1 | O33: 43720800 | P33: -6.77%
A34: 24 | B34: Automobile | C34: BAJAJ-AUTO | D34: 2023-02-23 | E34: 3746.20 | F34: 3735.65 | G34: 3707.30 | H34: 3668.40 | I34: 3640.05 | J34: 3774.55 | K34: 3802.90 | L34: 3841.80 | M34: 3764 | N34: 3696.75 | O34: 1540500 | P34: 0.57%
A35: 25 | B35: Finance | C35: BAJAJFINSV | D35: 2023-02-23 | E35: 1320.55 | F35: 1325.58 | G35: 1312.32 | H35: 1304.08 | I35: 1290.82 | J35: 1333.82 | K35: 1347.08 | L35: 1355.32 | M35: 1338.85 | N35: 1317.35 | O35: 13225500 | P35: -7.69%
A36: 26 | B36: Finance | C36: BAJFINANCE | D36: 2023-02-23 | E36: 5823.15 | F36: 5837.02 | G36: 5788.88 | H36: 5754.62 | I36: 5706.48 | J36: 5871.28 | K36: 5919.42 | L36: 5953.68 | M36: 5885.15 | N36: 5802.75 | O36: 6427375 | P36: -8.63%
A37: 27 | B37: Automobile | C37: BALKRISIND | D37: 2023-02-23 | E37: 2244.10 | F37: 2235.63 | G37: 2217.32 | H37: 2190.53 | I37: 2172.22 | J37: 2262.42 | K37: 2280.73 | L37: 2307.52 | M37: 2253.95 | N37: 2208.85 | O37: 1668900 | P37: -7.93%
A38: 28 | B38: Others | C38: BALRAMCHIN | D38: 2023-02-23 | E38: 364.20 | F38: 367.25 | G38: 359.75 | H38: 355.30 | I38: 347.80 | J38: 371.70 | K38: 379.20 | L38: 383.65 | M38: 374.75 | N38: 362.8 | O38: 7835200 | P38: -3.37%
A39: 29 | B39: Banking | C39: BANDHANBNK | D39: 2023-02-23 | E39: 246.15 | F39: 246.98 | G39: 244.02 | H39: 241.88 | I39: 238.92 | J39: 249.12 | K39: 252.08 | L39: 254.22 | M39: 249.95 | N39: 244.85 | O39: 43241400 | P39: -4.77%
A40: 30 | B40: Banking | C40: BANKBARODA | D40: 2023-02-23 | E40: 170.70 | F40: 172.55 | G40: 165.60 | H40: 160.50 | I40: 153.55 | J40: 177.65 | K40: 184.60 | L40: 189.70 | M40: 179.5 | N40: 167.45 | O40: 88920000 | P40: -9.25%
A41: 31 | B41: FMCG | C41: BATAINDIA | D41: 2023-02-23 | E41: 1537.40 | F41: 1548.23 | G41: 1518.67 | H41: 1499.93 | I41: 1470.37 | J41: 1566.97 | K41: 1596.53 | L41: 1615.27 | M41: 1577.8 | N41: 1529.5 | O41: 2311375 | P41: -1.16%
A42: 32 | B42: Capital_Goods | C42: BEL | D42: 2023-02-23 | E42: 99.25 | F42: 99.70 | G42: 98.30 | H42: 97.35 | I42: 95.95 | J42: 100.65 | K42: 102.05 | L42: 103.00 | M42: 101.1 | N42: 98.75 | O42: 98746800 | P42: -7.98%
A43: 33 | B43: FMCG | C43: BERGEPAINT | D43: 2023-02-23 | E43: 549.85 | F43: 554.12 | G43: 542.23 | H43: 534.62 | I43: 522.73 | J43: 561.73 | K43: 573.62 | L43: 581.23 | M43: 566 | N43: 546.5 | O43: 6859600 | P43: -4.58%
A44: 34 | B44: Automobile | C44: BHARATFORG | D44: 2023-02-23 | E44: 865.95 | F44: 865.22 | G44: 852.88 | H44: 839.82 | I44: 827.48 | J44: 878.28 | K44: 890.62 | L44: 903.68 | M44: 877.55 | N44: 852.15 | O44: 6177000 | P44: -3.39%
A45: 35 | B45: Telecom | C45: BHARTIARTL | D45: 2023-02-23 | E45: 779.80 | F45: 778.13 | G45: 772.37 | H45: 764.93 | I45: 759.17 | J45: 785.57 | K45: 791.33 | L45: 798.77 | M45: 783.9 | N45: 770.7 | O45: 45325450 | P45: -5.34%
A46: 36 | B46: Capital_Goods | C46: BHEL | D46: 2023-02-23 | E46: 77.15 | F46: 77.62 | G46: 76.13 | H46: 75.12 | I46: 73.63 | J46: 78.63 | K46: 80.12 | L46: 81.13 | M46: 79.1 | N46: 76.6 | O46: 89334000 | P46: -5.00%
A47: 37 | B47: Pharma | C47: BIOCON | D47: 2023-02-23 | E47: 236.50 | F47: 240.10 | G47: 231.95 | H47: 227.40 | I47: 219.25 | J47: 244.65 | K47: 252.80 | L47: 257.35 | M47: 248.25 | N47: 235.55 | O47: 26815700 | P47: -11.12%
A48: 38 | B48: Automobile | C48: BOSCHLTD | D48: 2023-02-23 | E48: 16767.35 | F48: 16797.40 | G48: 16691.90 | H48: 16616.45 | I48: 16510.95 | J48: 16872.85 | K48: 16978.35 | L48: 17053.80 | M48: 16902.9 | N48: 16721.95 | O48: 145250 | P48: -4.97%
A49: 39 | B49: Oil_Gas | C49: BPCL | D49: 2023-02-23 | E49: 348.75 | F49: 349.53 | G49: 346.92 | H49: 345.08 | I49: 342.47 | J49: 351.37 | K49: 353.98 | L49: 355.82 | M49: 352.15 | N49: 347.7 | O49: 13687200 | P49: -15.06%
A50: 40 | B50: FMCG | C50: BRITANNIA | D50: 2023-02-23 | E50: 4434.40 | F50: 4437.40 | G50: 4394.75 | H50: 4355.10 | I50: 4312.45 | J50: 4477.05 | K50: 4519.70 | L50: 4559.35 | M50: 4480.05 | N50: 4397.75 | O50: 1374800 | P50: 5.49%
A51: 41 | B51: Technology | C51: BSOFT | D51: 2023-02-23 | E51: 297.85 | F51: 300.68 | G51: 293.87 | H51: 289.88 | I51: 283.07 | J51: 304.67 | K51: 311.48 | L51: 315.47 | M51: 307.5 | N51: 296.7 | O51: 8186000 | P51: -5.71%
A52: 42 | B52: Banking | C52: CANBK | D52: 2023-02-23 | E52: 307.45 | F52: 310.77 | G52: 299.73 | H52: 292.02 | I52: 280.98 | J52: 318.48 | K52: 329.52 | L52: 337.23 | M52: 321.8 | N52: 303.05 | O52: 40921200 | P52: -10.03%
A53: 43 | B53: Finance | C53: CANFINHOME | D53: 2023-02-23 | E53: 559.40 | F53: 559.50 | G53: 551.50 | H53: 543.60 | I53: 535.60 | J53: 567.40 | K53: 575.40 | L53: 583.30 | M53: 567.5 | N53: 551.6 | O53: 3455400 | P53: -14.00%
A54: 44 | B54: Others | C54: CHAMBLFERT | D54: 2023-02-23 | E54: 294.10 | F54: 294.92 | G54: 291.03 | H54: 287.97 | I54: 284.08 | J54: 297.98 | K54: 301.87 | L54: 304.93 | M54: 298.8 | N54: 291.85 | O54: 6228000 | P54: -12.28%
A55: 45 | B55: Finance | C55: CHOLAFIN | D55: 2023-02-23 | E55: 720.75 | F55: 721.37 | G55: 714.18 | H55: 707.62 | I55: 700.43 | J55: 727.93 | K55: 735.12 | L55: 741.68 | M55: 728.55 | N55: 714.8 | O55: 8245000 | P55: -7.42%
A56: 46 | B56: Pharma | C56: CIPLA | D56: 2023-02-23 | E56: 1038.00 | F56: 1043.57 | G56: 1017.08 | H56: 996.17 | I56: 969.68 | J56: 1064.48 | K56: 1090.97 | L56: 1111.88 | M56: 1070.05 | N56: 1022.65 | O56: 8030100 | P56: -9.69%
A57: 47 | B57: Others | C57: COALINDIA | D57: 2023-02-23 | E57: 227.35 | F57: 226.75 | G57: 225.05 | H57: 222.75 | I57: 221.05 | J57: 229.05 | K57: 230.75 | L57: 233.05 | M57: 228.45 | N57: 224.45 | O57: 21310800 | P57: -17.05%
A58: 48 | B58: Technology | C58: COFORGE | D58: 2023-02-23 | E58: 4270.35 | F58: 4286.80 | G58: 4223.55 | H58: 4176.75 | I58: 4113.50 | J58: 4333.60 | K58: 4396.85 | L58: 4443.65 | M58: 4350.05 | N58: 4240 | O58: 971400 | P58: -16.41%
A59: 49 | B59: FMCG | C59: COLPAL | D59: 2023-02-23 | E59: 1461.80 | F59: 1462.97 | G59: 1450.08 | H59: 1438.37 | I59: 1425.48 | J59: 1474.68 | K59: 1487.57 | L59: 1499.28 | M59: 1475.85 | N59: 1451.25 | O59: 2248050 | P59: -4.33%
A60: 50 | B60: Others | C60: CONCOR | D60: 2023-02-23 | E60: 650.50 | F60: 659.42 | G60: 638.78 | H60: 627.07 | I60: 606.43 | J60: 671.13 | K60: 691.77 | L60: 703.48 | M60: 680.05 | N60: 647.7 | O60: 8848000 | P60: -1.55%
A61: 51 | B61: Others | C61: COROMANDEL | D61: 2023-02-23 | E61: 854.90 | F61: 854.62 | G61: 843.28 | H61: 831.67 | I61: 820.33 | J61: 866.23 | K61: 877.57 | L61: 889.18 | M61: 865.95 | N61: 843 | O61: 2529100 | P61: -9.08%
A62: 52 | B62: Capital_Goods | C62: CROMPTON | D62: 2023-02-23 | E62: 330.05 | F62: 333.43 | G62: 324.17 | H62: 318.28 | I62: 309.02 | J62: 339.32 | K62: 348.58 | L62: 354.47 | M62: 342.7 | N62: 327.55 | O62: 4899000 | P62: -7.95%
A63: 53 | B63: Banking | C63: CUB | D63: 2023-02-23 | E63: 153.50 | F63: 153.90 | G63: 152.10 | H63: 150.70 | I63: 148.90 | J63: 155.30 | K63: 157.10 | L63: 158.50 | M63: 155.7 | N63: 152.5 | O63: 9875000 | P63: -20.11%
A64: 54 | B64: Capital_Goods | C64: CUMMINSIND | D64: 2023-02-23 | E64: 1388.65 | F64: 1395.63 | G64: 1372.97 | H64: 1357.28 | I64: 1334.62 | J64: 1411.32 | K64: 1433.98 | L64: 1449.67 | M64: 1418.3 | N64: 1379.95 | O64: 1374600 | P64: -9.94%
A65: 55 | B65: FMCG | C65: DABUR | D65: 2023-02-23 | E65: 566.90 | F65: 567.52 | G65: 564.08 | H65: 561.27 | I65: 557.83 | J65: 570.33 | K65: 573.77 | L65: 576.58 | M65: 570.95 | N65: 564.7 | O65: 9433750 | P65: -3.80%
A66: 56 | B66: Cement | C66: DALBHARAT | D66: 2023-02-23 | E66: 1737.40 | F66: 1739.30 | G66: 1713.60 | H66: 1689.80 | I66: 1664.10 | J66: 1763.10 | K66: 1788.80 | L66: 1812.60 | M66: 1765 | N66: 1715.5 | O66: 1214000 | P66: -13.16%
A67: 57 | B67: Chemical | C67: DEEPAKNTR | D67: 2023-02-23 | E67: 1834.25 | F67: 1846.20 | G67: 1816.05 | H67: 1797.85 | I67: 1767.70 | J67: 1864.40 | K67: 1894.55 | L67: 1912.75 | M67: 1876.35 | N67: 1828 | O67: 1387500 | P67: -17.16%
A68: 58 | B68: Others | C68: DELTACORP | D68: 2023-02-23 | E68: 201.60 | F68: 205.15 | G68: 196.95 | H68: 192.30 | I68: 184.10 | J68: 209.80 | K68: 218.00 | L68: 222.65 | M68: 213.35 | N68: 200.5 | O68: 14039200 | P68: -5.49%
A69: 59 | B69: Pharma | C69: DIVISLAB | D69: 2023-02-23 | E69: 3349.70 | F69: 3351.50 | G69: 3318.20 | H69: 3286.70 | I69: 3253.40 | J69: 3383.00 | K69: 3416.30 | L69: 3447.80 | M69: 3384.8 | N69: 3320 | O69: 2541900 | P69: -7.99%
A70: 60 | B70: Others | C70: DIXON | D70: 2023-02-23 | E70: 3381.95 | F70: 3417.00 | G70: 3336.00 | H70: 3290.05 | I70: 3209.05 | J70: 3462.95 | K70: 3543.95 | L70: 3589.90 | M70: 3498 | N70: 3371.05 | O70: 689375 | P70: -7.08%
A71: 61 | B71: Realty | C71: DLF | D71: 2023-02-23 | E71: 354.25 | F71: 356.83 | G71: 348.07 | H71: 341.88 | I71: 333.12 | J71: 363.02 | K71: 371.78 | L71: 377.97 | M71: 365.6 | N71: 350.65 | O71: 44934450 | P71: 1.73%
A72: 62 | B72: Pharma | C72: DRREDDY | D72: 2023-02-23 | E72: 4217.10 | F72: 4232.03 | G72: 4177.07 | H72: 4137.03 | I72: 4082.07 | J72: 4272.07 | K72: 4327.03 | L72: 4367.07 | M72: 4287 | N72: 4192 | O72: 2118875 | P72: -7.04%
A73: 63 | B73: Automobile | C73: EICHERMOT | D73: 2023-02-23 | E73: 3235.35 | F73: 3231.42 | G73: 3208.93 | H73: 3182.52 | I73: 3160.03 | J73: 3257.83 | K73: 3280.32 | L73: 3306.73 | M73: 3253.9 | N73: 3205 | O73: 3213350 | P73: -3.40%
A74: 64 | B74: Automobile | C74: ESCORTS | D74: 2023-02-23 | E74: 2086.75 | F74: 2077.87 | G74: 2059.03 | H74: 2031.32 | I74: 2012.48 | J74: 2105.58 | K74: 2124.42 | L74: 2152.13 | M74: 2096.7 | N74: 2050.15 | O74: 667150 | P74: -17.87%
A75: 65 | B75: Automobile | C75: EXIDEIND | D75: 2023-02-23 | E75: 183.10 | F75: 182.93 | G75: 181.02 | H75: 178.93 | I75: 177.02 | J75: 185.02 | K75: 186.93 | L75: 189.02 | M75: 184.85 | N75: 180.85 | O75: 23353200 | P75: -13.68%
A76: 66 | B76: Banking | C76: FEDERALBNK | D76: 2023-02-23 | E76: 132.15 | F76: 132.75 | G76: 130.35 | H76: 128.55 | I76: 126.15 | J76: 134.55 | K76: 136.95 | L76: 138.75 | M76: 135.15 | N76: 130.95 | O76: 72005000 | P76: -11.45%
A77: 67 | B77: Technology | C77: FSL | D77: 2023-02-23 | E77: 104.95 | F77: 105.35 | G77: 103.70 | H77: 102.45 | I77: 100.80 | J77: 106.60 | K77: 108.25 | L77: 109.50 | M77: 107 | N77: 104.1 | O77: 12662000 | P77: -13.19%
A78: 68 | B78: Oil_Gas | C78: GAIL | D78: 2023-02-23 | E78: 101.50 | F78: 101.33 | G78: 100.27 | H78: 99.03 | I78: 97.97 | J78: 102.57 | K78: 103.63 | L78: 104.87 | M78: 102.4 | N78: 100.1 | O78: 41925300 | P78: -18.89%
A79: 69 | B79: Pharma | C79: GLENMARK | D79: 2023-02-23 | E79: 401.05 | F79: 405.37 | G79: 395.23 | H79: 389.42 | I79: 379.28 | J79: 411.18 | K79: 421.32 | L79: 427.13 | M79: 415.5 | N79: 399.55 | O79: 5327300 | P79: -4.25%
A80: 70 | B80: Infrastructure | C80: GMRINFRA | D80: 2023-02-23 | E80: 39.00 | F80: 39.35 | G80: 38.45 | H80: 37.90 | I80: 37.00 | J80: 39.90 | K80: 40.80 | L80: 41.35 | M80: 40.25 | N80: 38.8 | O80: 135652500 | P80: -4.92%
A81: 71 | B81: Others | C81: GNFC | D81: 2023-02-23 | E81: 554.10 | F81: 562.40 | G81: 542.55 | H81: 531.00 | I81: 511.15 | J81: 573.95 | K81: 593.80 | L81: 605.35 | M81: 582.25 | N81: 550.85 | O81: 7073300 | P81: -5.73%
A82: 72 | B82: FMCG | C82: GODREJCP | D82: 2023-02-23 | E82: 919.20 | F82: 923.62 | G82: 912.03 | H82: 904.87 | I82: 893.28 | J82: 930.78 | K82: 942.37 | L82: 949.53 | M82: 935.2 | N82: 916.45 | O82: 5033000 | P82: -9.00%
A83: 73 | B83: Realty | C83: GODREJPROP | D83: 2023-02-23 | E83: 1202.00 | F83: 1204.20 | G83: 1190.40 | H83: 1178.80 | I83: 1165.00 | J83: 1215.80 | K83: 1229.60 | L83: 1241.20 | M83: 1218 | N83: 1192.6 | O83: 4052375 | P83: -1.14%
A84: 74 | B84: Pharma | C84: GRANULES | D84: 2023-02-23 | E84: 291.05 | F84: 296.03 | G84: 284.97 | H84: 278.88 | I84: 267.82 | J84: 302.12 | K84: 313.18 | L84: 319.27 | M84: 307.1 | N84: 289.95 | O84: 8350000 | P84: 3.11%
A85: 75 | B85: Cement | C85: GRASIM | D85: 2023-02-23 | E85: 1601.75 | F85: 1603.90 | G85: 1588.80 | H85: 1575.85 | I85: 1560.75 | J85: 1616.85 | K85: 1631.95 | L85: 1644.90 | M85: 1619 | N85: 1590.95 | O85: 8654500 | P85: -3.25%
A86: 76 | B86: Oil_Gas | C86: GUJGASLTD | D86: 2023-02-23 | E86: 467.30 | F86: 468.85 | G86: 463.45 | H86: 459.60 | I86: 454.20 | J86: 472.70 | K86: 478.10 | L86: 481.95 | M86: 474.25 | N86: 465 | O86: 4237500 | P86: -25.95%
A87: 77 | B87: Others | C87: HAL | D87: 2023-02-23 | E87: 2533.60 | F87: 2529.00 | G87: 2505.45 | H87: 2477.30 | I87: 2453.75 | J87: 2557.15 | K87: 2580.70 | L87: 2608.85 | M87: 2552.55 | N87: 2500.85 | O87: 3417300 | P87: -11.30%
A88: 78 | B88: Capital_Goods | C88: HAVELLS | D88: 2023-02-23 | E88: 1186.80 | F88: 1190.58 | G88: 1176.22 | H88: 1165.63 | I88: 1151.27 | J88: 1201.17 | K88: 1215.53 | L88: 1226.12 | M88: 1204.95 | N88: 1180 | O88: 4298000 | P88: -3.72%
A89: 79 | B89: Technology | C89: HCLTECH | D89: 2023-02-23 | E89: 1128.10 | F89: 1130.47 | G89: 1121.23 | H89: 1114.37 | I89: 1105.13 | J89: 1137.33 | K89: 1146.57 | L89: 1153.43 | M89: 1139.7 | N89: 1123.6 | O89: 9689400 | P89: -28.39%
A90: 80 | B90: Finance | C90: HDFC | D90: 2023-02-23 | E90: 2721.60 | F90: 2738.57 | G90: 2697.83 | H90: 2674.07 | I90: 2633.33 | J90: 2762.33 | K90: 2803.07 | L90: 2826.83 | M90: 2779.3 | N90: 2714.8 | O90: 17250900 | P90: -8.38%
A91: 81 | B91: Finance | C91: HDFCAMC | D91: 2023-02-23 | E91: 1943.25 | F91: 1947.43 | G91: 1916.87 | H91: 1890.48 | I91: 1859.92 | J91: 1973.82 | K91: 2004.38 | L91: 2030.77 | M91: 1978 | N91: 1921.05 | O91: 1761600 | P91: -17.94%
A92: 82 | B92: Banking | C92: HDFCBANK | D92: 2023-02-23 | E92: 1659.40 | F92: 1671.13 | G92: 1644.92 | H92: 1630.43 | I92: 1604.22 | J92: 1685.62 | K92: 1711.83 | L92: 1726.32 | M92: 1697.35 | N92: 1656.65 | O92: 54254750 | P92: -10.52%
A93: 83 | B93: Finance | C93: HDFCLIFE | D93: 2023-02-23 | E93: 588.00 | F93: 588.33 | G93: 582.67 | H93: 577.33 | I93: 571.67 | J93: 593.67 | K93: 599.33 | L93: 604.67 | M93: 594 | N93: 583 | O93: 14017300 | P93: -12.84%
A94: 84 | B94: Automobile | C94: HEROMOTOCO | D94: 2023-02-23 | E94: 2796.40 | F94: 2786.97 | G94: 2774.43 | H94: 2752.47 | I94: 2739.93 | J94: 2808.93 | K94: 2821.47 | L94: 2843.43 | M94: 2799.5 | N94: 2765 | O94: 2181000 | P94: -13.57%
A95: 85 | B95: Metals | C95: HINDALCO | D95: 2023-02-23 | E95: 491.85 | F95: 491.40 | G95: 484.90 | H95: 477.95 | I95: 471.45 | J95: 498.35 | K95: 504.85 | L95: 511.80 | M95: 497.9 | N95: 484.45 | O95: 22310400 | P95: -23.99%
A96: 86 | B96: Metals | C96: HINDCOPPER | D96: 2023-02-23 | E96: 128.25 | F96: 128.73 | G96: 127.27 | H96: 126.28 | I96: 124.82 | J96: 129.72 | K96: 131.18 | L96: 132.17 | M96: 130.2 | N96: 127.75 | O96: 20894400 | P96: -11.07%
A97: 87 | B97: Oil_Gas | C97: HINDPETRO | D97: 2023-02-23 | E97: 249.40 | F97: 249.37 | G97: 247.13 | H97: 244.87 | I97: 242.63 | J97: 251.63 | K97: 253.87 | L97: 256.13 | M97: 251.6 | N97: 247.1 | O97: 19242900 | P97: -3.97%
A98: 88 | B98: FMCG | C98: HINDUNILVR | D98: 2023-02-23 | E98: 2635.95 | F98: 2630.60 | G98: 2610.50 | H98: 2585.05 | I98: 2564.95 | J98: 2656.05 | K98: 2676.15 | L98: 2701.60 | M98: 2650.7 | N98: 2605.15 | O98: 7623000 | P98: -7.19%
A99: 89 | B99: Others | C99: HONAUT | D99: 2023-02-23 | E99: 39681.35 | F99: 39726.30 | G99: 39165.05 | H99: 38648.75 | I99: 38087.50 | J99: 40242.60 | K99: 40803.85 | L99: 41320.15 | M99: 40287.55 | N99: 39210 | O99: 31185 | P99: -4.06%
A100: 90 | B100: Finance | C100: IBULHSGFIN | D100: 2023-02-23 | E100: 125.35 | F100: 126.90 | G100: 122.75 | H100: 120.15 | I100: 116.00 | J100: 129.50 | K100: 133.65 | L100: 136.25 | M100: 131.05 | N100: 124.3 | O100: 41880000 | P100: -4.90%
A101: 91 | B101: Banking | C101: ICICIBANK | D101: 2023-02-23 | E101: 860.10 | F101: 864.80 | G101: 848.30 | H101: 836.50 | I101: 820.00 | J101: 876.60 | K101: 893.10 | L101: 904.90 | M101: 881.3 | N101: 853 | O101: 83146000 | P101: -2.39%
A102: 92 | B102: Finance | C102: ICICIGI | D102: 2023-02-23 | E102: 1141.30 | F102: 1140.87 | G102: 1129.43 | H102: 1117.57 | I102: 1106.13 | J102: 1152.73 | K102: 1164.17 | L102: 1176.03 | M102: 1152.3 | N102: 1129 | O102: 3303525 | P102: -5.93%
A103: 93 | B103: Finance | C103: ICICIPRULI | D103: 2023-02-23 | E103: 466.10 | F103: 467.62 | G103: 462.53 | H103: 458.97 | I103: 453.88 | J103: 471.18 | K103: 476.27 | L103: 479.83 | M103: 472.7 | N103: 464.05 | O103: 12718500 | P103: -8.19%
A104: 94 | B104: Telecom | C104: IDEA | D104: 2023-02-23 | E104: 6.75 | F104: 6.83 | G104: 6.62 | H104: 6.48 | I104: 6.27 | J104: 6.97 | K104: 7.18 | L104: 7.32 | M104: 7.05 | N104: 6.7 | O104: 596960000 | P104: -19.50%
A105: 95 | B105: Finance | C105: IDFC | D105: 2023-02-23 | E105: 83.40 | F105: 83.85 | G105: 81.20 | H105: 79.00 | I105: 76.35 | J105: 86.05 | K105: 88.70 | L105: 90.90 | M105: 86.5 | N105: 81.65 | O105: 117580000 | P105: -8.51%
A106: 96 | B106: Banking | C106: IDFCFIRSTB | D106: 2023-02-23 | E106: 57.15 | F106: 57.70 | G106: 56.45 | H106: 55.75 | I106: 54.50 | J106: 58.40 | K106: 59.65 | L106: 60.35 | M106: 58.95 | N106: 57 | O106: 164400000 | P106: -8.80%
A107: 97 | B107: Others | C107: IEX | D107: 2023-02-23 | E107: 137.75 | F107: 138.70 | G107: 136.50 | H107: 135.25 | I107: 133.05 | J107: 139.95 | K107: 142.15 | L107: 143.40 | M107: 140.9 | N107: 137.45 | O107: 41148750 | P107: -10.18%
A108: 98 | B108: Oil_Gas | C108: IGL | D108: 2023-02-23 | E108: 413.75 | F108: 416.38 | G108: 406.37 | H108: 398.98 | I108: 388.97 | J108: 423.77 | K108: 433.78 | L108: 441.17 | M108: 426.4 | N108: 409 | O108: 7286125 | P108: -11.27%
A109: 99 | B109: Infrastructure | C109: INDHOTEL | D109: 2023-02-23 | E109: 293.55 | F109: 295.67 | G109: 288.88 | H109: 284.22 | I109: 277.43 | J109: 300.33 | K109: 307.12 | L109: 311.78 | M109: 302.45 | N109: 291 | O109: 26894000 | P109: -4.56%
A110: 100 | B110: Cement | C110: INDIACEM | D110: 2023-02-23 | E110: 196.00 | F110: 198.22 | G110: 192.13 | H110: 188.27 | I110: 182.18 | J110: 202.08 | K110: 208.17 | L110: 212.03 | M110: 204.3 | N110: 194.35 | O110: 14253500 | P110: -5.24%
A111: 101 | B111: Others | C111: INDIAMART | D111: 2023-02-23 | E111: 4602.15 | F111: 4621.50 | G111: 4558.75 | H111: 4515.35 | I111: 4452.60 | J111: 4664.90 | K111: 4727.65 | L111: 4771.05 | M111: 4684.25 | N111: 4578.1 | O111: 306000 | P111: -16.36%
A112: 102 | B112: Others | C112: INDIGO | D112: 2023-02-23 | E112: 2118.10 | F112: 2108.27 | G112: 2091.53 | H112: 2064.97 | I112: 2048.23 | J112: 2134.83 | K112: 2151.57 | L112: 2178.13 | M112: 2125 | N112: 2081.7 | O112: 2211900 | P112: -6.02%
A113: 103 | B113: Banking | C113: INDUSINDBK | D113: 2023-02-23 | E113: 1163.45 | F113: 1180.80 | G113: 1142.65 | H113: 1121.85 | I113: 1083.70 | J113: 1201.60 | K113: 1239.75 | L113: 1260.55 | M113: 1218.95 | N113: 1160 | O113: 21019500 | P113: -2.13%
A114: 104 | B114: Telecom | C114: INDUSTOWER | D114: 2023-02-23 | E114: 158.85 | F114: 161.57 | G114: 153.73 | H114: 148.62 | I114: 140.78 | J114: 166.68 | K114: 174.52 | L114: 179.63 | M114: 169.4 | N114: 156.45 | O114: 25292400 | P114: -4.41%
A115: 105 | B115: Technology | C115: INFY | D115: 2023-02-23 | E115: 1550.15 | F115: 1553.33 | G115: 1544.12 | H115: 1538.08 | I115: 1528.87 | J115: 1559.37 | K115: 1568.58 | L115: 1574.62 | M115: 1562.55 | N115: 1547.3 | O115: 34010000 | P115: -1.48%
A116: 106 | B116: Technology | C116: INTELLECT | D116: 2023-02-23 | E116: 411.65 | F116: 416.25 | G116: 402.65 | H116: 393.65 | I116: 380.05 | J116: 425.25 | K116: 438.85 | L116: 447.85 | M116: 429.85 | N116: 407.25 | O116: 4734000 | P116: -7.16%
A117: 107 | B117: Oil_Gas | C117: IOC | D117: 2023-02-23 | E117: 83.00 | F117: 83.23 | G117: 82.52 | H117: 82.03 | I117: 81.32 | J117: 83.72 | K117: 84.43 | L117: 84.92 | M117: 83.95 | N117: 82.75 | O117: 74334000 | P117: -10.40%
A118: 108 | B118: Pharma | C118: IPCALAB | D118: 2023-02-23 | E118: 853.10 | F118: 851.55 | G118: 845.30 | H118: 837.50 | I118: 831.25 | J118: 859.35 | K118: 865.60 | L118: 873.40 | M118: 857.8 | N118: 843.75 | O118: 1609400 | P118: -14.74%
A119: 109 | B119: Others | C119: IRCTC | D119: 2023-02-23 | E119: 630.20 | F119: 634.68 | G119: 624.02 | H119: 617.83 | I119: 607.17 | J119: 640.87 | K119: 651.53 | L119: 657.72 | M119: 645.35 | N119: 628.5 | O119: 13336750 | P119: -5.56%
A120: 110 | B120: FMCG | C120: ITC | D120: 2023-02-23 | E120: 336.40 | F120: 335.75 | G120: 333.55 | H120: 330.70 | I120: 328.50 | J120: 338.60 | K120: 340.80 | L120: 343.65 | M120: 337.95 | N120: 332.9 | O120: 53980800 | P120: -27.06%
A121: 111 | B121: Metals | C121: JINDALSTEL | D121: 2023-02-23 | E121: 599.15 | F121: 599.87 | G121: 592.63 | H121: 586.12 | I121: 578.88 | J121: 606.38 | K121: 613.62 | L121: 620.13 | M121: 607.1 | N121: 593.35 | O121: 20066250 | P121: -5.08%
A122: 112 | B122: Cement | C122: JKCEMENT | D122: 2023-02-23 | E122: 2648.75 | F122: 2663.42 | G122: 2615.53 | H122: 2582.32 | I122: 2534.43 | J122: 2696.63 | K122: 2744.52 | L122: 2777.73 | M122: 2711.3 | N122: 2630.2 | O122: 487250 | P122: -21.98%
A123: 113 | B123: Metals | C123: JSWSTEEL | D123: 2023-02-23 | E123: 727.50 | F123: 725.62 | G123: 721.83 | H123: 716.17 | I123: 712.38 | J123: 731.28 | K123: 735.07 | L123: 740.73 | M123: 729.4 | N123: 719.95 | O123: 22357350 | P123: -17.11%
A124: 114 | B124: Others | C124: JUBLFOOD | D124: 2023-02-23 | E124: 495.30 | F124: 498.27 | G124: 490.93 | H124: 486.57 | I124: 479.23 | J124: 502.63 | K124: 509.97 | L124: 514.33 | M124: 505.6 | N124: 493.9 | O124: 13687500 | P124: -6.14%
A125: 115 | B125: Banking | C125: KOTAKBANK | D125: 2023-02-23 | E125: 1760.25 | F125: 1758.88 | G125: 1747.07 | H125: 1733.88 | I125: 1722.07 | J125: 1772.07 | K125: 1783.88 | L125: 1797.07 | M125: 1770.7 | N125: 1745.7 | O125: 39658800 | P125: -4.82%
A126: 116 | B126: Finance | C126: L&TFH | D126: 2023-02-23 | E126: 90.00 | F126: 90.22 | G126: 89.03 | H126: 88.07 | I126: 86.88 | J126: 91.18 | K126: 92.37 | L126: 93.33 | M126: 91.4 | N126: 89.25 | O126: 56381832 | P126: -11.78%
A127: 117 | B127: Others | C127: LALPATHLAB | D127: 2023-02-23 | E127: 2058.05 | F127: 2067.92 | G127: 2040.33 | H127: 2022.62 | I127: 1995.03 | J127: 2085.63 | K127: 2113.22 | L127: 2130.93 | M127: 2095.5 | N127: 2050.2 | O127: 1093500 | P127: -11.89%
A128: 118 | B128: Pharma | C128: LAURUSLABS | D128: 2023-02-23 | E128: 343.80 | F128: 344.20 | G128: 340.70 | H128: 337.60 | I128: 334.10 | J128: 347.30 | K128: 350.80 | L128: 353.90 | M128: 347.7 | N128: 341.1 | O128: 8963900 | P128: -11.67%
A129: 119 | B129: Finance | C129: LICHSGFIN | D129: 2023-02-23 | E129: 391.70 | F129: 392.25 | G129: 388.00 | H129: 384.30 | I129: 380.05 | J129: 395.95 | K129: 400.20 | L129: 403.90 | M129: 396.5 | N129: 388.55 | O129: 12016000 | P129: -13.63%
A130: 120 | B130: Capital_Goods | C130: LT | D130: 2023-02-23 | E130: 2189.00 | F130: 2193.05 | G130: 2166.45 | H130: 2143.90 | I130: 2117.30 | J130: 2215.60 | K130: 2242.20 | L130: 2264.75 | M130: 2219.65 | N130: 2170.5 | O130: 7210500 | P130: -15.66%
A131: 121 | B131: Technology | C131: LTIM | D131: 2023-02-23 | E131: 4441.60 | F131: 4459.87 | G131: 4403.78 | H131: 4365.97 | I131: 4309.88 | J131: 4497.68 | K131: 4553.77 | L131: 4591.58 | M131: 4515.95 | N131: 4422.05 | O131: 1634700 | P131: -15.73%
A132: 122 | B132: Technology | C132: LTTS | D132: 2023-02-23 | E132: 3317.70 | F132: 3342.70 | G132: 3280.55 | H132: 3243.40 | I132: 3181.25 | J132: 3379.85 | K132: 3442.00 | L132: 3479.15 | M132: 3404.85 | N132: 3305.55 | O132: 1194000 | P132: -14.68%
A133: 123 | B133: Pharma | C133: LUPIN | D133: 2023-02-23 | E133: 749.85 | F133: 750.42 | G133: 742.83 | H133: 735.82 | I133: 728.23 | J133: 757.43 | K133: 765.02 | L133: 772.03 | M133: 758 | N133: 743.4 | O133: 5542000 | P133: -7.08%
A134: 124 | B134: Automobile | C134: M&M | D134: 2023-02-23 | E134: 1320.80 | F134: 1324.90 | G134: 1309.80 | H134: 1298.80 | I134: 1283.70 | J134: 1335.90 | K134: 1351.00 | L134: 1362.00 | M134: 1340 | N134: 1313.9 | O134: 11885300 | P134: -18.76%
A135: 125 | B135: Finance | C135: M&MFIN | D135: 2023-02-23 | E135: 230.95 | F135: 232.27 | G135: 228.38 | H135: 225.82 | I135: 221.93 | J135: 234.83 | K135: 238.72 | L135: 241.28 | M135: 236.15 | N135: 229.7 | O135: 21336000 | P135: -7.07%
A136: 126 | B136: Finance | C136: MANAPPURAM | D136: 2023-02-23 | E136: 115.00 | F136: 115.70 | G136: 113.65 | H136: 112.30 | I136: 110.25 | J136: 117.05 | K136: 119.10 | L136: 120.45 | M136: 117.75 | N136: 114.35 | O136: 41700000 | P136: -4.72%
A137: 127 | B137: FMCG | C137: MARICO | D137: 2023-02-23 | E137: 506.35 | F137: 504.95 | G137: 501.65 | H137: 496.95 | I137: 493.65 | J137: 509.65 | K137: 512.95 | L137: 517.65 | M137: 508.25 | N137: 500.25 | O137: 6234000 | P137: -44.69%
A138: 128 | B138: Automobile | C138: MARUTI | D138: 2023-02-23 | E138: 8819.70 | F138: 8804.48 | G138: 8735.77 | H138: 8651.83 | I138: 8583.12 | J138: 8888.42 | K138: 8957.13 | L138: 9041.07 | M138: 8873.2 | N138: 8720.55 | O138: 3065900 | P138: -8.62%
A139: 129 | B139: FMCG | C139: MCDOWELL-N | D139: 2023-02-23 | E139: 773.40 | F139: 783.17 | G139: 760.63 | H139: 747.87 | I139: 725.33 | J139: 795.93 | K139: 818.47 | L139: 831.23 | M139: 805.7 | N139: 770.4 | O139: 14655000 | P139: -1.03%
A140: 130 | B140: Others | C140: MCX | D140: 2023-02-23 | E140: 1549.00 | F140: 1552.13 | G140: 1523.62 | H140: 1498.23 | I140: 1469.72 | J140: 1577.52 | K140: 1606.03 | L140: 1631.42 | M140: 1580.65 | N140: 1526.75 | O140: 1099600 | P140: -8.85%
A141: 131 | B141: Pharma | C141: METROPOLIS | D141: 2023-02-23 | E141: 1304.80 | F141: 1298.92 | G141: 1282.58 | H141: 1260.37 | I141: 1244.03 | J141: 1321.13 | K141: 1337.47 | L141: 1359.68 | M141: 1315.25 | N141: 1276.7 | O141: 1075200 | P141: -10.28%
A142: 132 | B142: Finance | C142: MFSL | D142: 2023-02-23 | E142: 852.00 | F142: 852.52 | G142: 846.58 | H142: 841.17 | I142: 835.23 | J142: 857.93 | K142: 863.87 | L142: 869.28 | M142: 858.45 | N142: 847.1 | O142: 3656250 | P142: -10.70%
A143: 133 | B143: Oil_Gas | C143: MGL | D143: 2023-02-23 | E143: 864.35 | F143: 865.83 | G143: 857.72 | H143: 851.08 | I143: 842.97 | J143: 872.47 | K143: 880.58 | L143: 887.22 | M143: 873.95 | N143: 859.2 | O143: 2093600 | P143: -15.03%
A144: 134 | B144: Automobile | C144: MOTHERSON | D144: 2023-02-23 | E144: 73.05 | F144: 73.30 | G144: 72.15 | H144: 71.25 | I144: 70.10 | J144: 74.20 | K144: 75.35 | L144: 76.25 | M144: 74.45 | N144: 72.4 | O144: 64307250 | P144: -14.85%
A145: 135 | B145: Technology | C145: MPHASIS | D145: 2023-02-23 | E145: 2083.10 | F145: 2094.82 | G145: 2059.33 | H145: 2035.57 | I145: 2000.08 | J145: 2118.58 | K145: 2154.07 | L145: 2177.83 | M145: 2130.3 | N145: 2071.05 | O145: 1406625 | P145: -9.21%
A146: 136 | B146: Automobile | C146: MRF | D146: 2023-02-23 | E146: 89426.00 | F146: 89451.45 | G146: 88392.45 | H146: 87358.90 | I146: 86299.90 | J146: 90485.00 | K146: 91544.00 | L146: 92577.55 | M146: 90510.45 | N146: 88417.9 | O146: 49600 | P146: -15.63%
A147: 137 | B147: Finance | C147: MUTHOOTFIN | D147: 2023-02-23 | E147: 1039.50 | F147: 1033.25 | G147: 1019.45 | H147: 999.40 | I147: 985.60 | J147: 1053.30 | K147: 1067.10 | L147: 1087.15 | M147: 1047.05 | N147: 1013.2 | O147: 6363500 | P147: -20.80%
A148: 138 | B148: Metals | C148: NATIONALUM | D148: 2023-02-23 | E148: 83.05 | F148: 83.30 | G148: 82.50 | H148: 81.95 | I148: 81.15 | J148: 83.85 | K148: 84.65 | L148: 85.20 | M148: 84.1 | N148: 82.75 | O148: 73665000 | P148: -6.36%
A149: 139 | B149: Others | C149: NAUKRI | D149: 2023-02-23 | E149: 3676.05 | F149: 3678.73 | G149: 3624.92 | H149: 3573.78 | I149: 3519.97 | J149: 3729.87 | K149: 3783.68 | L149: 3834.82 | M149: 3732.55 | N149: 3627.6 | O149: 1276000 | P149: -6.14%
A150: 140 | B150: Chemical | C150: NAVINFLUOR | D150: 2023-02-23 | E150: 3847.05 | F150: 3882.08 | G150: 3792.52 | H150: 3737.98 | I150: 3648.42 | J150: 3936.62 | K150: 4026.18 | L150: 4080.72 | M150: 3971.65 | N150: 3827.55 | O150: 446700 | P150: -5.79%
A151: 141 | B151: FMCG | C151: NESTLEIND | D151: 2023-02-23 | E151: 19378.70 | F151: 19382.62 | G151: 19278.98 | H151: 19179.27 | I151: 19075.63 | J151: 19482.33 | K151: 19585.97 | L151: 19685.68 | M151: 19486.25 | N151: 19282.9 | O151: 257680 | P151: -4.68%
A152: 142 | B152: Metals | C152: NMDC | D152: 2023-02-23 | E152: 124.70 | F152: 125.03 | G152: 123.67 | H152: 122.63 | I152: 121.27 | J152: 126.07 | K152: 127.43 | L152: 128.47 | M152: 126.4 | N152: 124 | O152: 40711500 | P152: -0.65%
A153: 143 | B153: Power | C153: NTPC | D153: 2023-02-23 | E153: 166.60 | F153: 166.32 | G153: 165.43 | H153: 164.27 | I153: 163.38 | J153: 167.48 | K153: 168.37 | L153: 169.53 | M153: 167.2 | N153: 165.15 | O153: 56960100 | P153: -11.33%
A154: 144 | B154: Realty | C154: OBEROIRLTY | D154: 2023-02-23 | E154: 814.50 | F154: 816.42 | G154: 801.33 | H154: 788.17 | I154: 773.08 | J154: 829.58 | K154: 844.67 | L154: 857.83 | M154: 831.5 | N154: 803.25 | O154: 6451200 | P154: -9.23%
A155: 145 | B155: Technology | C155: OFSS | D155: 2023-02-23 | E155: 3099.85 | F155: 3102.63 | G155: 3080.27 | H155: 3060.68 | I155: 3038.32 | J155: 3122.22 | K155: 3144.58 | L155: 3164.17 | M155: 3125 | N155: 3083.05 | O155: 436000 | P155: -13.87%
A156: 146 | B156: Oil_Gas | C156: ONGC | D156: 2023-02-23 | E156: 152.95 | F156: 152.62 | G156: 151.83 | H156: 150.72 | I156: 149.93 | J156: 153.73 | K156: 154.52 | L156: 155.63 | M156: 153.4 | N156: 151.5 | O156: 35797300 | P156: -44.15%
A157: 147 | B157: Textile | C157: PAGEIND | D157: 2023-02-23 | E157: 39914.95 | F157: 39954.72 | G157: 39510.43 | H157: 39105.92 | I157: 38661.63 | J157: 40359.23 | K157: 40803.52 | L157: 41208.03 | M157: 40399 | N157: 39550.2 | O157: 102945 | P157: -3.54%
A158: 148 | B158: Pharma | C158: PEL | D158: 2023-02-23 | E158: 829.40 | F158: 833.07 | G158: 817.73 | H158: 806.07 | I158: 790.73 | J158: 844.73 | K158: 860.07 | L158: 871.73 | M158: 848.4 | N158: 821.4 | O158: 4985750 | P158: -7.58%
A159: 149 | B159: Technology | C159: PERSISTENT | D159: 2023-02-23 | E159: 4566.40 | F159: 4550.58 | G159: 4512.77 | H159: 4459.13 | I159: 4421.32 | J159: 4604.22 | K159: 4642.03 | L159: 4695.67 | M159: 4588.4 | N159: 4496.95 | O159: 650125 | P159: -26.26%
A160: 150 | B160: Oil_Gas | C160: PETRONET | D160: 2023-02-23 | E160: 226.40 | F160: 227.70 | G160: 224.05 | H160: 221.70 | I160: 218.05 | J160: 230.05 | K160: 233.70 | L160: 236.05 | M160: 231.35 | N160: 225.35 | O160: 11256000 | P160: -9.61%
A161: 151 | B161: Finance | C161: PFC | D161: 2023-02-23 | E161: 144.25 | F161: 145.90 | G161: 141.65 | H161: 139.05 | I161: 134.80 | J161: 148.50 | K161: 152.75 | L161: 155.35 | M161: 150.15 | N161: 143.3 | O161: 62533200 | P161: -11.87%
A162: 152 | B162: FMCG | C162: PIDILITIND | D162: 2023-02-23 | E162: 2325.40 | F162: 2335.82 | G162: 2303.63 | H162: 2281.87 | I162: 2249.68 | J162: 2357.58 | K162: 2389.77 | L162: 2411.53 | M162: 2368 | N162: 2314.05 | O162: 2376000 | P162: -12.31%
A163: 153 | B163: Chemical | C163: PIIND | D163: 2023-02-23 | E163: 2985.55 | F163: 3005.98 | G163: 2957.77 | H163: 2929.98 | I163: 2881.77 | J163: 3033.77 | K163: 3081.98 | L163: 3109.77 | M163: 3054.2 | N163: 2978.2 | O163: 1880000 | P163: 0.31%
A164: 154 | B164: Banking | C164: PNB | D164: 2023-02-23 | E164: 54.10 | F164: 54.45 | G164: 53.00 | H164: 51.90 | I164: 50.45 | J164: 55.55 | K164: 57.00 | L164: 58.10 | M164: 55.9 | N164: 53.35 | O164: 221904000 | P164: -2.45%
A165: 155 | B165: Others | C165: POLYCAB | D165: 2023-02-23 | E165: 2827.05 | F165: 2822.50 | G165: 2806.40 | H165: 2785.75 | I165: 2769.65 | J165: 2843.15 | K165: 2859.25 | L165: 2879.90 | M165: 2838.6 | N165: 2801.85 | O165: 778800 | P165: -18.47%
A166: 156 | B166: Power | C166: POWERGRID | D166: 2023-02-23 | E166: 220.30 | F166: 220.37 | G166: 218.83 | H166: 217.37 | I166: 215.83 | J166: 221.83 | K166: 223.37 | L166: 224.83 | M166: 221.9 | N166: 218.9 | O166: 25814700 | P166: -40.17%
A167: 157 | B167: Media | C167: PVR | D167: 2023-02-23 | E167: 1670.00 | F167: 1660.48 | G167: 1639.92 | H167: 1609.83 | I167: 1589.27 | J167: 1690.57 | K167: 1711.13 | L167: 1741.22 | M167: 1681.05 | N167: 1630.4 | O167: 2751320 | P167: -14.95%
A168: 158 | B168: Others | C168: RAIN | D168: 2023-02-23 | E168: 170.20 | F168: 172.30 | G168: 167.45 | H168: 164.70 | I168: 159.85 | J168: 175.05 | K168: 179.90 | L168: 182.65 | M168: 177.15 | N168: 169.55 | O168: 10342500 | P168: -9.72%
A169: 159 | B169: Cement | C169: RAMCOCEM | D169: 2023-02-23 | E169: 666.35 | F169: 669.22 | G169: 660.58 | H169: 654.82 | I169: 646.18 | J169: 674.98 | K169: 683.62 | L169: 689.38 | M169: 677.85 | N169: 663.45 | O169: 3714500 | P169: -10.30%
A170: 160 | B170: Banking | C170: RBLBANK | D170: 2023-02-23 | E170: 158.70 | F170: 159.58 | G170: 157.22 | H170: 155.73 | I170: 153.37 | J170: 161.07 | K170: 163.43 | L170: 164.92 | M170: 161.95 | N170: 158.1 | O170: 33905000 | P170: -8.08%
A171: 161 | B171: Power | C171: RECLTD | D171: 2023-02-23 | E171: 120.85 | F171: 121.45 | G171: 119.45 | H171: 118.05 | I171: 116.05 | J171: 122.85 | K171: 124.85 | L171: 126.25 | M171: 123.45 | N171: 120.05 | O171: 62592000 | P171: -21.23%
A172: 162 | B172: Oil_Gas | C172: RELIANCE | D172: 2023-02-23 | E172: 2394.25 | F172: 2405.27 | G172: 2380.98 | H172: 2367.72 | I172: 2343.43 | J172: 2418.53 | K172: 2442.82 | L172: 2456.08 | M172: 2429.55 | N172: 2392 | O172: 39462000 | P172: -2.49%
A173: 163 | B173: Metals | C173: SAIL | D173: 2023-02-23 | E173: 90.40 | F173: 90.58 | G173: 89.37 | H173: 88.33 | I173: 87.12 | J173: 91.62 | K173: 92.83 | L173: 93.87 | M173: 91.8 | N173: 89.55 | O173: 115016000 | P173: -5.69%
A174: 164 | B174: Banking | C174: SBICARD | D174: 2023-02-23 | E174: 717.30 | F174: 725.52 | G174: 705.88 | H174: 694.47 | I174: 674.83 | J174: 736.93 | K174: 756.57 | L174: 767.98 | M174: 745.15 | N174: 714.1 | O174: 8999200 | P174: -3.02%
A175: 165 | B175: Finance | C175: SBILIFE | D175: 2023-02-23 | E175: 1265.60 | F175: 1270.48 | G175: 1253.27 | H175: 1240.93 | I175: 1223.72 | J175: 1282.82 | K175: 1300.03 | L175: 1312.37 | M175: 1287.7 | N175: 1258.15 | O175: 6210750 | P175: -12.81%
A176: 166 | B176: Banking | C176: SBIN | D176: 2023-02-23 | E176: 571.55 | F176: 579.88 | G176: 561.72 | H176: 551.88 | I176: 533.72 | J176: 589.72 | K176: 607.88 | L176: 617.72 | M176: 598.05 | N176: 570.05 | O176: 60514500 | P176: 2.09%
A177: 167 | B177: Cement | C177: SHREECEM | D177: 2023-02-23 | E177: 21778.50 | F177: 21947.87 | G177: 21447.03 | H177: 21115.57 | I177: 20614.73 | J177: 22279.33 | K177: 22780.17 | L177: 23111.63 | M177: 22448.7 | N177: 21616.4 | O177: 301925 | P177: -7.69%
A178: 168 | B178: Capital_Goods | C178: SIEMENS | D178: 2023-02-23 | E178: 3000.35 | F178: 3009.60 | G178: 2965.20 | H178: 2930.05 | I178: 2885.65 | J178: 3044.75 | K178: 3089.15 | L178: 3124.30 | M178: 3054 | N178: 2974.45 | O178: 1775950 | P178: -4.85%
A179: 169 | B179: Textile | C179: SRF | D179: 2023-02-23 | E179: 2133.70 | F179: 2122.25 | G179: 2104.20 | H179: 2074.70 | I179: 2056.65 | J179: 2151.75 | K179: 2169.80 | L179: 2199.30 | M179: 2140.3 | N179: 2092.75 | O179: 4551375 | P179: -9.51%
A180: 170 | B180: Finance | C180: SHRIRAMFIN | D180: 2023-02-23 | E180: 1259.05 | F180: 1255.57 | G180: 1236.48 | H180: 1213.92 | I180: 1194.83 | J180: 1278.13 | K180: 1297.22 | L180: 1319.78 | M180: 1274.65 | N180: 1233 | O180: 4430400 | P180: -12.29%
A181: 171 | B181: Pharma | C181: SUNPHARMA | D181: 2023-02-23 | E181: 1037.70 | F181: 1036.38 | G181: 1031.17 | H181: 1024.63 | I181: 1019.42 | J181: 1042.92 | K181: 1048.13 | L181: 1054.67 | M181: 1041.6 | N181: 1029.85 | O181: 14461300 | P181: -13.49%
A182: 172 | B182: Media | C182: SUNTV | D182: 2023-02-23 | E182: 466.60 | F182: 469.83 | G182: 461.77 | H182: 456.93 | I182: 448.87 | J182: 474.67 | K182: 482.73 | L182: 487.57 | M182: 477.9 | N182: 465 | O182: 9087000 | P182: -2.76%
A183: 173 | B183: Pharma | C183: SYNGENE | D183: 2023-02-23 | E183: 576.25 | F183: 578.47 | G183: 570.78 | H183: 565.32 | I183: 557.63 | J183: 583.93 | K183: 591.62 | L183: 597.08 | M183: 586.15 | N183: 573 | O183: 1302000 | P183: -13.08%
A184: 174 | B184: Chemical | C184: TATACHEM | D184: 2023-02-23 | E184: 956.55 | F184: 961.43 | G184: 948.72 | H184: 940.88 | I184: 928.17 | J184: 969.27 | K184: 981.98 | L184: 989.82 | M184: 974.15 | N184: 953.6 | O184: 6034000 | P184: -3.89%
A185: 175 | B185: Telecom | C185: TATACOMM | D185: 2023-02-23 | E185: 1294.00 | F185: 1301.93 | G185: 1272.47 | H185: 1250.93 | I185: 1221.47 | J185: 1323.47 | K185: 1352.93 | L185: 1374.47 | M185: 1331.4 | N185: 1280.4 | O185: 2391000 | P185: -7.79%
A186: 176 | B186: FMCG | C186: TATACONSUM | D186: 2023-02-23 | E186: 743.90 | F186: 742.35 | G186: 736.75 | H186: 729.60 | I186: 724.00 | J186: 749.50 | K186: 755.10 | L186: 762.25 | M186: 747.95 | N186: 735.2 | O186: 9594900 | P186: -6.28%
A187: 177 | B187: Automobile | C187: TATAMOTORS | D187: 2023-02-23 | E187: 421.80 | F187: 423.42 | G187: 418.13 | H187: 414.47 | I187: 409.18 | J187: 427.08 | K187: 432.37 | L187: 436.03 | M187: 428.7 | N187: 419.75 | O187: 75222900 | P187: -8.92%
A188: 178 | B188: Power | C188: TATAPOWER | D188: 2023-02-23 | E188: 202.40 | F188: 203.83 | G188: 200.37 | H188: 198.33 | I188: 194.87 | J188: 205.87 | K188: 209.33 | L188: 211.37 | M188: 207.3 | N188: 201.8 | O188: 107129250 | P188: -3.43%
A189: 179 | B189: Metals | C189: TATASTEEL | D189: 2023-02-23 | E189: 121.85 | F189: 121.85 | G189: 120.60 | H189: 119.35 | I189: 118.10 | J189: 123.10 | K189: 124.35 | L189: 125.60 | M189: 123.1 | N189: 120.6 | O189: 171061000 | P189: -6.58%
A190: 180 | B190: Technology | C190: TCS | D190: 2023-02-23 | E190: 3445.10 | F190: 3442.32 | G190: 3429.63 | H190: 3414.17 | I190: 3401.48 | J190: 3457.78 | K190: 3470.47 | L190: 3485.93 | M190: 3455 | N190: 3426.85 | O190: 9875950 | P190: -7.81%
A191: 181 | B191: Technology | C191: TECHM | D191: 2023-02-23 | E191: 1056.55 | F191: 1060.98 | G191: 1050.17 | H191: 1043.78 | I191: 1032.97 | J191: 1067.37 | K191: 1078.18 | L191: 1084.57 | M191: 1071.8 | N191: 1054.6 | O191: 11427000 | P191: -4.32%
A192: 182 | B192: FMCG | C192: TITAN | D192: 2023-02-23 | E192: 2364.25 | F192: 2364.45 | G192: 2344.90 | H192: 2325.55 | I192: 2306.00 | J192: 2383.80 | K192: 2403.35 | L192: 2422.70 | M192: 2384 | N192: 2345.1 | O192: 7415625 | P192: -6.89%
A193: 183 | B193: Pharma | C193: TORNTPHARM | D193: 2023-02-23 | E193: 1558.95 | F193: 1565.28 | G193: 1544.57 | H193: 1530.18 | I193: 1509.47 | J193: 1579.67 | K193: 1600.38 | L193: 1614.77 | M193: 1586 | N193: 1550.9 | O193: 1574000 | P193: -11.75%
A194: 184 | B194: Power | C194: TORNTPOWER | D194: 2023-02-23 | E194: 466.15 | F194: 468.03 | G194: 460.22 | H194: 454.28 | I194: 446.47 | J194: 473.97 | K194: 481.78 | L194: 487.72 | M194: 475.85 | N194: 462.1 | O194: 3126000 | P194: -15.80%
A195: 185 | B195: Others | C195: TRENT | D195: 2023-02-23 | E195: 1219.95 | F195: 1210.82 | G195: 1198.18 | H195: 1176.42 | I195: 1163.78 | J195: 1232.58 | K195: 1245.22 | L195: 1266.98 | M195: 1223.45 | N195: 1189.05 | O195: 4684800 | P195: -9.40%
A196: 186 | B196: Automobile | C196: TVSMOTOR | D196: 2023-02-23 | E196: 1039.35 | F196: 1025.33 | G196: 1008.02 | H196: 976.68 | I196: 959.37 | J196: 1056.67 | K196: 1073.98 | L196: 1105.32 | M196: 1042.65 | N196: 994 | O196: 7019600 | P196: -5.61%
A197: 187 | B197: FMCG | C197: UBL | D197: 2023-02-23 | E197: 1565.30 | F197: 1564.05 | G197: 1553.25 | H197: 1541.20 | I197: 1530.40 | J197: 1576.10 | K197: 1586.90 | L197: 1598.95 | M197: 1574.85 | N197: 1552 | O197: 1122000 | P197: -11.26%
A198: 188 | B198: Cement | C198: ULTRACEMCO | D198: 2023-02-23 | E198: 6740.85 | F198: 6770.08 | G198: 6671.82 | H198: 6602.78 | I198: 6504.52 | J198: 6839.12 | K198: 6937.38 | L198: 7006.42 | M198: 6868.35 | N198: 6701.05 | O198: 2020700 | P198: -6.72%
A199: 189 | B199: Chemical | C199: UPL | D199: 2023-02-23 | E199: 742.10 | F199: 743.88 | G199: 737.77 | H199: 733.43 | I199: 727.32 | J199: 748.22 | K199: 754.33 | L199: 758.67 | M199: 750 | N199: 739.55 | O199: 16556800 | P199: -6.08%
A200: 190 | B200: Metals | C200: VEDL | D200: 2023-02-23 | E200: 328.45 | F200: 329.62 | G200: 325.13 | H200: 321.82 | I200: 317.33 | J200: 332.93 | K200: 337.42 | L200: 340.73 | M200: 334.1 | N200: 326.3 | O200: 31252000 | P200: -8.98%
A201: 191 | B201: Capital_Goods | C201: VOLTAS | D201: 2023-02-23 | E201: 760.70 | F201: 766.65 | G201: 750.65 | H201: 740.60 | I201: 724.60 | J201: 776.70 | K201: 792.70 | L201: 802.75 | M201: 782.65 | N201: 756.6 | O201: 6957000 | P201: -4.24%
A202: 192 | B202: Capital_Goods | C202: WHIRLPOOL | D202: 2023-02-23 | E202: 1417.05 | F202: 1419.73 | G202: 1403.87 | H202: 1390.68 | I202: 1374.82 | J202: 1432.92 | K202: 1448.78 | L202: 1461.97 | M202: 1435.6 | N202: 1406.55 | O202: 739200 | P202: -8.01%
A203: 193 | B203: Technology | C203: WIPRO | D203: 2023-02-23 | E203: 403.35 | F203: 404.48 | G203: 401.02 | H203: 398.68 | I203: 395.22 | J203: 406.82 | K203: 410.28 | L203: 412.62 | M203: 407.95 | N203: 402.15 | O203: 38656500 | P203: -3.40%
A204: 194 | B204: Media | C204: ZEEL | D204: 2023-02-23 | E204: 220.85 | F204: 221.70 | G204: 219.20 | H204: 217.55 | I204: 215.05 | J204: 223.35 | K204: 225.85 | L204: 227.50 | M204: 224.2 | N204: 220.05 | O204: 83775000 | P204: -3.59%
A205: 195 | B205: Pharma | C205: ZYDUSLIFE | D205: 2023-02-23 | E205: 428.85 | F205: 432.17 | G205: 424.38 | H205: 419.92 | I205: 412.13 | J205: 436.63 | K205: 444.42 | L205: 448.88 | M205: 439.95 | N205: 427.7 | O205: 8728200 | P205: -8.63%
A222: Pivot Point: This is trigger point for intra day buy/sell based on the price range of the previous day
... 14 more rows

Sheet Cash Intra
M5: Back to Main Page
A6: FOR INTRA DAY TRADING | K6: =Main!B10 -> 2023-01-27
A8: Sr.no | C8: CLOSE RATE | D8: Pivot Point | E8: Supports | H8: Resistances
E9: S1 | F9: S2 | G9: S3 | H9: R1 | I9: R2 | J9: R3 | K9: HIGH | L9: LOW | M9: Total Trade Quanity in Lakhs
A10: 1 | B10: Nifty 50 | C10: 17891.95 | D10: 17946.23 | E10: 17791.87 | F10: 17691.78 | G10: 17537.42 | H10: 18046.32 | I10: 18200.68 | J10: 18300.77 | K10: 18100.60 | L10: 17846.15
A11: 2 | B11: Nifty Bank | C11: 41647.65 | D11: 41973.67 | E11: 41214.28 | F11: 40780.92 | G11: 40021.53 | H11: 42407.03 | I11: 43166.42 | J11: 43599.78 | K11: 42733.05 | L11: 41540.30
A12: 3 | B12: Nifty CPSE | C12: 2848.90 | D12: 2847.18 | E12: 2832.62 | F12: 2816.33 | G12: 2801.77 | H12: 2863.47 | I12: 2878.03 | J12: 2894.32 | K12: 2861.75 | L12: 2830.90
A13: 4 | B13: Nifty Infra | C13: 5124.95 | D13: 5143.38 | E13: 5092.92 | F13: 5060.88 | G13: 5010.42 | H13: 5175.42 | I13: 5225.88 | J13: 5257.92 | K13: 5193.85 | L13: 5111.35
A14: 5 | B14: Nifty IT | C14: 30043.90 | D14: 30093.35 | E14: 29955.30 | F14: 29866.70 | G14: 29728.65 | H14: 30181.95 | I14: 30320.00 | J14: 30408.60 | K14: 30231.40 | L14: 30004.75
A15: 6 | B15: Nifty PSE | C15: 4452.95 | D15: 4462.20 | E15: 4429.25 | F15: 4405.55 | G15: 4372.60 | H15: 4485.90 | I15: 4518.85 | J15: 4542.55 | K15: 4495.15 | L15: 4438.50
A16: 7 | B16: Nifty Midcap 50 | C16: 8604.10 | D16: 8635.10 | E16: 8545.85 | F16: 8487.60 | G16: 8398.35 | H16: 8693.35 | I16: 8782.60 | J16: 8840.85 | K16: 8724.35 | L16: 8576.85
A17: 8 | B17: ABB | C17: 2873.35 | D17: 2894.25 | E17: 2841.50 | F17: 2809.65 | G17: 2756.90 | H17: 2926.10 | I17: 2978.85 | J17: 3010.70 | K17: 2947 | L17: 2862.4 | M17: 1.91195
A18: 9 | B18: ACC | C18: 2165.7 | D18: 2217.65 | E18: 2105.35 | F18: 2045.00 | G18: 1932.70 | H18: 2278.00 | I18: 2390.30 | J18: 2450.65 | K18: 2329.95 | L18: 2157.3 | M18: 12.24929
A19: 10 | B19: AUBANK | C19: 615.9 | D19: 621.45 | E19: 607.95 | F19: 600.00 | G19: 586.50 | H19: 629.40 | I19: 642.90 | J19: 650.85 | K19: 634.95 | L19: 613.5 | M19: 15.57125
A20: 11 | B20: ABBOTINDIA | C20: 21286.8 | D20: 21398.03 | E20: 21106.22 | F20: 20925.63 | G20: 20633.82 | H20: 21578.62 | I20: 21870.43 | J20: 22051.02 | K20: 21689.85 | L20: 21217.45 | M20: 0.08811
A21: 12 | B21: ADANIENT | C21: 3388.95 | D21: 3377.32 | E21: 3326.63 | F21: 3264.32 | G21: 3213.63 | H21: 3439.63 | I21: 3490.32 | J21: 3552.63 | K21: 3428 | L21: 3315 | M21: 36.86439
A22: 13 | B22: ADANIGREEN | C22: 1857.8 | D22: 1870.08 | E22: 1827.72 | F22: 1797.63 | G22: 1755.27 | H22: 1900.17 | I22: 1942.53 | J22: 1972.62 | K22: 1912.45 | L22: 1840 | M22: 12.19566
A23: 14 | B23: ADANIPORTS | C23: 713.15 | D23: 725.35 | E23: 693.80 | F23: 674.45 | G23: 642.90 | H23: 744.70 | I23: 776.25 | J23: 795.60 | K23: 756.9 | L23: 706 | M23: 170.85455
A24: 15 | B24: ATGL | C24: 3660 | D24: 3714.95 | E24: 3545.05 | F24: 3430.10 | G24: 3260.20 | H24: 3829.90 | I24: 3999.80 | J24: 4114.75 | K24: 3884.85 | L24: 3600 | M24: 5.15358
A25: 16 | B25: ADANITRANS | C25: 2517.75 | D25: 2563.13 | E25: 2388.52 | F25: 2259.28 | G25: 2084.67 | H25: 2692.37 | I25: 2866.98 | J25: 2996.22 | K25: 2737.75 | L25: 2433.9 | M25: 6.64314
A26: 17 | B26: AWL | C26: 544.05 | D26: 553.92 | E26: 534.18 | F26: 524.32 | G26: 504.58 | H26: 563.78 | I26: 583.52 | J26: 593.38 | K26: 573.65 | L26: 544.05 | M26: 33.76652
A27: 18 | B27: ABCAPITAL | C27: 139.65 | D27: 140.98 | E27: 137.87 | F27: 136.08 | G27: 132.97 | H27: 142.77 | I27: 145.88 | J27: 147.67 | K27: 144.1 | L27: 139.2 | M27: 31.79143
A28: 19 | B28: ABFRL | C28: 255.9 | D28: 256.52 | E28: 252.08 | F28: 248.27 | G28: 243.83 | H28: 260.33 | I28: 264.77 | J28: 268.58 | K28: 260.95 | L28: 252.7 | M28: 17.83139
A29: 20 | B29: ALKEM | C29: 3020.2 | D29: 3010.65 | E29: 2992.55 | F29: 2964.90 | G29: 2946.80 | H29: 3038.30 | I29: 3056.40 | J29: 3084.05 | K29: 3028.75 | L29: 2983 | M29: 0.67844
A30: 21 | B30: AMBUJACEM | C30: 460.2 | D30: 469.63 | E30: 441.27 | F30: 422.33 | G30: 393.97 | H30: 488.57 | I30: 516.93 | J30: 535.87 | K30: 498 | L30: 450.7 | M30: 336.46469
A31: 22 | B31: APOLLOHOSP | C31: 4224.35 | D31: 4245.45 | E31: 4172.90 | F31: 4121.45 | G31: 4048.90 | H31: 4296.90 | I31: 4369.45 | J31: 4420.90 | K31: 4318 | L31: 4194 | M31: 4.23714
A32: 23 | B32: ASHOKLEY | C32: 146.35 | D32: 145.98 | E32: 144.37 | F32: 142.38 | G32: 140.77 | H32: 147.97 | I32: 149.58 | J32: 151.57 | K32: 147.6 | L32: 144 | M32: 97.06026
A33: 24 | B33: ASIANPAINT | C33: 2775 | D33: 2784.37 | E33: 2757.73 | F33: 2740.47 | G33: 2713.83 | H33: 2801.63 | I33: 2828.27 | J33: 2845.53 | K33: 2811 | L33: 2767.1 | M33: 8.57953
A34: 25 | B34: ASTRAL | C34: 1978.35 | D34: 1984.60 | E34: 1953.75 | F34: 1929.15 | G34: 1898.30 | H34: 2009.20 | I34: 2040.05 | J34: 2064.65 | K34: 2015.45 | L34: 1960 | M34: 2.50509
A35: 26 | B35: AUROPHARMA | C35: 417.75 | D35: 424.20 | E35: 410.15 | F35: 402.55 | G35: 388.50 | H35: 431.80 | I35: 445.85 | J35: 453.45 | K35: 438.25 | L35: 416.6 | M35: 23.50736
A36: 27 | B36: DMART | C36: 3515.1 | D36: 3525.63 | E36: 3496.77 | F36: 3478.43 | G36: 3449.57 | H36: 3543.97 | I36: 3572.83 | J36: 3591.17 | K36: 3554.5 | L36: 3507.3 | M36: 4.74769
A37: 28 | B37: AXISBANK | C37: 892.35 | D37: 894.67 | E37: 881.88 | F37: 871.42 | G37: 858.63 | H37: 905.13 | I37: 917.92 | J37: 928.38 | K37: 907.45 | L37: 884.2 | M37: 119.21748
A38: 29 | B38: BAJAJ-AUTO | C38: 3717.4 | D38: 3710.37 | E38: 3680.73 | F38: 3644.07 | G38: 3614.43 | H38: 3747.03 | I38: 3776.67 | J38: 3813.33 | K38: 3740 | L38: 3673.7 | M38: 3.75571
A39: 30 | B39: BAJFINANCE | C39: 5795.9 | D39: 5809.32 | E39: 5763.58 | F39: 5731.27 | G39: 5685.53 | H39: 5841.63 | I39: 5887.37 | J39: 5919.68 | K39: 5855.05 | L39: 5777 | M39: 8.27837
A40: 31 | B40: BAJAJFINSV | C40: 1314.35 | D40: 1319.75 | E40: 1304.60 | F40: 1294.85 | G40: 1279.70 | H40: 1329.50 | I40: 1344.65 | J40: 1354.40 | K40: 1334.9 | L40: 1310 | M40: 15.49899
A41: 32 | B41: BAJAJHLDNG | C41: 5742.65 | D41: 5782.88 | E41: 5669.77 | F41: 5596.88 | G41: 5483.77 | H41: 5855.77 | I41: 5968.88 | J41: 6041.77 | K41: 5896 | L41: 5710 | M41: 0.09566
A42: 33 | B42: BALKRISIND | C42: 2239.85 | D42: 2235.53 | E42: 2216.17 | F42: 2192.48 | G42: 2173.12 | H42: 2259.22 | I42: 2278.58 | J42: 2302.27 | K42: 2254.9 | L42: 2211.85 | M42: 2.32378
A43: 34 | B43: BANDHANBNK | C43: 244.95 | D43: 245.65 | E43: 242.95 | F43: 240.95 | G43: 238.25 | H43: 247.65 | I43: 250.35 | J43: 252.35 | K43: 248.35 | L43: 243.65 | M43: 48.70562
A44: 35 | B44: BANKBARODA | C44: 169.75 | D44: 171.57 | E44: 164.53 | F44: 159.32 | G44: 152.28 | H44: 176.78 | I44: 183.82 | J44: 189.03 | K44: 178.6 | L44: 166.35 | M44: 426.52626
A45: 36 | B45: BANKINDIA | C45: 82.55 | D45: 83.03 | E45: 80.27 | F45: 77.98 | G45: 75.22 | H45: 85.32 | I45: 88.08 | J45: 90.37 | K45: 85.8 | L45: 80.75 | M45: 177.93136
A46: 37 | B46: BATAINDIA | C46: 1529.8 | D46: 1540.35 | E46: 1510.70 | F46: 1491.60 | G46: 1461.95 | H46: 1559.45 | I46: 1589.10 | J46: 1608.20 | K46: 1570 | L46: 1521.25 | M46: 2.73339
A47: 38 | B47: BERGEPAINT | C47: 548.75 | D47: 553.08 | E47: 542.17 | F47: 535.58 | G47: 524.67 | H47: 559.67 | I47: 570.58 | J47: 577.17 | K47: 564 | L47: 546.5 | M47: 8.80591
A48: 39 | B48: BEL | C48: 99.15 | D48: 99.62 | E48: 98.33 | F48: 97.52 | G48: 96.23 | H48: 100.43 | I48: 101.72 | J48: 102.53 | K48: 100.9 | L48: 98.8 | M48: 92.32812
A49: 40 | B49: BHARATFORG | C49: 862.65 | D49: 860.52 | E49: 851.13 | F49: 839.62 | G49: 830.23 | H49: 872.03 | I49: 881.42 | J49: 892.93 | K49: 869.9 | L49: 849 | M49: 7.95188
A50: 41 | B50: BHEL | C50: 76.7 | D50: 77.18 | E50: 75.77 | F50: 74.83 | G50: 73.42 | H50: 78.12 | I50: 79.53 | J50: 80.47 | K50: 78.6 | L50: 76.25 | M50: 121.22314
A51: 42 | B51: BPCL | C51: 346.75 | D51: 347.65 | E51: 344.80 | F51: 342.85 | G51: 340.00 | H51: 349.60 | I51: 352.45 | J51: 354.40 | K51: 350.5 | L51: 345.7 | M51: 19.33197
A52: 43 | B52: BHARTIARTL | C52: 776.5 | D52: 775.00 | E52: 769.50 | F52: 762.50 | G52: 757.00 | H52: 782.00 | I52: 787.50 | J52: 794.50 | K52: 780.5 | L52: 768 | M52: 65.60514
A53: 44 | B53: BIOCON | C53: 235.2 | D53: 238.57 | E53: 230.93 | F53: 226.67 | G53: 219.03 | H53: 242.83 | I53: 250.47 | J53: 254.73 | K53: 246.2 | L53: 234.3 | M53: 36.03904
A54: 45 | B54: BOSCHLTD | C54: 16720.35 | D54: 16810.08 | E54: 16580.27 | F54: 16440.18 | G54: 16210.37 | H54: 16950.17 | I54: 17179.98 | J54: 17320.07 | K54: 17039.9 | L54: 16670 | M54: 0.10286
A55: 46 | B55: BRITANNIA | C55: 4388.15 | D55: 4397.38 | E55: 4350.77 | F55: 4313.38 | G55: 4266.77 | H55: 4434.77 | I55: 4481.38 | J55: 4518.77 | K55: 4444 | L55: 4360 | M55: 2.88089
A56: 47 | B56: CANBK | C56: 306.05 | D56: 309.72 | E56: 298.53 | F56: 291.02 | G56: 279.83 | H56: 317.23 | I56: 328.42 | J56: 335.93 | K56: 320.9 | L56: 302.2 | M56: 138.80215
A57: 48 | B57: CHOLAFIN | C57: 718.4 | D57: 719.45 | E57: 712.10 | F57: 705.80 | G57: 698.45 | H57: 725.75 | I57: 733.10 | J57: 739.40 | K57: 726.8 | L57: 713.15 | M57: 4.78845
A58: 49 | B58: CIPLA | C58: 1035.25 | D58: 1041.17 | E58: 1014.08 | F58: 992.92 | G58: 965.83 | H58: 1062.33 | I58: 1089.42 | J58: 1110.58 | K58: 1068.25 | L58: 1020 | M58: 22.26483
A59: 50 | B59: CLEAN | C59: 1375.45 | D59: 1372.48 | E59: 1357.97 | F59: 1340.48 | G59: 1325.97 | H59: 1389.97 | I59: 1404.48 | J59: 1421.97 | K59: 1387 | L59: 1355 | M59: 0.44019
A60: 51 | B60: COALINDIA | C60: 226.15 | D60: 225.97 | E60: 223.93 | F60: 221.72 | G60: 219.68 | H60: 228.18 | I60: 230.22 | J60: 232.43 | K60: 228 | L60: 223.75 | M60: 38.55827
A61: 52 | B61: COFORGE | C61: 4272.7 | D61: 4294.90 | E61: 4227.80 | F61: 4182.90 | G61: 4115.80 | H61: 4339.80 | I61: 4406.90 | J61: 4451.80 | K61: 4362 | L61: 4250 | M61: 5.21283
A62: 53 | B62: COLPAL | C62: 1451.2 | D62: 1455.20 | E62: 1442.00 | F62: 1432.80 | G62: 1419.60 | H62: 1464.40 | I62: 1477.60 | J62: 1486.80 | K62: 1468.4 | L62: 1446 | M62: 6.22544
A63: 54 | B63: CONCOR | C63: 649.6 | D63: 658.18 | E63: 636.42 | F63: 623.23 | G63: 601.47 | H63: 671.37 | I63: 693.13 | J63: 706.32 | K63: 679.95 | L63: 645 | M63: 39.14593
A64: 55 | B64: COROMANDEL | C64: 855.5 | D64: 855.05 | E64: 843.80 | F64: 832.10 | G64: 820.85 | H64: 866.75 | I64: 878.00 | J64: 889.70 | K64: 866.3 | L64: 843.35 | M64: 4.48402
A65: 56 | B65: CROMPTON | C65: 328.1 | D65: 331.40 | E65: 322.30 | F65: 316.50 | G65: 307.40 | H65: 337.20 | I65: 346.30 | J65: 352.10 | K65: 340.5 | L65: 325.6 | M65: 13.23425
A66: 57 | B66: CUMMINSIND | C66: 1384 | D66: 1391.95 | E66: 1369.30 | F66: 1354.60 | G66: 1331.95 | H66: 1406.65 | I66: 1429.30 | J66: 1444.00 | K66: 1414.6 | L66: 1377.25 | M66: 3.02117
A67: 58 | B67: DLF | C67: 352.05 | D67: 354.88 | E67: 345.57 | F67: 339.08 | G67: 329.77 | H67: 361.37 | I67: 370.68 | J67: 377.17 | K67: 364.2 | L67: 348.4 | M67: 70.32545
A68: 59 | B68: DABUR | C68: 563.3 | D68: 563.80 | E68: 560.15 | F68: 557.00 | G68: 553.35 | H68: 566.95 | I68: 570.60 | J68: 573.75 | K68: 567.45 | L68: 560.65 | M68: 8.54326
A69: 60 | B69: DALBHARAT | C69: 1728.35 | D69: 1729.17 | E69: 1703.13 | F69: 1677.92 | G69: 1651.88 | H69: 1754.38 | I69: 1780.42 | J69: 1805.63 | K69: 1755.2 | L69: 1703.95 | M69: 2.31772
A70: 61 | B70: DEEPAKNTR | C70: 1837.3 | D70: 1852.53 | E70: 1815.32 | F70: 1793.33 | G70: 1756.12 | H70: 1874.52 | I70: 1911.73 | J70: 1933.72 | K70: 1889.75 | L70: 1830.55 | M70: 3.07378
A71: 62 | B71: DELHIVERY | C71: 306.45 | D71: 309.47 | E71: 301.98 | F71: 297.52 | G71: 290.03 | H71: 313.93 | I71: 321.42 | J71: 325.88 | K71: 316.95 | L71: 305 | M71: 5.15322
A72: 63 | B72: DIVISLAB | C72: 3335.7 | D72: 3338.58 | E72: 3300.37 | F72: 3265.03 | G72: 3226.82 | H72: 3373.92 | I72: 3412.13 | J72: 3447.47 | K72: 3376.8 | L72: 3303.25 | M72: 2.39083
A73: 64 | B73: DIXON | C73: 3363.8 | D73: 3400.92 | E73: 3317.88 | F73: 3271.97 | G73: 3188.93 | H73: 3446.83 | I73: 3529.87 | J73: 3575.78 | K73: 3483.95 | L73: 3355 | M73: 2.28522
A74: 65 | B74: LALPATHLAB | C74: 2069.55 | D74: 2082.45 | E74: 2047.10 | F74: 2024.65 | G74: 1989.30 | H74: 2104.90 | I74: 2140.25 | J74: 2162.70 | K74: 2117.8 | L74: 2060 | M74: 1.49887
A75: 66 | B75: DRREDDY | C75: 4200.95 | D75: 4214.98 | E75: 4161.07 | F75: 4121.18 | G75: 4067.27 | H75: 4254.87 | I75: 4308.78 | J75: 4348.67 | K75: 4268.9 | L75: 4175.1 | M75: 2.94042
A76: 67 | B76: EICHERMOT | C76: 3213.85 | D76: 3210.73 | E76: 3186.47 | F76: 3159.08 | G76: 3134.82 | H76: 3238.12 | I76: 3262.38 | J76: 3289.77 | K76: 3235 | L76: 3183.35 | M76: 3.53061
A77: 68 | B77: EMAMILTD | C77: 420.3 | D77: 420.82 | E77: 413.48 | F77: 406.67 | G77: 399.33 | H77: 427.63 | I77: 434.97 | J77: 441.78 | K77: 428.15 | L77: 414 | M77: 0.52319
A78: 69 | B78: ESCORTS | C78: 2088.8 | D78: 2082.55 | E78: 2066.25 | F78: 2043.70 | G78: 2027.40 | H78: 2105.10 | I78: 2121.40 | J78: 2143.95 | K78: 2098.85 | L78: 2060 | M78: 0.94406
A79: 70 | B79: NYKAA | C79: 129.25 | D79: 131.62 | E79: 124.83 | F79: 120.42 | G79: 113.63 | H79: 136.03 | I79: 142.82 | J79: 147.23 | K79: 138.4 | L79: 127.2 | M79: 437.81731
A80: 71 | B80: FEDERALBNK | C80: 132.25 | D80: 132.70 | E80: 130.40 | F80: 128.55 | G80: 126.25 | H80: 134.55 | I80: 136.85 | J80: 138.70 | K80: 135 | L80: 130.85 | M80: 151.33077
A81: 72 | B81: FORTIS | C81: 277.9 | D81: 278.75 | E81: 274.65 | F81: 271.40 | G81: 267.30 | H81: 282.00 | I81: 286.10 | J81: 289.35 | K81: 282.85 | L81: 275.5 | M81: 9.28275
A82: 73 | B82: GAIL | C82: 100.9 | D82: 100.82 | E82: 99.63 | F82: 98.37 | G82: 97.18 | H82: 102.08 | I82: 103.27 | J82: 104.53 | K82: 102 | L82: 99.55 | M82: 120.07717
A83: 74 | B83: GLAND | C83: 1342.35 | D83: 1374.73 | E83: 1296.47 | F83: 1250.58 | G83: 1172.32 | H83: 1420.62 | I83: 1498.88 | J83: 1544.77 | K83: 1453 | L83: 1328.85 | M83: 27.60146
A84: 75 | B84: GODREJCP | C84: 914.2 | D84: 918.62 | E84: 908.38 | F84: 902.57 | G84: 892.33 | H84: 924.43 | I84: 934.67 | J84: 940.48 | K84: 928.85 | L84: 912.8 | M84: 4.04812
A85: 76 | B85: GODREJPROP | C85: 1196.35 | D85: 1197.80 | E85: 1185.60 | F85: 1174.85 | G85: 1162.65 | H85: 1208.55 | I85: 1220.75 | J85: 1231.50 | K85: 1210 | L85: 1187.05 | M85: 4.37605
A86: 77 | B86: GRASIM | C86: 1593.75 | D86: 1595.65 | E86: 1580.35 | F86: 1566.95 | G86: 1551.65 | H86: 1609.05 | I86: 1624.35 | J86: 1637.75 | K86: 1610.95 | L86: 1582.25 | M86: 5.01553
A87: 78 | B87: GUJGASLTD | C87: 466.3 | D87: 467.73 | E87: 462.57 | F87: 458.83 | G87: 453.67 | H87: 471.47 | I87: 476.63 | J87: 480.37 | K87: 472.9 | L87: 464 | M87: 9.07188
A88: 79 | B88: GSPL | C88: 266.7 | D88: 266.25 | E88: 262.50 | F88: 258.30 | G88: 254.55 | H88: 270.45 | I88: 274.20 | J88: 278.40 | K88: 270 | L88: 262.05 | M88: 4.99857
A89: 80 | B89: HCLTECH | C89: 1122.75 | D89: 1124.78 | E89: 1114.72 | F89: 1106.68 | G89: 1096.62 | H89: 1132.82 | I89: 1142.88 | J89: 1150.92 | K89: 1134.85 | L89: 1116.75 | M89: 26.92236
A90: 81 | B90: HDFCAMC | C90: 1934.05 | D90: 1946.60 | E90: 1913.20 | F90: 1892.35 | G90: 1858.95 | H90: 1967.45 | I90: 2000.85 | J90: 2021.70 | K90: 1980 | L90: 1925.75 | M90: 3.80524
A91: 82 | B91: HDFCBANK | C91: 1648.65 | D91: 1662.30 | E91: 1631.65 | F91: 1614.65 | G91: 1584.00 | H91: 1679.30 | I91: 1709.95 | J91: 1726.95 | K91: 1692.95 | L91: 1645.3 | M91: 73.52071
A92: 83 | B92: HDFCLIFE | C92: 585.05 | D92: 585.63 | E92: 579.52 | F92: 573.98 | G92: 567.87 | H92: 591.17 | I92: 597.28 | J92: 602.82 | K92: 591.75 | L92: 580.1 | M92: 14.43501
A93: 84 | B93: HAVELLS | C93: 1180.5 | D93: 1183.90 | E93: 1171.95 | F93: 1163.40 | G93: 1151.45 | H93: 1192.45 | I93: 1204.40 | J93: 1212.95 | K93: 1195.85 | L93: 1175.35 | M93: 2.66216
A94: 85 | B94: HEROMOTOCO | C94: 2785 | D94: 2781.33 | E94: 2769.67 | F94: 2754.33 | G94: 2742.67 | H94: 2796.67 | I94: 2808.33 | J94: 2823.67 | K94: 2793 | L94: 2766 | M94: 3.56744
A95: 86 | B95: HINDALCO | C95: 489.1 | D95: 489.67 | E95: 483.53 | F95: 477.97 | G95: 471.83 | H95: 495.23 | I95: 501.37 | J95: 506.93 | K95: 495.8 | L95: 484.1 | M95: 73.41066
A96: 87 | B96: HAL | C96: 2521.1 | D96: 2518.52 | E96: 2492.93 | F96: 2464.77 | G96: 2439.18 | H96: 2546.68 | I96: 2572.27 | J96: 2600.43 | K96: 2544.1 | L96: 2490.35 | M96: 7.21126
A97: 88 | B97: HINDPETRO | C97: 248.05 | D97: 248.03 | E97: 246.17 | F97: 244.28 | G97: 242.42 | H97: 249.92 | I97: 251.78 | J97: 253.67 | K97: 249.9 | L97: 246.15 | M97: 24.6028
A98: 89 | B98: HINDUNILVR | C98: 2622.35 | D98: 2619.45 | E98: 2596.90 | F98: 2571.45 | G98: 2548.90 | H98: 2644.90 | I98: 2667.45 | J98: 2692.90 | K98: 2642 | L98: 2594 | M98: 15.9181
A99: 90 | B99: HINDZINC | C99: 358 | D99: 356.50 | E99: 354.00 | F99: 350.00 | G99: 347.50 | H99: 360.50 | I99: 363.00 | J99: 367.00 | K99: 359 | L99: 352.5 | M99: 11.09433
A100: 91 | B100: HONAUT | C100: 39877.7 | D100: 39825.95 | E100: 39151.80 | F100: 38425.90 | G100: 37751.75 | H100: 40551.85 | I100: 41226.00 | J100: 41951.90 | K100: 40500.1 | L100: 39100.05 | M100: 0.09263
A101: 92 | B101: HDFC | C101: 2710.6 | D101: 2727.00 | E101: 2684.05 | F101: 2657.50 | G101: 2614.55 | H101: 2753.55 | I101: 2796.50 | J101: 2823.05 | K101: 2769.95 | L101: 2700.45 | M101: 22.8279
A102: 93 | B102: ICICIBANK | C102: 855.3 | D102: 860.03 | E102: 843.27 | F102: 831.23 | G102: 814.47 | H102: 872.07 | I102: 888.83 | J102: 900.87 | K102: 876.8 | L102: 848 | M102: 149.18485
A103: 94 | B103: ICICIGI | C103: 1136.95 | D103: 1134.68 | E103: 1126.72 | F103: 1116.48 | G103: 1108.52 | H103: 1144.92 | I103: 1152.88 | J103: 1163.12 | K103: 1142.65 | L103: 1124.45 | M103: 2.14543
A104: 95 | B104: ICICIPRULI | C104: 464.15 | D104: 465.73 | E104: 459.47 | F104: 454.78 | G104: 448.52 | H104: 470.42 | I104: 476.68 | J104: 481.37 | K104: 472 | L104: 461.05 | M104: 10.45167
A105: 96 | B105: ISEC | C105: 495.15 | D105: 494.95 | E105: 490.80 | F105: 486.45 | G105: 482.30 | H105: 499.30 | I105: 503.45 | J105: 507.80 | K105: 499.1 | L105: 490.6 | M105: 1.06183
A106: 97 | B106: IDFCFIRSTB | C106: 56.9 | D106: 57.47 | E106: 56.13 | F106: 55.37 | G106: 54.03 | H106: 58.23 | I106: 59.57 | J106: 60.33 | K106: 58.8 | L106: 56.7 | M106: 293.46045
A107: 98 | B107: ITC | C107: 339.25 | D107: 338.50 | E107: 336.00 | F107: 332.75 | G107: 330.25 | H107: 341.75 | I107: 344.25 | J107: 347.50 | K107: 341 | L107: 335.25 | M107: 124.97542
A108: 99 | B108: INDIAMART | C108: 4680.7 | D108: 4681.57 | E108: 4639.18 | F108: 4597.67 | G108: 4555.28 | H108: 4723.08 | I108: 4765.47 | J108: 4806.98 | K108: 4723.95 | L108: 4640.05 | M108: 0.83633
A109: 100 | B109: INDIANB | C109: 292.15 | D109: 289.42 | E109: 285.33 | F109: 278.52 | G109: 274.43 | H109: 296.23 | I109: 300.32 | J109: 307.13 | K109: 293.5 | L109: 282.6 | M109: 23.11405
A110: 101 | B110: IEX | C110: 136.9 | D110: 137.82 | E110: 135.68 | F110: 134.47 | G110: 132.33 | H110: 139.03 | I110: 141.17 | J110: 142.38 | K110: 139.95 | L110: 136.6 | M110: 33.31778
A111: 102 | B111: INDHOTEL | C111: 291.45 | D111: 294.10 | E111: 286.20 | F111: 280.95 | G111: 273.05 | H111: 299.35 | I111: 307.25 | J111: 312.50 | K111: 302 | L111: 288.85 | M111: 38.68054
A112: 103 | B112: IOC | C112: 82.5 | D112: 82.73 | E112: 82.07 | F112: 81.63 | G112: 80.97 | H112: 83.17 | I112: 83.83 | J112: 84.27 | K112: 83.4 | L112: 82.3 | M112: 81.88678
A113: 104 | B113: IRCTC | C113: 627.55 | D113: 632.25 | E113: 620.80 | F113: 614.05 | G113: 602.60 | H113: 639.00 | I113: 650.45 | J113: 657.20 | K113: 643.7 | L113: 625.5 | M113: 15.1842
A114: 105 | B114: IGL | C114: 413.15 | D114: 415.87 | E114: 406.73 | F114: 400.32 | G114: 391.18 | H114: 422.28 | I114: 431.42 | J114: 437.83 | K114: 425 | L114: 409.45 | M114: 10.51817
A115: 106 | B115: INDUSTOWER | C115: 157.9 | D115: 161.60 | E115: 151.80 | F115: 145.70 | G115: 135.90 | H115: 167.70 | I115: 177.50 | J115: 183.60 | K115: 171.4 | L115: 155.5 | M115: 152.3569
A116: 107 | B116: INDUSINDBK | C116: 1156.15 | D116: 1172.83 | E116: 1134.67 | F116: 1113.18 | G116: 1075.02 | H116: 1194.32 | I116: 1232.48 | J116: 1253.97 | K116: 1211 | L116: 1151.35 | M116: 34.20414
A117: 108 | B117: NAUKRI | C117: 3668.25 | D117: 3671.70 | E117: 3615.40 | F117: 3562.55 | G117: 3506.25 | H117: 3724.55 | I117: 3780.85 | J117: 3833.70 | K117: 3728 | L117: 3618.85 | M117: 2.93762
A118: 109 | B118: INFY | C118: 1543 | D118: 1545.92 | E118: 1535.83 | F118: 1528.67 | G118: 1518.58 | H118: 1553.08 | I118: 1563.17 | J118: 1570.33 | K118: 1556 | L118: 1538.75 | M118: 41.58617
A119: 110 | B119: INDIGO | C119: 2109.25 | D119: 2099.75 | E119: 2079.50 | F119: 2049.75 | G119: 2029.50 | H119: 2129.50 | I119: 2149.75 | J119: 2179.50 | K119: 2120 | L119: 2070 | M119: 8.47403
A120: 111 | B120: IPCALAB | C120: 862.4 | D120: 859.23 | E120: 849.17 | F120: 835.93 | G120: 825.87 | H120: 872.47 | I120: 882.53 | J120: 895.77 | K120: 869.3 | L120: 846 | M120: 1.80221
A121: 112 | B121: JSWENERGY | C121: 241.8 | D121: 243.60 | E121: 238.25 | F121: 234.70 | G121: 229.35 | H121: 247.15 | I121: 252.50 | J121: 256.05 | K121: 248.95 | L121: 240.05 | M121: 4.15539
A122: 113 | B122: JSWSTEEL | C122: 724.65 | D122: 722.85 | E122: 718.80 | F122: 712.95 | G122: 708.90 | H122: 728.70 | I122: 732.75 | J122: 738.60 | K122: 726.9 | L122: 717 | M122: 15.67673
A123: 114 | B123: JINDALSTEL | C123: 595.35 | D123: 596.15 | E123: 589.30 | F123: 583.25 | G123: 576.40 | H123: 602.20 | I123: 609.05 | J123: 615.10 | K123: 603 | L123: 590.1 | M123: 17.96224
A124: 115 | B124: JUBLFOOD | C124: 493.85 | D124: 496.15 | E124: 489.70 | F124: 485.55 | G124: 479.10 | H124: 500.30 | I124: 506.75 | J124: 510.90 | K124: 502.6 | L124: 492 | M124: 12.14554
A125: 116 | B125: KOTAKBANK | C125: 1749.8 | D125: 1747.73 | E125: 1735.07 | F125: 1720.33 | G125: 1707.67 | H125: 1762.47 | I125: 1775.13 | J125: 1789.87 | K125: 1760.4 | L125: 1733 | M125: 42.80333
A126: 117 | B126: L&TFH | C126: 89.3 | D126: 89.57 | E126: 88.43 | F126: 87.57 | G126: 86.43 | H126: 90.43 | I126: 91.57 | J126: 92.43 | K126: 90.7 | L126: 88.7 | M126: 86.34902
A127: 118 | B127: LTTS | C127: 3309.4 | D127: 3343.80 | E127: 3266.60 | F127: 3223.80 | G127: 3146.60 | H127: 3386.60 | I127: 3463.80 | J127: 3506.60 | K127: 3421 | L127: 3301 | M127: 3.20245
A128: 119 | B128: LICHSGFIN | C128: 390 | D128: 390.08 | E128: 386.57 | F128: 383.13 | G128: 379.62 | H128: 393.52 | I128: 397.03 | J128: 400.47 | K128: 393.6 | L128: 386.65 | M128: 18.32958
A129: 120 | B129: LTIM | C129: 4430.65 | D129: 4449.48 | E129: 4393.97 | F129: 4357.28 | G129: 4301.77 | H129: 4486.17 | I129: 4541.68 | J129: 4578.37 | K129: 4505 | L129: 4412.8 | M129: 3.12847
A130: 121 | B130: LT | C130: 2174.7 | D130: 2178.23 | E130: 2151.47 | F130: 2128.23 | G130: 2101.47 | H130: 2201.47 | I130: 2228.23 | J130: 2251.47 | K130: 2205 | L130: 2155 | M130: 21.34447
A131: 122 | B131: LAURUSLABS | C131: 342.2 | D131: 342.60 | E131: 339.00 | F131: 335.80 | G131: 332.20 | H131: 345.80 | I131: 349.40 | J131: 352.60 | K131: 346.2 | L131: 339.4 | M131: 15.69346
A132: 123 | B132: LICI | C132: 689.4 | D132: 693.45 | E132: 681.95 | F132: 674.50 | G132: 663.00 | H132: 700.90 | I132: 712.40 | J132: 719.85 | K132: 704.95 | L132: 686 | M132: 8.64582
A133: 124 | B133: LINDEINDIA | C133: 3368.9 | D133: 3371.65 | E133: 3342.50 | F133: 3316.10 | G133: 3286.95 | H133: 3398.05 | I133: 3427.20 | J133: 3453.60 | K133: 3400.8 | L133: 3345.25 | M133: 0.10007
A134: 125 | B134: LUPIN | C134: 747.2 | D134: 747.07 | E134: 740.13 | F134: 733.07 | G134: 726.13 | H134: 754.13 | I134: 761.07 | J134: 768.13 | K134: 754 | L134: 740 | M134: 6.77388
A135: 126 | B135: MRF | C135: 89571.75 | D135: 89479.12 | E135: 88522.23 | F135: 87472.72 | G135: 86515.83 | H135: 90528.63 | I135: 91485.52 | J135: 92535.03 | K135: 90436 | L135: 88429.6 | M135: 0.05737
A136: 127 | B136: M&MFIN | C136: 229.65 | D136: 230.97 | E136: 227.03 | F136: 224.42 | G136: 220.48 | H136: 233.58 | I136: 237.52 | J136: 240.13 | K136: 234.9 | L136: 228.35 | M136: 17.04055
A137: 128 | B137: M&M | C137: 1311.5 | D137: 1316.52 | E137: 1301.03 | F137: 1290.57 | G137: 1275.08 | H137: 1326.98 | I137: 1342.47 | J137: 1352.93 | K137: 1332 | L137: 1306.05 | M137: 13.5909
A138: 129 | B138: MARICO | C138: 505.4 | D138: 503.57 | E138: 500.08 | F138: 494.77 | G138: 491.28 | H138: 508.88 | I138: 512.37 | J138: 517.68 | K138: 507.05 | L138: 498.25 | M138: 6.81724
A139: 130 | B139: MARUTI | C139: 8784.1 | D139: 8765.80 | E139: 8698.60 | F139: 8613.10 | G139: 8545.90 | H139: 8851.30 | I139: 8918.50 | J139: 9004.00 | K139: 8833 | L139: 8680.3 | M139: 11.31883
A140: 131 | B140: MFSL | C140: 853.85 | D140: 857.77 | E140: 841.13 | F140: 828.42 | G140: 811.78 | H140: 870.48 | I140: 887.12 | J140: 899.83 | K140: 874.4 | L140: 845.05 | M140: 16.52856
A141: 132 | B141: MAXHEALTH | C141: 438.15 | D141: 434.67 | E141: 428.53 | F141: 418.92 | G141: 412.78 | H141: 444.28 | I141: 450.42 | J141: 460.03 | K141: 440.8 | L141: 425.05 | M141: 22.11079
A142: 133 | B142: MSUMI | C142: 50.85 | D142: 50.65 | E142: 50.10 | F142: 49.35 | G142: 48.80 | H142: 51.40 | I142: 51.95 | J142: 52.70 | K142: 51.2 | L142: 49.9 | M142: 49.50265
A143: 134 | B143: MPHASIS | C143: 2070 | D143: 2083.82 | E143: 2043.78 | F143: 2017.57 | G143: 1977.53 | H143: 2110.03 | I143: 2150.07 | J143: 2176.28 | K143: 2123.85 | L143: 2057.6 | M143: 3.88559
A144: 135 | B144: MUTHOOTFIN | C144: 1040.05 | D144: 1041.63 | E144: 1025.02 | F144: 1009.98 | G144: 993.37 | H144: 1056.67 | I144: 1073.28 | J144: 1088.32 | K144: 1058.25 | L144: 1026.6 | M144: 6.78345
A145: 136 | B145: NTPC | C145: 165.9 | D145: 165.63 | E145: 164.67 | F145: 163.43 | G145: 162.47 | H145: 166.87 | I145: 167.83 | J145: 169.07 | K145: 166.6 | L145: 164.4 | M145: 92.5737
A146: 137 | B146: NATIONALUM | C146: 82.65 | D146: 82.82 | E146: 82.03 | F146: 81.42 | G146: 80.63 | H146: 83.43 | I146: 84.22 | J146: 84.83 | K146: 83.6 | L146: 82.2 | M146: 107.68801
A147: 138 | B147: NAVINFLUOR | C147: 3820.95 | D147: 3855.25 | E147: 3766.75 | F147: 3712.55 | G147: 3624.05 | H147: 3909.45 | I147: 3997.95 | J147: 4052.15 | K147: 3943.75 | L147: 3801.05 | M147: 0.59786
A148: 139 | B148: NESTLEIND | C148: 19235.5 | D148: 19245.33 | E148: 19140.17 | F148: 19044.83 | G148: 18939.67 | H148: 19340.67 | I148: 19445.83 | J148: 19541.17 | K148: 19350.5 | L148: 19150 | M148: 0.4116
A149: 140 | B149: NAM-INDIA | C149: 241.75 | D149: 242.73 | E149: 240.02 | F149: 238.28 | G149: 235.57 | H149: 244.47 | I149: 247.18 | J149: 248.92 | K149: 245.45 | L149: 241 | M149: 1.51035
A150: 141 | B150: OBEROIRLTY | C150: 808.3 | D150: 811.73 | E150: 795.77 | F150: 783.23 | G150: 767.27 | H150: 824.27 | I150: 840.23 | J150: 852.77 | K150: 827.7 | L150: 799.2 | M150: 7.88468
A151: 142 | B151: ONGC | C151: 152.45 | D151: 152.33 | E151: 151.27 | F151: 150.08 | G151: 149.02 | H151: 153.52 | I151: 154.58 | J151: 155.77 | K151: 153.4 | L151: 151.15 | M151: 98.27342
A152: 143 | B152: OIL | C152: 235.8 | D152: 236.42 | E152: 233.08 | F152: 230.37 | G152: 227.03 | H152: 239.13 | I152: 242.47 | J152: 245.18 | K152: 239.75 | L152: 233.7 | M152: 4.82688
A153: 144 | B153: PAYTM | C153: 532.95 | D153: 536.10 | E153: 525.35 | F153: 517.75 | G153: 507.00 | H153: 543.70 | I153: 554.45 | J153: 562.05 | K153: 546.85 | L153: 528.5 | M153: 25.49852
A154: 145 | B154: OFSS | C154: 3083.5 | D154: 3089.83 | E154: 3062.22 | F154: 3040.93 | G154: 3013.32 | H154: 3111.12 | I154: 3138.73 | J154: 3160.02 | K154: 3117.45 | L154: 3068.55 | M154: 0.55872
A155: 146 | B155: POLICYBZR | C155: 405.95 | D155: 408.98 | E155: 393.47 | F155: 380.98 | G155: 365.47 | H155: 421.47 | I155: 436.98 | J155: 449.47 | K155: 424.5 | L155: 396.5 | M155: 15.82388
A156: 147 | B156: PIIND | C156: 2974.15 | D156: 2992.17 | E156: 2948.68 | F156: 2923.22 | G156: 2879.73 | H156: 3017.63 | I156: 3061.12 | J156: 3086.58 | K156: 3035.65 | L156: 2966.7 | M156: 3.65308
A157: 148 | B157: PAGEIND | C157: 39854.9 | D157: 39804.97 | E157: 39499.93 | F157: 39144.97 | G157: 38839.93 | H157: 40159.93 | I157: 40464.97 | J157: 40819.93 | K157: 40110 | L157: 39450 | M157: 0.10399
A158: 149 | B158: PATANJALI | C158: 1162.3 | D158: 1173.35 | E158: 1136.70 | F158: 1111.10 | G158: 1074.45 | H158: 1198.95 | I158: 1235.60 | J158: 1261.20 | K158: 1210 | L158: 1147.75 | M158: 2.12806
A159: 150 | B159: PERSISTENT | C159: 4594 | D159: 4575.12 | E159: 4535.23 | F159: 4476.47 | G159: 4436.58 | H159: 4633.88 | I159: 4673.77 | J159: 4732.53 | K159: 4615 | L159: 4516.35 | M159: 4.80661
A160: 151 | B160: PETRONET | C160: 225.25 | D160: 226.62 | E160: 222.48 | F160: 219.72 | G160: 215.58 | H160: 229.38 | I160: 233.52 | J160: 236.28 | K160: 230.75 | L160: 223.85 | M160: 11.76777
A161: 152 | B161: PIDILITIND | C161: 2315.3 | D161: 2322.10 | E161: 2292.20 | F161: 2269.10 | G161: 2239.20 | H161: 2345.20 | I161: 2375.10 | J161: 2398.20 | K161: 2352 | L161: 2299 | M161: 8.36733
A162: 153 | B162: POLYCAB | C162: 2817.7 | D162: 2811.28 | E162: 2796.42 | F162: 2775.13 | G162: 2760.27 | H162: 2832.57 | I162: 2847.43 | J162: 2868.72 | K162: 2826.15 | L162: 2790 | M162: 2.3221
A163: 154 | B163: POONAWALLA | C163: 299 | D163: 299.35 | E163: 295.65 | F163: 292.30 | G163: 288.60 | H163: 302.70 | I163: 306.40 | J163: 309.75 | K163: 303.05 | L163: 296 | M163: 27.07628
A164: 155 | B164: PFC | C164: 143.45 | D164: 145.08 | E164: 140.77 | F164: 138.08 | G164: 133.77 | H164: 147.77 | I164: 152.08 | J164: 154.77 | K164: 149.4 | L164: 142.4 | M164: 160.20537
A165: 156 | B165: POWERGRID | C165: 219.4 | D165: 219.48 | E165: 217.72 | F165: 216.03 | G165: 214.27 | H165: 221.17 | I165: 222.93 | J165: 224.62 | K165: 221.25 | L165: 217.8 | M165: 43.42749
A166: 157 | B166: PRESTIGE | C166: 432.4 | D166: 432.40 | E166: 429.00 | F166: 425.60 | G166: 422.20 | H166: 435.80 | I166: 439.20 | J166: 442.60 | K166: 435.8 | L166: 429 | M166: 0.73979
A167: 158 | B167: PGHH | C167: 13533.15 | D167: 13519.37 | E167: 13453.78 | F167: 13374.42 | G167: 13308.83 | H167: 13598.73 | I167: 13664.32 | J167: 13743.68 | K167: 13584.95 | L167: 13440 | M167: 0.01138
A168: 159 | B168: PNB | C168: 53.7 | D168: 54.13 | E168: 52.72 | F168: 51.73 | G168: 50.32 | H168: 55.12 | I168: 56.53 | J168: 57.52 | K168: 55.55 | L168: 53.15 | M168: 835.14024
A169: 160 | B169: RECLTD | C169: 120.5 | D169: 121.10 | E169: 119.00 | F169: 117.50 | G169: 115.40 | H169: 122.60 | I169: 124.70 | J169: 126.20 | K169: 123.2 | L169: 119.6 | M169: 106.32753
A170: 161 | B170: RELIANCE | C170: 2382.55 | D170: 2392.42 | E170: 2370.13 | F170: 2357.72 | G170: 2335.43 | H170: 2404.83 | I170: 2427.12 | J170: 2439.53 | K170: 2414.7 | L170: 2380 | M170: 57.15684
A171: 162 | B171: SBICARD | C171: 715.1 | D171: 723.42 | E171: 702.83 | F171: 690.57 | G171: 669.98 | H171: 735.68 | I171: 756.27 | J171: 768.53 | K171: 744 | L171: 711.15 | M171: 58.95355
A172: 163 | B172: SBILIFE | C172: 1257.45 | D172: 1262.10 | E172: 1245.40 | F172: 1233.35 | G172: 1216.65 | H172: 1274.15 | I172: 1290.85 | J172: 1302.90 | K172: 1278.8 | L172: 1250.05 | M172: 5.99832
A173: 164 | B173: SRF | C173: 2128.35 | D173: 2117.95 | E173: 2095.90 | F173: 2063.45 | G173: 2041.40 | H173: 2150.40 | I173: 2172.45 | J173: 2204.90 | K173: 2140 | L173: 2085.5 | M173: 5.06083
A174: 165 | B174: MOTHERSON | C174: 72.65 | D174: 72.82 | E174: 71.73 | F174: 70.82 | G174: 69.73 | H174: 73.73 | I174: 74.82 | J174: 75.73 | K174: 73.9 | L174: 71.9 | M174: 71.70245
A175: 166 | B175: SHREECEM | C175: 22146.8 | D175: 22313.82 | E175: 21835.03 | F175: 21523.27 | G175: 21044.48 | H175: 22625.58 | I175: 23104.37 | J175: 23416.13 | K175: 22792.6 | L175: 22002.05 | M175: 0.47092
A176: 167 | B176: SRTRANSFIN
A177: 168 | B177: SIEMENS | C177: 2995.3 | D177: 3000.47 | E177: 2958.83 | F177: 2922.37 | G177: 2880.73 | H177: 3036.93 | I177: 3078.57 | J177: 3115.03 | K177: 3042.1 | L177: 2964 | M177: 2.57663
A178: 169 | B178: SONACOMS | C178: 455 | D178: 450.87 | E178: 440.73 | F178: 426.47 | G178: 416.33 | H178: 465.13 | I178: 475.27 | J178: 489.53 | K178: 461 | L178: 436.6 | M178: 53.92461
A179: 170 | B179: SBIN | C179: 568.7 | D179: 577.32 | E179: 558.78 | F179: 548.87 | G179: 530.33 | H179: 587.23 | I179: 605.77 | J179: 615.68 | K179: 595.85 | L179: 567.4 | M179: 256.86294
A180: 171 | B180: SAIL | C180: 89.9 | D180: 90.15 | E180: 88.90 | F180: 87.90 | G180: 86.65 | H180: 91.15 | I180: 92.40 | J180: 93.40 | K180: 91.4 | L180: 89.15 | M180: 170.9277
A181: 172 | B181: SUNPHARMA | C181: 1040.05 | D181: 1038.67 | E181: 1031.68 | F181: 1023.32 | G181: 1016.33 | H181: 1047.03 | I181: 1054.02 | J181: 1062.38 | K181: 1045.65 | L181: 1030.3 | M181: 17.53333
A182: 173 | B182: SUNTV | C182: 466.3 | D182: 469.42 | E182: 460.78 | F182: 455.27 | G182: 446.63 | H182: 474.93 | I182: 483.57 | J182: 489.08 | K182: 478.05 | L182: 463.9 | M182: 11.35822
A183: 174 | B183: SYNGENE | C183: 572 | D183: 574.45 | E183: 567.55 | F183: 563.10 | G183: 556.20 | H183: 578.90 | I183: 585.80 | J183: 590.25 | K183: 581.35 | L183: 570 | M183: 4.19602
A184: 175 | B184: TVSMOTOR | C184: 1037.9 | D184: 1024.52 | E184: 1005.38 | F184: 972.87 | G184: 953.73 | H184: 1057.03 | I184: 1076.17 | J184: 1108.68 | K184: 1043.65 | L184: 992 | M184: 54.61484
A185: 176 | B185: TATACHEM | C185: 950.4 | D185: 956.27 | E185: 942.53 | F185: 934.67 | G185: 920.93 | H185: 964.13 | I185: 977.87 | J185: 985.73 | K185: 970 | L185: 948.4 | M185: 6.23055
A186: 177 | B186: TATACOMM | C186: 1284.75 | D186: 1294.68 | E186: 1265.42 | F186: 1246.08 | G186: 1216.82 | H186: 1314.02 | I186: 1343.28 | J186: 1362.62 | K186: 1323.95 | L186: 1275.35 | M186: 5.36238
A187: 178 | B187: TCS | C187: 3429.75 | D187: 3423.25 | E187: 3411.50 | F187: 3393.25 | G187: 3381.50 | H187: 3441.50 | I187: 3453.25 | J187: 3471.50 | K187: 3435 | L187: 3405 | M187: 8.7411
A188: 179 | B188: TATACONSUM | C188: 740.05 | D188: 737.92 | E188: 733.33 | F188: 726.62 | G188: 722.03 | H188: 744.63 | I188: 749.22 | J188: 755.93 | K188: 742.5 | L188: 731.2 | M188: 8.68627
A189: 180 | B189: TATAELXSI | C189: 6597.2 | D189: 6643.03 | E189: 6531.07 | F189: 6464.93 | G189: 6352.97 | H189: 6709.17 | I189: 6821.13 | J189: 6887.27 | K189: 6755 | L189: 6576.9 | M189: 1.747
A190: 181 | B190: TATAMOTORS | C190: 419.05 | D190: 421.33 | E190: 415.42 | F190: 411.78 | G190: 405.87 | H190: 424.97 | I190: 430.88 | J190: 434.52 | K190: 427.25 | L190: 417.7 | M190: 229.75581
A191: 182 | B191: TATAPOWER | C191: 201.45 | D191: 202.85 | E191: 199.45 | F191: 197.45 | G191: 194.05 | H191: 204.85 | I191: 208.25 | J191: 210.25 | K191: 206.25 | L191: 200.85 | M191: 96.8103
A192: 183 | B192: TATASTEEL | C192: 121 | D192: 121.12 | E192: 119.98 | F192: 118.97 | G192: 117.83 | H192: 122.13 | I192: 123.27 | J192: 124.28 | K192: 122.25 | L192: 120.1 | M192: 465.22102
A193: 184 | B193: TTML | C193: 81.1 | D193: 81.22 | E193: 79.58 | F193: 78.07 | G193: 76.43 | H193: 82.73 | I193: 84.37 | J193: 85.88 | K193: 82.85 | L193: 79.7 | M193: 13.65359
A194: 185 | B194: TECHM | C194: 1051.15 | D194: 1055.95 | E194: 1044.20 | F194: 1037.25 | G194: 1025.50 | H194: 1062.90 | I194: 1074.65 | J194: 1081.60 | K194: 1067.7 | L194: 1049 | M194: 10.49973
A195: 186 | B195: RAMCOCEM | C195: 670.3 | D195: 671.60 | E195: 664.50 | F195: 658.70 | G195: 651.60 | H195: 677.40 | I195: 684.50 | J195: 690.30 | K195: 678.7 | L195: 665.8 | M195: 3.05396
A196: 187 | B196: TITAN | C196: 2356.6 | D196: 2353.38 | E196: 2336.77 | F196: 2316.93 | G196: 2300.32 | H196: 2373.22 | I196: 2389.83 | J196: 2409.67 | K196: 2370 | L196: 2333.55 | M196: 6.50664
A197: 188 | B197: TORNTPHARM | C197: 1556.75 | D197: 1565.07 | E197: 1540.23 | F197: 1523.72 | G197: 1498.88 | H197: 1581.58 | I197: 1606.42 | J197: 1622.93 | K197: 1589.9 | L197: 1548.55 | M197: 1.58709
A198: 189 | B198: TORNTPOWER | C198: 465 | D198: 466.45 | E198: 459.80 | F198: 454.60 | G198: 447.95 | H198: 471.65 | I198: 478.30 | J198: 483.50 | K198: 473.1 | L198: 461.25 | M198: 5.40495
A199: 190 | B199: TRENT | C199: 1212.1 | D199: 1205.55 | E199: 1191.65 | F199: 1171.20 | G199: 1157.30 | H199: 1226.00 | I199: 1239.90 | J199: 1260.35 | K199: 1219.45 | L199: 1185.1 | M199: 7.65489
A200: 191 | B200: TRIDENT | C200: 32.55 | D200: 32.67 | E200: 32.33 | F200: 32.12 | G200: 31.78 | H200: 32.88 | I200: 33.22 | J200: 33.43 | K200: 33 | L200: 32.45 | M200: 22.78518
A201: 192 | B201: TIINDIA | C201: 2570.15 | D201: 2586.37 | E201: 2539.33 | F201: 2508.52 | G201: 2461.48 | H201: 2617.18 | I201: 2664.22 | J201: 2695.03 | K201: 2633.4 | L201: 2555.55 | M201: 0.53848
A202: 193 | B202: UPL | C202: 737.95 | D202: 739.98 | E202: 733.22 | F202: 728.48 | G202: 721.72 | H202: 744.72 | I202: 751.48 | J202: 756.22 | K202: 746.75 | L202: 735.25 | M202: 18.65988
A203: 194 | B203: ULTRACEMCO | C203: 6705.1 | D203: 6735.98 | E203: 6641.12 | F203: 6577.13 | G203: 6482.27 | H203: 6799.97 | I203: 6894.83 | J203: 6958.82 | K203: 6830.85 | L203: 6672 | M203: 5.09299
A204: 195 | B204: UNIONBANK | C204: 78.4 | D204: 78.78 | E204: 77.12 | F204: 75.83 | G204: 74.17 | H204: 80.07 | I204: 81.73 | J204: 83.02 | K204: 80.45 | L204: 77.5 | M204: 111.52007
A205: 196 | B205: UBL | C205: 1572.15 | D205: 1567.62 | E205: 1560.23 | F205: 1548.32 | G205: 1540.93 | H205: 1579.53 | I205: 1586.92 | J205: 1598.83 | K205: 1575 | L205: 1555.7 | M205: 1.10987
... 29 more rows

Sheet MidCap Intra
L5: Back To Main Page
A6: FOR INTRA DAY TRADING | K6: =Main!B10 -> 2023-01-27
A9: Sr.no | B9: Scrip | C9: CLOSE RATE | D9: Pivot Point | E9: Supports | H9: Resistances
E10: S1 | F10: S2 | G10: S3 | H10: R1 | I10: R2 | J10: R3 | K10: HIGH | L10: LOW | M10: Total Trade Quanity in Lakhs
A11: 1 | B11: 3MINDIA | C11: 22706.6 | D11: 22642.27 | E11: 22484.63 | F11: 22262.67 | G11: 22105.03 | H11: 22864.23 | I11: 23021.87 | J11: 23243.83 | K11: 22799.9 | L11: 22420.3 | M11: 0.00845
A12: 2 | B12: ABB | C12: 2873.35 | D12: 2894.25 | E12: 2841.50 | F12: 2809.65 | G12: 2756.90 | H12: 2926.10 | I12: 2978.85 | J12: 3010.70 | K12: 2947 | L12: 2862.4 | M12: 1.91195
A13: 3 | B13: ACC | C13: 2165.7 | D13: 2217.65 | E13: 2105.35 | F13: 2045.00 | G13: 1932.70 | H13: 2278.00 | I13: 2390.30 | J13: 2450.65 | K13: 2329.95 | L13: 2157.3 | M13: 12.24929
A14: 4 | B14: AIAENG | C14: 2481.75 | D14: 2465.37 | E14: 2444.38 | F14: 2407.02 | G14: 2386.03 | H14: 2502.73 | I14: 2523.72 | J14: 2561.08 | K14: 2486.35 | L14: 2428 | M14: 0.25852
A15: 5 | B15: APLAPOLLO | C15: 1154.3 | D15: 1156.18 | E15: 1146.62 | F15: 1138.93 | G15: 1129.37 | H15: 1163.87 | I15: 1173.43 | J15: 1181.12 | K15: 1165.75 | L15: 1148.5 | M15: 3.56529
A16: 6 | B16: AUBANK | C16: 615.9 | D16: 621.45 | E16: 607.95 | F16: 600.00 | G16: 586.50 | H16: 629.40 | I16: 642.90 | J16: 650.85 | K16: 634.95 | L16: 613.5 | M16: 15.57125
A17: 7 | B17: AARTIDRUGS | C17: 406.4 | D17: 408.12 | E17: 400.68 | F17: 394.97 | G17: 387.53 | H17: 413.83 | I17: 421.27 | J17: 426.98 | K17: 415.55 | L17: 402.4 | M17: 0.62387
A18: 8 | B18: AAVAS | C18: 1901.75 | D18: 1880.58 | E18: 1836.17 | F18: 1770.58 | G18: 1726.17 | H18: 1946.17 | I18: 1990.58 | J18: 2056.17 | K18: 1925 | L18: 1815 | M18: 0.82131
A19: 9 | B19: ABBOTINDIA | C19: 21286.8 | D19: 21398.03 | E19: 21106.22 | F19: 20925.63 | G19: 20633.82 | H19: 21578.62 | I19: 21870.43 | J19: 22051.02 | K19: 21689.85 | L19: 21217.45 | M19: 0.08811
A20: 10 | B20: ADANIENT | C20: 3388.95 | D20: 3377.32 | E20: 3326.63 | F20: 3264.32 | G20: 3213.63 | H20: 3439.63 | I20: 3490.32 | J20: 3552.63 | K20: 3428 | L20: 3315 | M20: 36.86439
A21: 11 | B21: ADANIGREEN | C21: 1857.8 | D21: 1870.08 | E21: 1827.72 | F21: 1797.63 | G21: 1755.27 | H21: 1900.17 | I21: 1942.53 | J21: 1972.62 | K21: 1912.45 | L21: 1840 | M21: 12.19566
A22: 12 | B22: ADANIPORTS | C22: 713.15 | D22: 725.35 | E22: 693.80 | F22: 674.45 | G22: 642.90 | H22: 744.70 | I22: 776.25 | J22: 795.60 | K22: 756.9 | L22: 706 | M22: 170.85455
A23: 13 | B23: ATGL | C23: 3660 | D23: 3714.95 | E23: 3545.05 | F23: 3430.10 | G23: 3260.20 | H23: 3829.90 | I23: 3999.80 | J23: 4114.75 | K23: 3884.85 | L23: 3600 | M23: 5.15358
A24: 14 | B24: ADANITRANS | C24: 2517.75 | D24: 2563.13 | E24: 2388.52 | F24: 2259.28 | G24: 2084.67 | H24: 2692.37 | I24: 2866.98 | J24: 2996.22 | K24: 2737.75 | L24: 2433.9 | M24: 6.64314
A25: 15 | B25: AWL | C25: 544.05 | D25: 553.92 | E25: 534.18 | F25: 524.32 | G25: 504.58 | H25: 563.78 | I25: 583.52 | J25: 593.38 | K25: 573.65 | L25: 544.05 | M25: 33.76652
A26: 16 | B26: ABCAPITAL | C26: 139.65 | D26: 140.98 | E26: 137.87 | F26: 136.08 | G26: 132.97 | H26: 142.77 | I26: 145.88 | J26: 147.67 | K26: 144.1 | L26: 139.2 | M26: 31.79143
A27: 17 | B27: ABFRL | C27: 255.9 | D27: 256.52 | E27: 252.08 | F27: 248.27 | G27: 243.83 | H27: 260.33 | I27: 264.77 | J27: 268.58 | K27: 260.95 | L27: 252.7 | M27: 17.83139
A28: 18 | B28: ABSLAMC | C28: 442 | D28: 440.42 | E28: 437.93 | F28: 433.87 | G28: 431.38 | H28: 444.48 | I28: 446.97 | J28: 451.03 | K28: 442.9 | L28: 436.35 | M28: 2.91857
A29: 19 | B29: AEGISCHEM | C29: 342.85 | D29: 343.05 | E29: 340.95 | F29: 339.05 | G29: 336.95 | H29: 344.95 | I29: 347.05 | J29: 348.95 | K29: 345.15 | L29: 341.15 | M29: 1.53838
A30: 20 | B30: AETHER | C30: 894.05 | D30: 898.05 | E30: 886.10 | F30: 878.15 | G30: 866.20 | H30: 906.00 | I30: 917.95 | J30: 925.90 | K30: 910 | L30: 890.1 | M30: 0.24179
A31: 21 | B31: AFFLE | C31: 1049.35 | D31: 1046.12 | E31: 1030.23 | F31: 1011.12 | G31: 995.23 | H31: 1065.23 | I31: 1081.12 | J31: 1100.23 | K31: 1062 | L31: 1027 | M31: 1.63737
A32: 22 | B32: AJANTPHARM | C32: 1199 | D32: 1193.03 | E32: 1181.02 | F32: 1163.03 | G32: 1151.02 | H32: 1211.02 | I32: 1223.03 | J32: 1241.02 | K32: 1205.05 | L32: 1175.05 | M32: 0.58023
A33: 23 | B33: APLLTD | C33: 546 | D33: 547.75 | E33: 541.70 | F33: 537.40 | G33: 531.35 | H33: 552.05 | I33: 558.10 | J33: 562.40 | K33: 553.8 | L33: 543.45 | M33: 0.36187
A34: 24 | B34: ALKEM | C34: 3020.2 | D34: 3010.65 | E34: 2992.55 | F34: 2964.90 | G34: 2946.80 | H34: 3038.30 | I34: 3056.40 | J34: 3084.05 | K34: 3028.75 | L34: 2983 | M34: 0.67844
A35: 25 | B35: ALKYLAMINE | C35: 2634.95 | D35: 2630.12 | E35: 2611.23 | F35: 2587.52 | G35: 2568.63 | H35: 2653.83 | I35: 2672.72 | J35: 2696.43 | K35: 2649 | L35: 2606.4 | M35: 0.12052
A36: 26 | B36: ALLCARGO | C36: 412.3 | D36: 417.17 | E36: 405.58 | F36: 398.87 | G36: 387.28 | H36: 423.88 | I36: 435.47 | J36: 442.18 | K36: 428.75 | L36: 410.45 | M36: 2.61586
A37: 27 | B37: ALOKINDS | C37: 13.45 | D37: 13.60 | E37: 13.15 | F37: 12.85 | G37: 12.40 | H37: 13.90 | I37: 14.35 | J37: 14.65 | K37: 14.05 | L37: 13.3 | M37: 18.95766
A38: 28 | B38: AMARAJABAT | C38: 564.8 | D38: 566.52 | E38: 560.38 | F38: 555.97 | G38: 549.83 | H38: 570.93 | I38: 577.07 | J38: 581.48 | K38: 572.65 | L38: 562.1 | M38: 1.69094
A39: 29 | B39: AMBER | C39: 2023.25 | D39: 2029.77 | E39: 1986.28 | F39: 1949.32 | G39: 1905.83 | H39: 2066.73 | I39: 2110.22 | J39: 2147.18 | K39: 2073.25 | L39: 1992.8 | M39: 0.84241
A40: 30 | B40: AMBUJACEM | C40: 460.2 | D40: 469.63 | E40: 441.27 | F40: 422.33 | G40: 393.97 | H40: 488.57 | I40: 516.93 | J40: 535.87 | K40: 498 | L40: 450.7 | M40: 336.46469
A41: 31 | B41: ANGELONE | C41: 1251.65 | D41: 1257.23 | E41: 1238.02 | F41: 1224.38 | G41: 1205.17 | H41: 1270.87 | I41: 1290.08 | J41: 1303.72 | K41: 1276.45 | L41: 1243.6 | M41: 1.48361
A42: 32 | B42: ANURAS | C42: 599.8 | D42: 608.57 | E42: 589.23 | F42: 578.67 | G42: 559.33 | H42: 619.13 | I42: 638.47 | J42: 649.03 | K42: 627.9 | L42: 598 | M42: 1.0989
A43: 33 | B43: APOLLOHOSP | C43: 4224.35 | D43: 4245.45 | E43: 4172.90 | F43: 4121.45 | G43: 4048.90 | H43: 4296.90 | I43: 4369.45 | J43: 4420.90 | K43: 4318 | L43: 4194 | M43: 4.23714
A44: 34 | B44: APOLLOTYRE | C44: 322.3 | D44: 321.22 | E44: 318.08 | F44: 313.87 | G44: 310.73 | H44: 325.43 | I44: 328.57 | J44: 332.78 | K44: 324.35 | L44: 317 | M44: 34.55839
A45: 35 | B45: APTUS | C45: 283.4 | D45: 284.08 | E45: 281.37 | F45: 279.33 | G45: 276.62 | H45: 286.12 | I45: 288.83 | J45: 290.87 | K45: 286.8 | L45: 282.05 | M45: 0.41623
A46: 36 | B46: ASAHIINDIA | C46: 493.9 | D46: 496.97 | E46: 484.93 | F46: 475.97 | G46: 463.93 | H46: 505.93 | I46: 517.97 | J46: 526.93 | K46: 509 | L46: 488 | M46: 2.22776
A47: 37 | B47: ASHOKLEY | C47: 146.35 | D47: 145.98 | E47: 144.37 | F47: 142.38 | G47: 140.77 | H47: 147.97 | I47: 149.58 | J47: 151.57 | K47: 147.6 | L47: 144 | M47: 97.06026
A48: 38 | B48: ASIANPAINT | C48: 2775 | D48: 2784.37 | E48: 2757.73 | F48: 2740.47 | G48: 2713.83 | H48: 2801.63 | I48: 2828.27 | J48: 2845.53 | K48: 2811 | L48: 2767.1 | M48: 8.57953
A49: 39 | B49: ASTERDM | C49: 214.95 | D49: 216.13 | E49: 212.82 | F49: 210.68 | G49: 207.37 | H49: 218.27 | I49: 221.58 | J49: 223.72 | K49: 219.45 | L49: 214 | M49: 0.90466
A50: 40 | B50: ASTRAZEN | C50: 3394.5 | D50: 3402.53 | E50: 3370.97 | F50: 3347.43 | G50: 3315.87 | H50: 3426.07 | I50: 3457.63 | J50: 3481.17 | K50: 3434.1 | L50: 3379 | M50: 0.03432
A51: 41 | B51: ASTRAL | C51: 1978.35 | D51: 1984.60 | E51: 1953.75 | F51: 1929.15 | G51: 1898.30 | H51: 2009.20 | I51: 2040.05 | J51: 2064.65 | K51: 2015.45 | L51: 1960 | M51: 2.50509
A52: 42 | B52: ATUL | C52: 6993.2 | D52: 7049.73 | E52: 6900.47 | F52: 6807.73 | G52: 6658.47 | H52: 7142.47 | I52: 7291.73 | J52: 7384.47 | K52: 7199 | L52: 6957 | M52: 0.40171
A53: 43 | B53: AUROPHARMA | C53: 417.75 | D53: 424.20 | E53: 410.15 | F53: 402.55 | G53: 388.50 | H53: 431.80 | I53: 445.85 | J53: 453.45 | K53: 438.25 | L53: 416.6 | M53: 23.50736
A54: 44 | B54: AVANTIFEED | C54: 390.15 | D54: 388.03 | E54: 382.27 | F54: 374.38 | G54: 368.62 | H54: 395.92 | I54: 401.68 | J54: 409.57 | K54: 393.8 | L54: 380.15 | M54: 1.36288
A55: 45 | B55: DMART | C55: 3515.1 | D55: 3525.63 | E55: 3496.77 | F55: 3478.43 | G55: 3449.57 | H55: 3543.97 | I55: 3572.83 | J55: 3591.17 | K55: 3554.5 | L55: 3507.3 | M55: 4.74769
A56: 46 | B56: AXISBANK | C56: 892.35 | D56: 894.67 | E56: 881.88 | F56: 871.42 | G56: 858.63 | H56: 905.13 | I56: 917.92 | J56: 928.38 | K56: 907.45 | L56: 884.2 | M56: 119.21748
A57: 47 | B57: BASF | C57: 2606.25 | D57: 2606.78 | E57: 2585.62 | F57: 2564.98 | G57: 2543.82 | H57: 2627.42 | I57: 2648.58 | J57: 2669.22 | K57: 2627.95 | L57: 2586.15 | M57: 0.09107
A58: 48 | B58: BSE | C58: 530.15 | D58: 533.02 | E58: 524.18 | F58: 518.22 | G58: 509.38 | H58: 538.98 | I58: 547.82 | J58: 553.78 | K58: 541.85 | L58: 527.05 | M58: 3.29118
A59: 49 | B59: BAJAJ-AUTO | C59: 3717.4 | D59: 3710.37 | E59: 3680.73 | F59: 3644.07 | G59: 3614.43 | H59: 3747.03 | I59: 3776.67 | J59: 3813.33 | K59: 3740 | L59: 3673.7 | M59: 3.75571
A60: 50 | B60: BAJAJELEC | C60: 1132.1 | D60: 1135.22 | E60: 1125.43 | F60: 1118.77 | G60: 1108.98 | H60: 1141.88 | I60: 1151.67 | J60: 1158.33 | K60: 1145 | L60: 1128.55 | M60: 0.14735
A61: 51 | B61: BAJFINANCE | C61: 5795.9 | D61: 5809.32 | E61: 5763.58 | F61: 5731.27 | G61: 5685.53 | H61: 5841.63 | I61: 5887.37 | J61: 5919.68 | K61: 5855.05 | L61: 5777 | M61: 8.27837
A62: 52 | B62: BAJAJFINSV | C62: 1314.35 | D62: 1319.75 | E62: 1304.60 | F62: 1294.85 | G62: 1279.70 | H62: 1329.50 | I62: 1344.65 | J62: 1354.40 | K62: 1334.9 | L62: 1310 | M62: 15.49899
A63: 53 | B63: BAJAJHLDNG | C63: 5742.65 | D63: 5782.88 | E63: 5669.77 | F63: 5596.88 | G63: 5483.77 | H63: 5855.77 | I63: 5968.88 | J63: 6041.77 | K63: 5896 | L63: 5710 | M63: 0.09566
A64: 54 | B64: BALAMINES | C64: 2302.3 | D64: 2312.25 | E64: 2277.05 | F64: 2251.80 | G64: 2216.60 | H64: 2337.50 | I64: 2372.70 | J64: 2397.95 | K64: 2347.45 | L64: 2287 | M64: 0.67558
A65: 55 | B65: BALKRISIND | C65: 2239.85 | D65: 2235.53 | E65: 2216.17 | F65: 2192.48 | G65: 2173.12 | H65: 2259.22 | I65: 2278.58 | J65: 2302.27 | K65: 2254.9 | L65: 2211.85 | M65: 2.32378
A66: 56 | B66: BALRAMCHIN | C66: 363.65 | D66: 366.78 | E66: 358.87 | F66: 354.08 | G66: 346.17 | H66: 371.57 | I66: 379.48 | J66: 384.27 | K66: 374.7 | L66: 362 | M66: 9.24903
A67: 57 | B67: BANDHANBNK | C67: 244.95 | D67: 245.65 | E67: 242.95 | F67: 240.95 | G67: 238.25 | H67: 247.65 | I67: 250.35 | J67: 252.35 | K67: 248.35 | L67: 243.65 | M67: 48.70562
A68: 58 | B68: BANKBARODA | C68: 169.75 | D68: 171.57 | E68: 164.53 | F68: 159.32 | G68: 152.28 | H68: 176.78 | I68: 183.82 | J68: 189.03 | K68: 178.6 | L68: 166.35 | M68: 426.52626
A69: 59 | B69: BANKINDIA | C69: 82.55 | D69: 83.03 | E69: 80.27 | F69: 77.98 | G69: 75.22 | H69: 85.32 | I69: 88.08 | J69: 90.37 | K69: 85.8 | L69: 80.75 | M69: 177.93136
A70: 60 | B70: MAHABANK | C70: 29.45 | D70: 29.55 | E70: 29.00 | F70: 28.55 | G70: 28.00 | H70: 30.00 | I70: 30.55 | J70: 31.00 | K70: 30.1 | L70: 29.1 | M70: 242.51563
A71: 61 | B71: BATAINDIA | C71: 1529.8 | D71: 1540.35 | E71: 1510.70 | F71: 1491.60 | G71: 1461.95 | H71: 1559.45 | I71: 1589.10 | J71: 1608.20 | K71: 1570 | L71: 1521.25 | M71: 2.73339
A72: 62 | B72: BAYERCROP | C72: 4433.85 | D72: 4475.70 | E72: 4371.40 | F72: 4308.95 | G72: 4204.65 | H72: 4538.15 | I72: 4642.45 | J72: 4704.90 | K72: 4580 | L72: 4413.25 | M72: 0.12081
A73: 63 | B73: BERGEPAINT | C73: 548.75 | D73: 553.08 | E73: 542.17 | F73: 535.58 | G73: 524.67 | H73: 559.67 | I73: 570.58 | J73: 577.17 | K73: 564 | L73: 546.5 | M73: 8.80591
A74: 64 | B74: BDL | C74: 922.6 | D74: 921.93 | E74: 914.32 | F74: 906.03 | G74: 898.42 | H74: 930.22 | I74: 937.83 | J74: 946.12 | K74: 929.55 | L74: 913.65 | M74: 1.55646
A75: 65 | B75: BEL | C75: 99.15 | D75: 99.62 | E75: 98.33 | F75: 97.52 | G75: 96.23 | H75: 100.43 | I75: 101.72 | J75: 102.53 | K75: 100.9 | L75: 98.8 | M75: 92.32812
A76: 66 | B76: BHARATFORG | C76: 862.65 | D76: 860.52 | E76: 851.13 | F76: 839.62 | G76: 830.23 | H76: 872.03 | I76: 881.42 | J76: 892.93 | K76: 869.9 | L76: 849 | M76: 7.95188
A77: 67 | B77: BHEL | C77: 76.7 | D77: 77.18 | E77: 75.77 | F77: 74.83 | G77: 73.42 | H77: 78.12 | I77: 79.53 | J77: 80.47 | K77: 78.6 | L77: 76.25 | M77: 121.22314
A78: 68 | B78: BPCL | C78: 346.75 | D78: 347.65 | E78: 344.80 | F78: 342.85 | G78: 340.00 | H78: 349.60 | I78: 352.45 | J78: 354.40 | K78: 350.5 | L78: 345.7 | M78: 19.33197
A79: 69 | B79: BHARATRAS | C79: 9470.05 | D79: 9499.73 | E79: 9400.47 | F79: 9330.88 | G79: 9231.62 | H79: 9569.32 | I79: 9668.58 | J79: 9738.17 | K79: 9599 | L79: 9430.15 | M79: 0.00557
A80: 70 | B80: BHARTIARTL | C80: 776.5 | D80: 775.00 | E80: 769.50 | F80: 762.50 | G80: 757.00 | H80: 782.00 | I80: 787.50 | J80: 794.50 | K80: 780.5 | L80: 768 | M80: 65.60514
A81: 71 | B81: BIOCON | C81: 235.2 | D81: 238.57 | E81: 230.93 | F81: 226.67 | G81: 219.03 | H81: 242.83 | I81: 250.47 | J81: 254.73 | K81: 246.2 | L81: 234.3 | M81: 36.03904
A82: 72 | B82: BIRLACORPN | C82: 930.2 | D82: 929.68 | E82: 920.52 | F82: 910.83 | G82: 901.67 | H82: 939.37 | I82: 948.53 | J82: 958.22 | K82: 938.85 | L82: 920 | M82: 0.49407
A83: 73 | B83: BSOFT | C83: 295.95 | D83: 298.95 | E83: 291.90 | F83: 287.85 | G83: 280.80 | H83: 303.00 | I83: 310.05 | J83: 314.10 | K83: 306 | L83: 294.9 | M83: 19.65674
A84: 74 | B84: BLUEDART | C84: 6748.5 | D84: 6804.47 | E84: 6655.33 | F84: 6562.17 | G84: 6413.03 | H84: 6897.63 | I84: 7046.77 | J84: 7139.93 | K84: 6953.6 | L84: 6711.3 | M84: 0.34059
A85: 75 | B85: BLUESTARCO | C85: 1249.1 | D85: 1245.17 | E85: 1233.93 | F85: 1218.77 | G85: 1207.53 | H85: 1260.33 | I85: 1271.57 | J85: 1286.73 | K85: 1256.4 | L85: 1230 | M85: 0.23845
A86: 76 | B86: BBTC | C86: 904.5 | D86: 906.33 | E86: 898.62 | F86: 892.73 | G86: 885.02 | H86: 912.22 | I86: 919.93 | J86: 925.82 | K86: 914.05 | L86: 900.45 | M86: 0.13394
A87: 77 | B87: BORORENEW | C87: 473.85 | D87: 474.15 | E87: 470.70 | F87: 467.55 | G87: 464.10 | H87: 477.30 | I87: 480.75 | J87: 483.90 | K87: 477.6 | L87: 471 | M87: 0.82633
A88: 78 | B88: BOSCHLTD | C88: 16720.35 | D88: 16810.08 | E88: 16580.27 | F88: 16440.18 | G88: 16210.37 | H88: 16950.17 | I88: 17179.98 | J88: 17320.07 | K88: 17039.9 | L88: 16670 | M88: 0.10286
A89: 79 | B89: BRIGADE | C89: 449.75 | D89: 451.72 | E89: 444.43 | F89: 439.12 | G89: 431.83 | H89: 457.03 | I89: 464.32 | J89: 469.63 | K89: 459 | L89: 446.4 | M89: 0.99338
A90: 80 | B90: BCG | C90: 26.95 | D90: 27.07 | E90: 26.58 | F90: 26.22 | G90: 25.73 | H90: 27.43 | I90: 27.92 | J90: 28.28 | K90: 27.55 | L90: 26.7 | M90: 96.09325
A91: 81 | B91: BRITANNIA | C91: 4388.15 | D91: 4397.38 | E91: 4350.77 | F91: 4313.38 | G91: 4266.77 | H91: 4434.77 | I91: 4481.38 | J91: 4518.77 | K91: 4444 | L91: 4360 | M91: 2.88089
A92: 82 | B92: MAPMYINDIA | C92: 1127.35 | D92: 1128.80 | E92: 1122.60 | F92: 1117.85 | G92: 1111.65 | H92: 1133.55 | I92: 1139.75 | J92: 1144.50 | K92: 1135 | L92: 1124.05 | M92: 0.56065
A93: 83 | B93: CCL | C93: 533.65 | D93: 533.90 | E93: 523.95 | F93: 514.25 | G93: 504.30 | H93: 543.60 | I93: 553.55 | J93: 563.25 | K93: 543.85 | L93: 524.2 | M93: 0.822
A94: 84 | B94: CESC | C94: 73.8 | D94: 73.78 | E94: 73.47 | F94: 73.13 | G94: 72.82 | H94: 74.12 | I94: 74.43 | J94: 74.77 | K94: 74.1 | L94: 73.45 | M94: 5.60441
A95: 85 | B95: CGPOWER | C95: 300.4 | D95: 303.07 | E95: 294.33 | F95: 288.27 | G95: 279.53 | H95: 309.13 | I95: 317.87 | J95: 323.93 | K95: 311.8 | L95: 297 | M95: 36.45017
A96: 86 | B96: CRISIL | C96: 2968.75 | D96: 2970.43 | E96: 2949.32 | F96: 2929.88 | G96: 2908.77 | H96: 2989.87 | I96: 3010.98 | J96: 3030.42 | K96: 2991.55 | L96: 2951 | M96: 0.10684
A97: 87 | B97: CSBBANK | C97: 249.3 | D97: 250.23 | E97: 246.57 | F97: 243.83 | G97: 240.17 | H97: 252.97 | I97: 256.63 | J97: 259.37 | K97: 253.9 | L97: 247.5 | M97: 3.03749
A98: 88 | B98: CAMPUS | C98: 391.85 | D98: 389.15 | E98: 382.30 | F98: 372.75 | G98: 365.90 | H98: 398.70 | I98: 405.55 | J98: 415.10 | K98: 396 | L98: 379.6 | M98: 1.65899
A99: 89 | B99: CANFINHOME | C99: 556.75 | D99: 556.32 | E99: 549.13 | F99: 541.52 | G99: 534.33 | H99: 563.93 | I99: 571.12 | J99: 578.73 | K99: 563.5 | L99: 548.7 | M99: 8.22355
A100: 90 | B100: CANBK | C100: 306.05 | D100: 309.72 | E100: 298.53 | F100: 291.02 | G100: 279.83 | H100: 317.23 | I100: 328.42 | J100: 335.93 | K100: 320.9 | L100: 302.2 | M100: 138.80215
A101: 91 | B101: CAPLIPOINT | C101: 687.05 | D101: 688.68 | E101: 682.37 | F101: 677.68 | G101: 671.37 | H101: 693.37 | I101: 699.68 | J101: 704.37 | K101: 695 | L101: 684 | M101: 0.28357
A102: 92 | B102: CGCL | C102: 751.15 | D102: 756.37 | E102: 745.78 | F102: 740.42 | G102: 729.83 | H102: 761.73 | I102: 772.32 | J102: 777.68 | K102: 766.95 | L102: 751 | M102: 0.86138
A103: 93 | B103: CARBORUNIV | C103: 941.45 | D103: 937.00 | E103: 927.45 | F103: 913.45 | G103: 903.90 | H103: 951.00 | I103: 960.55 | J103: 974.55 | K103: 946.55 | L103: 923 | M103: 0.6281
A104: 94 | B104: CASTROLIND | C104: 121.2 | D104: 121.25 | E104: 117.00 | F104: 112.80 | G104: 108.55 | H104: 125.45 | I104: 129.70 | J104: 133.90 | K104: 125.5 | L104: 117.05 | M104: 11.27147
A105: 95 | B105: CEATLTD | C105: 1585.15 | D105: 1599.72 | E105: 1559.43 | F105: 1533.72 | G105: 1493.43 | H105: 1625.43 | I105: 1665.72 | J105: 1691.43 | K105: 1640 | L105: 1574 | M105: 0.85744
A106: 96 | B106: CENTRALBK | C106: 29.75 | D106: 29.87 | E106: 29.23 | F106: 28.72 | G106: 28.08 | H106: 30.38 | I106: 31.02 | J106: 31.53 | K106: 30.5 | L106: 29.35 | M106: 67.33783
A107: 97 | B107: CDSL | C107: 1028 | D107: 1035.32 | E107: 1018.68 | F107: 1009.37 | G107: 992.73 | H107: 1044.63 | I107: 1061.27 | J107: 1070.58 | K107: 1051.95 | L107: 1026 | M107: 3.49637
A108: 98 | B108: CENTURYPLY | C108: 489.95 | D108: 491.17 | E108: 484.78 | F108: 479.62 | G108: 473.23 | H108: 496.33 | I108: 502.72 | J108: 507.88 | K108: 497.55 | L108: 486 | M108: 0.71323
A109: 99 | B109: CENTURYTEX | C109: 687.05 | D109: 693.08 | E109: 679.07 | F109: 671.08 | G109: 657.07 | H109: 701.07 | I109: 715.08 | J109: 723.07 | K109: 707.1 | L109: 685.1 | M109: 0.527
A110: 100 | B110: CERA | C110: 5453.55 | D110: 5446.50 | E110: 5413.05 | F110: 5372.55 | G110: 5339.10 | H110: 5487.00 | I110: 5520.45 | J110: 5560.95 | K110: 5479.95 | L110: 5406 | M110: 0.03133
A111: 101 | B111: CHALET | C111: 357.45 | D111: 359.82 | E111: 352.73 | F111: 348.02 | G111: 340.93 | H111: 364.53 | I111: 371.62 | J111: 376.33 | K111: 366.9 | L111: 355.1 | M111: 14.95642
A112: 102 | B112: CHAMBLFERT | C112: 295.75 | D112: 296.43 | E112: 292.72 | F112: 289.68 | G112: 285.97 | H112: 299.47 | I112: 303.18 | J112: 306.22 | K112: 300.15 | L112: 293.4 | M112: 9.35722
A113: 103 | B113: CHEMPLASTS | C113: 446.3 | D113: 447.07 | E113: 442.23 | F113: 438.17 | G113: 433.33 | H113: 451.13 | I113: 455.97 | J113: 460.03 | K113: 451.9 | L113: 443 | M113: 0.63332
A114: 104 | B114: CHOLAHLDNG | C114: 578.45 | D114: 581.73 | E114: 569.77 | F114: 561.08 | G114: 549.12 | H114: 590.42 | I114: 602.38 | J114: 611.07 | K114: 593.7 | L114: 573.05 | M114: 0.79132
A115: 105 | B115: CHOLAFIN | C115: 718.4 | D115: 719.45 | E115: 712.10 | F115: 705.80 | G115: 698.45 | H115: 725.75 | I115: 733.10 | J115: 739.40 | K115: 726.8 | L115: 713.15 | M115: 4.78845
A116: 106 | B116: CIPLA | C116: 1035.25 | D116: 1041.17 | E116: 1014.08 | F116: 992.92 | G116: 965.83 | H116: 1062.33 | I116: 1089.42 | J116: 1110.58 | K116: 1068.25 | L116: 1020 | M116: 22.26483
A117: 107 | B117: CUB | C117: 152.5 | D117: 153.00 | E117: 151.00 | F117: 149.50 | G117: 147.50 | H117: 154.50 | I117: 156.50 | J117: 158.00 | K117: 155 | L117: 151.5 | M117: 30.54483
A118: 108 | B118: CLEAN | C118: 1375.45 | D118: 1372.48 | E118: 1357.97 | F118: 1340.48 | G118: 1325.97 | H118: 1389.97 | I118: 1404.48 | J118: 1421.97 | K118: 1387 | L118: 1355 | M118: 0.44019
A119: 109 | B119: COALINDIA | C119: 226.15 | D119: 225.97 | E119: 223.93 | F119: 221.72 | G119: 219.68 | H119: 228.18 | I119: 230.22 | J119: 232.43 | K119: 228 | L119: 223.75 | M119: 38.55827
A120: 110 | B120: COCHINSHIP | C120: 482.95 | D120: 486.88 | E120: 477.37 | F120: 471.78 | G120: 462.27 | H120: 492.47 | I120: 501.98 | J120: 507.57 | K120: 496.4 | L120: 481.3 | M120: 4.74645
A121: 111 | B121: COFORGE | C121: 4272.7 | D121: 4294.90 | E121: 4227.80 | F121: 4182.90 | G121: 4115.80 | H121: 4339.80 | I121: 4406.90 | J121: 4451.80 | K121: 4362 | L121: 4250 | M121: 5.21283
A122: 112 | B122: COLPAL | C122: 1451.2 | D122: 1455.20 | E122: 1442.00 | F122: 1432.80 | G122: 1419.60 | H122: 1464.40 | I122: 1477.60 | J122: 1486.80 | K122: 1468.4 | L122: 1446 | M122: 6.22544
A123: 113 | B123: CAMS | C123: 2278.85 | D123: 2283.27 | E123: 2267.53 | F123: 2256.22 | G123: 2240.48 | H123: 2294.58 | I123: 2310.32 | J123: 2321.63 | K123: 2299 | L123: 2271.95 | M123: 0.53811
A124: 114 | B124: CONCOR | C124: 649.6 | D124: 658.18 | E124: 636.42 | F124: 623.23 | G124: 601.47 | H124: 671.37 | I124: 693.13 | J124: 706.32 | K124: 679.95 | L124: 645 | M124: 39.14593
A125: 115 | B125: COROMANDEL | C125: 855.5 | D125: 855.05 | E125: 843.80 | F125: 832.10 | G125: 820.85 | H125: 866.75 | I125: 878.00 | J125: 889.70 | K125: 866.3 | L125: 843.35 | M125: 4.48402
A126: 116 | B126: CREDITACC | C126: 906 | D126: 903.70 | E126: 896.85 | F126: 887.70 | G126: 880.85 | H126: 912.85 | I126: 919.70 | J126: 928.85 | K126: 910.55 | L126: 894.55 | M126: 0.18019
A127: 117 | B127: CROMPTON | C127: 328.1 | D127: 331.40 | E127: 322.30 | F127: 316.50 | G127: 307.40 | H127: 337.20 | I127: 346.30 | J127: 352.10 | K127: 340.5 | L127: 325.6 | M127: 13.23425
A128: 118 | B128: CUMMINSIND | C128: 1384 | D128: 1391.95 | E128: 1369.30 | F128: 1354.60 | G128: 1331.95 | H128: 1406.65 | I128: 1429.30 | J128: 1444.00 | K128: 1414.6 | L128: 1377.25 | M128: 3.02117
A129: 119 | B129: CYIENT | C129: 849.2 | D129: 856.48 | E129: 838.02 | F129: 826.83 | G129: 808.37 | H129: 867.67 | I129: 886.13 | J129: 897.32 | K129: 874.95 | L129: 845.3 | M129: 3.88406
A130: 120 | B130: DCMSHRIRAM | C130: 875.25 | D130: 880.03 | E130: 866.22 | F130: 857.18 | G130: 843.37 | H130: 889.07 | I130: 902.88 | J130: 911.92 | K130: 893.85 | L130: 871 | M130: 0.10163
A131: 121 | B131: DLF | C131: 352.05 | D131: 354.88 | E131: 345.57 | F131: 339.08 | G131: 329.77 | H131: 361.37 | I131: 370.68 | J131: 377.17 | K131: 364.2 | L131: 348.4 | M131: 70.32545
A132: 122 | B132: DABUR | C132: 563.3 | D132: 563.80 | E132: 560.15 | F132: 557.00 | G132: 553.35 | H132: 566.95 | I132: 570.60 | J132: 573.75 | K132: 567.45 | L132: 560.65 | M132: 8.54326
A133: 123 | B133: DALBHARAT | C133: 1728.35 | D133: 1729.17 | E133: 1703.13 | F133: 1677.92 | G133: 1651.88 | H133: 1754.38 | I133: 1780.42 | J133: 1805.63 | K133: 1755.2 | L133: 1703.95 | M133: 2.31772
A134: 124 | B134: DEEPAKFERT | C134: 655.65 | D134: 655.62 | E134: 645.83 | F134: 636.02 | G134: 626.23 | H134: 665.43 | I134: 675.22 | J134: 685.03 | K134: 665.4 | L134: 645.8 | M134: 1.58901
A135: 125 | B135: DEEPAKNTR | C135: 1837.3 | D135: 1852.53 | E135: 1815.32 | F135: 1793.33 | G135: 1756.12 | H135: 1874.52 | I135: 1911.73 | J135: 1933.72 | K135: 1889.75 | L135: 1830.55 | M135: 3.07378
A136: 126 | B136: DELHIVERY | C136: 306.45 | D136: 309.47 | E136: 301.98 | F136: 297.52 | G136: 290.03 | H136: 313.93 | I136: 321.42 | J136: 325.88 | K136: 316.95 | L136: 305 | M136: 5.15322
A137: 127 | B137: DELTACORP | C137: 200.2 | D137: 203.73 | E137: 195.47 | F137: 190.73 | G137: 182.47 | H137: 208.47 | I137: 216.73 | J137: 221.47 | K137: 212 | L137: 199 | M137: 40.72883
A138: 128 | B138: DEVYANI | C138: 158.6 | D138: 158.83 | E138: 157.42 | F138: 156.23 | G138: 154.82 | H138: 160.02 | I138: 161.43 | J138: 162.62 | K138: 160.25 | L138: 157.65 | M138: 5.00091
A139: 129 | B139: DHANI | C139: 35.5 | D139: 35.82 | E139: 34.88 | F139: 34.27 | G139: 33.33 | H139: 36.43 | I139: 37.37 | J139: 37.98 | K139: 36.75 | L139: 35.2 | M139: 14.89754
A140: 130 | B140: DBL | C140: 217.2 | D140: 217.57 | E140: 215.18 | F140: 213.17 | G140: 210.78 | H140: 219.58 | I140: 221.97 | J140: 223.98 | K140: 219.95 | L140: 215.55 | M140: 1.87197
A141: 131 | B141: DIVISLAB | C141: 3335.7 | D141: 3338.58 | E141: 3300.37 | F141: 3265.03 | G141: 3226.82 | H141: 3373.92 | I141: 3412.13 | J141: 3447.47 | K141: 3376.8 | L141: 3303.25 | M141: 2.39083
A142: 132 | B142: DIXON | C142: 3363.8 | D142: 3400.92 | E142: 3317.88 | F142: 3271.97 | G142: 3188.93 | H142: 3446.83 | I142: 3529.87 | J142: 3575.78 | K142: 3483.95 | L142: 3355 | M142: 2.28522
A143: 133 | B143: LALPATHLAB | C143: 2069.55 | D143: 2082.45 | E143: 2047.10 | F143: 2024.65 | G143: 1989.30 | H143: 2104.90 | I143: 2140.25 | J143: 2162.70 | K143: 2117.8 | L143: 2060 | M143: 1.49887
A144: 134 | B144: DRREDDY | C144: 4200.95 | D144: 4214.98 | E144: 4161.07 | F144: 4121.18 | G144: 4067.27 | H144: 4254.87 | I144: 4308.78 | J144: 4348.67 | K144: 4268.9 | L144: 4175.1 | M144: 2.94042
A145: 135 | B145: EIDPARRY | C145: 541 | D145: 539.67 | E145: 535.33 | F145: 529.67 | G145: 525.33 | H145: 545.33 | I145: 549.67 | J145: 555.33 | K145: 544 | L145: 534 | M145: 0.85546
A146: 136 | B146: EIHOTEL | C146: 164.65 | D146: 164.62 | E146: 163.38 | F146: 162.12 | G146: 160.88 | H146: 165.88 | I146: 167.12 | J146: 168.38 | K146: 165.85 | L146: 163.35 | M146: 1.52963
A147: 137 | B147: EPL | C147: 156 | D147: 156.73 | E147: 154.47 | F147: 152.93 | G147: 150.67 | H147: 158.27 | I147: 160.53 | J147: 162.07 | K147: 159 | L147: 155.2 | M147: 14.68431
A148: 138 | B148: EASEMYTRIP | C148: 51.05 | D148: 51.87 | E148: 50.03 | F148: 49.02 | G148: 47.18 | H148: 52.88 | I148: 54.72 | J148: 55.73 | K148: 53.7 | L148: 50.85 | M148: 133.62472
A149: 139 | B149: EDELWEISS | C149: 69 | D149: 67.83 | E149: 66.27 | F149: 63.53 | G149: 61.97 | H149: 70.57 | I149: 72.13 | J149: 74.87 | K149: 69.4 | L149: 65.1 | M149: 22.17756
A150: 140 | B150: EICHERMOT | C150: 3213.85 | D150: 3210.73 | E150: 3186.47 | F150: 3159.08 | G150: 3134.82 | H150: 3238.12 | I150: 3262.38 | J150: 3289.77 | K150: 3235 | L150: 3183.35 | M150: 3.53061
A151: 141 | B151: ELGIEQUIP | C151: 370.3 | D151: 374.60 | E151: 363.90 | F151: 357.50 | G151: 346.80 | H151: 381.00 | I151: 391.70 | J151: 398.10 | K151: 385.3 | L151: 368.2 | M151: 2.85548
A152: 142 | B152: EMAMILTD | C152: 420.3 | D152: 420.82 | E152: 413.48 | F152: 406.67 | G152: 399.33 | H152: 427.63 | I152: 434.97 | J152: 441.78 | K152: 428.15 | L152: 414 | M152: 0.52319
A153: 143 | B153: ENDURANCE | C153: 1450.45 | D153: 1451.98 | E153: 1428.97 | F153: 1407.48 | G153: 1384.47 | H153: 1473.47 | I153: 1496.48 | J153: 1517.97 | K153: 1475 | L153: 1430.5 | M153: 0.29024
A154: 144 | B154: ENGINERSIN | C154: 84.95 | D154: 85.18 | E154: 84.02 | F154: 83.08 | G154: 81.92 | H154: 86.12 | I154: 87.28 | J154: 88.22 | K154: 86.35 | L154: 84.25 | M154: 32.58854
A155: 145 | B155: EQUITASBNK | C155: 54.8 | D155: 54.78 | E155: 54.02 | F155: 53.23 | G155: 52.47 | H155: 55.57 | I155: 56.33 | J155: 57.12 | K155: 55.55 | L155: 54 | M155: 10.32285
A156: 146 | B156: ESCORTS | C156: 2088.8 | D156: 2082.55 | E156: 2066.25 | F156: 2043.70 | G156: 2027.40 | H156: 2105.10 | I156: 2121.40 | J156: 2143.95 | K156: 2098.85 | L156: 2060 | M156: 0.94406
A157: 147 | B157: EXIDEIND | C157: 182.2 | D157: 182.07 | E157: 180.18 | F157: 178.17 | G157: 176.28 | H157: 184.08 | I157: 185.97 | J157: 187.98 | K157: 183.95 | L157: 180.05 | M157: 14.74814
A158: 148 | B158: FDC | C158: 255.15 | D158: 254.78 | E158: 252.12 | F158: 249.08 | G158: 246.42 | H158: 257.82 | I158: 260.48 | J158: 263.52 | K158: 257.45 | L158: 251.75 | M158: 0.80092
A159: 149 | B159: NYKAA | C159: 129.25 | D159: 131.62 | E159: 124.83 | F159: 120.42 | G159: 113.63 | H159: 136.03 | I159: 142.82 | J159: 147.23 | K159: 138.4 | L159: 127.2 | M159: 437.81731
A160: 150 | B160: FEDERALBNK | C160: 132.25 | D160: 132.70 | E160: 130.40 | F160: 128.55 | G160: 126.25 | H160: 134.55 | I160: 136.85 | J160: 138.70 | K160: 135 | L160: 130.85 | M160: 151.33077
A161: 151 | B161: FACT | C161: 312.05 | D161: 316.18 | E161: 304.87 | F161: 297.68 | G161: 286.37 | H161: 323.37 | I161: 334.68 | J161: 341.87 | K161: 327.5 | L161: 309 | M161: 5.2277
A162: 152 | B162: FINEORG | C162: 5293.55 | D162: 5292.97 | E162: 5256.68 | F162: 5219.82 | G162: 5183.53 | H162: 5329.83 | I162: 5366.12 | J162: 5402.98 | K162: 5329.25 | L162: 5256.1 | M162: 0.10972
A163: 153 | B163: FINCABLES | C163: 543.4 | D163: 546.72 | E163: 536.68 | F163: 529.97 | G163: 519.93 | H163: 553.43 | I163: 563.47 | J163: 570.18 | K163: 556.75 | L163: 540 | M163: 1.43224
A164: 154 | B164: FINPIPE | C164: 166.8 | D164: 165.88 | E164: 163.42 | F164: 160.03 | G164: 157.57 | H164: 169.27 | I164: 171.73 | J164: 175.12 | K164: 168.35 | L164: 162.5 | M164: 4.59835
A165: 155 | B165: FSL | C165: 104.45 | D165: 104.83 | E165: 103.17 | F165: 101.88 | G165: 100.22 | H165: 106.12 | I165: 107.78 | J165: 109.07 | K165: 106.5 | L165: 103.55 | M165: 16.99189
A166: 156 | B166: FORTIS | C166: 277.9 | D166: 278.75 | E166: 274.65 | F166: 271.40 | G166: 267.30 | H166: 282.00 | I166: 286.10 | J166: 289.35 | K166: 282.85 | L166: 275.5 | M166: 9.28275
A167: 157 | B167: GRINFRA | C167: 1235.35 | D167: 1237.15 | E167: 1226.45 | F167: 1217.55 | G167: 1206.85 | H167: 1246.05 | I167: 1256.75 | J167: 1265.65 | K167: 1247.85 | L167: 1228.25 | M167: 0.58579
A168: 158 | B168: GAIL | C168: 100.9 | D168: 100.82 | E168: 99.63 | F168: 98.37 | G168: 97.18 | H168: 102.08 | I168: 103.27 | J168: 104.53 | K168: 102 | L168: 99.55 | M168: 120.07717
A169: 159 | B169: GMMPFAUDLR | C169: 1560.4 | D169: 1554.60 | E169: 1544.20 | F169: 1528.00 | G169: 1517.60 | H169: 1570.80 | I169: 1581.20 | J169: 1597.40 | K169: 1565 | L169: 1538.4 | M169: 0.62491
A170: 160 | B170: GMRINFRA | C170: 38.9 | D170: 39.17 | E170: 38.38 | F170: 37.87 | G170: 37.08 | H170: 39.68 | I170: 40.47 | J170: 40.98 | K170: 39.95 | L170: 38.65 | M170: 89.63391
A171: 161 | B171: GALAXYSURF | C171: 2331.75 | D171: 2339.47 | E171: 2294.63 | F171: 2257.52 | G171: 2212.68 | H171: 2376.58 | I171: 2421.42 | J171: 2458.53 | K171: 2384.3 | L171: 2302.35 | M171: 0.08057
A172: 162 | B172: GARFIBRES | C172: 2877.8 | D172: 2892.60 | E172: 2855.20 | F172: 2832.60 | G172: 2795.20 | H172: 2915.20 | I172: 2952.60 | J172: 2975.20 | K172: 2930 | L172: 2870 | M172: 0.05761
A173: 163 | B173: GICRE | C173: 178 | D173: 179.35 | E173: 175.20 | F173: 172.40 | G173: 168.25 | H173: 182.15 | I173: 186.30 | J173: 189.10 | K173: 183.5 | L173: 176.55 | M173: 14.50912
A174: 164 | B174: GLAND | C174: 1342.35 | D174: 1374.73 | E174: 1296.47 | F174: 1250.58 | G174: 1172.32 | H174: 1420.62 | I174: 1498.88 | J174: 1544.77 | K174: 1453 | L174: 1328.85 | M174: 27.60146
A175: 165 | B175: GLAXO | C175: 1262.1 | D175: 1268.07 | E175: 1254.13 | F175: 1246.17 | G175: 1232.23 | H175: 1276.03 | I175: 1289.97 | J175: 1297.93 | K175: 1282 | L175: 1260.1 | M175: 0.31463
A176: 166 | B176: GLENMARK | C176: 398.85 | D176: 403.63 | E176: 393.22 | F176: 387.58 | G176: 377.17 | H176: 409.27 | I176: 419.68 | J176: 425.32 | K176: 414.05 | L176: 398 | M176: 6.54845
A177: 167 | B177: GOCOLORS | C177: 1100.3 | D177: 1106.27 | E177: 1073.43 | F177: 1046.57 | G177: 1013.73 | H177: 1133.13 | I177: 1165.97 | J177: 1192.83 | K177: 1139.1 | L177: 1079.4 | M177: 0.47513
A178: 168 | B178: GODFRYPHLP | C178: 1970.7 | D178: 1953.35 | E178: 1923.45 | F178: 1876.20 | G178: 1846.30 | H178: 2000.60 | I178: 2030.50 | J178: 2077.75 | K178: 1983.25 | L178: 1906.1 | M178: 0.79413
A179: 169 | B179: GODREJAGRO | C179: 451.7 | D179: 453.93 | E179: 447.87 | F179: 444.03 | G179: 437.97 | H179: 457.77 | I179: 463.83 | J179: 467.67 | K179: 460 | L179: 450.1 | M179: 0.4502
A180: 170 | B180: GODREJCP | C180: 914.2 | D180: 918.62 | E180: 908.38 | F180: 902.57 | G180: 892.33 | H180: 924.43 | I180: 934.67 | J180: 940.48 | K180: 928.85 | L180: 912.8 | M180: 4.04812
A181: 171 | B181: GODREJIND | C181: 424.2 | D181: 426.45 | E181: 418.75 | F181: 413.30 | G181: 405.60 | H181: 431.90 | I181: 439.60 | J181: 445.05 | K181: 434.15 | L181: 421 | M181: 0.66425
A182: 172 | B182: GODREJPROP | C182: 1196.35 | D182: 1197.80 | E182: 1185.60 | F182: 1174.85 | G182: 1162.65 | H182: 1208.55 | I182: 1220.75 | J182: 1231.50 | K182: 1210 | L182: 1187.05 | M182: 4.37605
A183: 173 | B183: GRANULES | C183: 288.9 | D183: 295.27 | E183: 281.63 | F183: 274.37 | G183: 260.73 | H183: 302.53 | I183: 316.17 | J183: 323.43 | K183: 308.9 | L183: 288 | M183: 24.30714
A184: 174 | B184: GRAPHITE | C184: 356 | D184: 357.80 | E184: 351.80 | F184: 347.60 | G184: 341.60 | H184: 362.00 | I184: 368.00 | J184: 372.20 | K184: 363.8 | L184: 353.6 | M184: 2.41978
A185: 175 | B185: GRASIM | C185: 1593.75 | D185: 1595.65 | E185: 1580.35 | F185: 1566.95 | G185: 1551.65 | H185: 1609.05 | I185: 1624.35 | J185: 1637.75 | K185: 1610.95 | L185: 1582.25 | M185: 5.01553
A186: 176 | B186: GESHIP | C186: 632.6 | D186: 634.37 | E186: 625.73 | F186: 618.87 | G186: 610.23 | H186: 641.23 | I186: 649.87 | J186: 656.73 | K186: 643 | L186: 627.5 | M186: 1.63673
A187: 177 | B187: GREENPANEL | C187: 322.8 | D187: 320.73 | E187: 316.07 | F187: 309.33 | G187: 304.67 | H187: 327.47 | I187: 332.13 | J187: 338.87 | K187: 325.4 | L187: 314 | M187: 1.66299
A188: 178 | B188: GRINDWELL | C188: 1969.25 | D188: 1959.22 | E188: 1940.03 | F188: 1910.82 | G188: 1891.63 | H188: 1988.43 | I188: 2007.62 | J188: 2036.83 | K188: 1978.4 | L188: 1930 | M188: 0.14055
A189: 179 | B189: GUJALKALI | C189: 695.05 | D189: 698.07 | E189: 689.48 | F189: 683.92 | G189: 675.33 | H189: 703.63 | I189: 712.22 | J189: 717.78 | K189: 706.65 | L189: 692.5 | M189: 0.43196
A190: 180 | B190: GAEL | C190: 237.95 | D190: 238.87 | E190: 234.33 | F190: 230.72 | G190: 226.18 | H190: 242.48 | I190: 247.02 | J190: 250.63 | K190: 243.4 | L190: 235.25 | M190: 1.36454
A191: 181 | B191: FLUOROCHEM | C191: 2610.7 | D191: 2625.95 | E191: 2559.80 | F191: 2508.90 | G191: 2442.75 | H191: 2676.85 | I191: 2743.00 | J191: 2793.90 | K191: 2692.1 | L191: 2575.05 | M191: 0.90161
A192: 182 | B192: GUJGASLTD | C192: 466.3 | D192: 467.73 | E192: 462.57 | F192: 458.83 | G192: 453.67 | H192: 471.47 | I192: 476.63 | J192: 480.37 | K192: 472.9 | L192: 464 | M192: 9.07188
A193: 183 | B193: GNFC | C193: 550.65 | D193: 557.97 | E193: 540.43 | F193: 530.22 | G193: 512.68 | H193: 568.18 | I193: 585.72 | J193: 595.93 | K193: 575.5 | L193: 547.75 | M193: 7.91042
A194: 184 | B194: GPPL | C194: 92.1 | D194: 92.42 | E194: 90.48 | F194: 88.87 | G194: 86.93 | H194: 94.03 | I194: 95.97 | J194: 97.58 | K194: 94.35 | L194: 90.8 | M194: 7.4497
A195: 185 | B195: GSFC | C195: 127.15 | D195: 127.20 | E195: 126.15 | F195: 125.15 | G195: 124.10 | H195: 128.20 | I195: 129.25 | J195: 130.25 | K195: 128.25 | L195: 126.2 | M195: 11.2622
A196: 186 | B196: GSPL | C196: 266.7 | D196: 266.25 | E196: 262.50 | F196: 258.30 | G196: 254.55 | H196: 270.45 | I196: 274.20 | J196: 278.40 | K196: 270 | L196: 262.05 | M196: 4.99857
A197: 187 | B197: HEG | C197: 1038.2 | D197: 1039.75 | E197: 1030.50 | F197: 1022.80 | G197: 1013.55 | H197: 1047.45 | I197: 1056.70 | J197: 1064.40 | K197: 1049 | L197: 1032.05 | M197: 0.68686
A198: 188 | B198: HCLTECH | C198: 1122.75 | D198: 1124.78 | E198: 1114.72 | F198: 1106.68 | G198: 1096.62 | H198: 1132.82 | I198: 1142.88 | J198: 1150.92 | K198: 1134.85 | L198: 1116.75 | M198: 26.92236
A199: 189 | B199: HDFCAMC | C199: 1934.05 | D199: 1946.60 | E199: 1913.20 | F199: 1892.35 | G199: 1858.95 | H199: 1967.45 | I199: 2000.85 | J199: 2021.70 | K199: 1980 | L199: 1925.75 | M199: 3.80524
A200: 190 | B200: HDFCBANK | C200: 1648.65 | D200: 1662.30 | E200: 1631.65 | F200: 1614.65 | G200: 1584.00 | H200: 1679.30 | I200: 1709.95 | J200: 1726.95 | K200: 1692.95 | L200: 1645.3 | M200: 73.52071
A201: 191 | B201: HDFCLIFE | C201: 585.05 | D201: 585.63 | E201: 579.52 | F201: 573.98 | G201: 567.87 | H201: 591.17 | I201: 597.28 | J201: 602.82 | K201: 591.75 | L201: 580.1 | M201: 14.43501
A202: 192 | B202: HFCL | C202: 70.5 | D202: 70.82 | E202: 69.83 | F202: 69.17 | G202: 68.18 | H202: 71.48 | I202: 72.47 | J202: 73.13 | K202: 71.8 | L202: 70.15 | M202: 29.53755
A203: 193 | B203: HLEGLAS | C203: 607.2 | D203: 608.63 | E203: 599.37 | F203: 591.53 | G203: 582.27 | H203: 616.47 | I203: 625.73 | J203: 633.57 | K203: 617.9 | L203: 600.8 | M203: 0.18416
A204: 194 | B204: HAPPSTMNDS | C204: 862.8 | D204: 864.77 | E204: 853.63 | F204: 844.47 | G204: 833.33 | H204: 873.93 | I204: 885.07 | J204: 894.23 | K204: 875.9 | L204: 855.6 | M204: 2.73486
A205: 195 | B205: HATSUN | C205: 889.85 | D205: 891.57 | E205: 884.78 | F205: 879.72 | G205: 872.93 | H205: 896.63 | I205: 903.42 | J205: 908.48 | K205: 898.35 | L205: 886.5 | M205: 0.05245
A206: 196 | B206: HAVELLS | C206: 1180.5 | D206: 1183.90 | E206: 1171.95 | F206: 1163.40 | G206: 1151.45 | H206: 1192.45 | I206: 1204.40 | J206: 1212.95 | K206: 1195.85 | L206: 1175.35 | M206: 2.66216
... 320 more rows

Sheet Bulk Deals
E6: Back To Main Page
A7: Subject : | B7: BULK DEAL | D7: =Main!B10 -> 2023-01-27
A9: Date | B9: Scrip code | C9: Scrip Name | D9: Client Name | E9: Buy / Sell | F9: Quantity Traded | G9: Trade Price / Wt.Avg.trade price | H9: Exchange
A10: 2023-01-25 | B10: 511764 | C10: AASTAFIN | D10: BP COMTRADE PRIVATE LIMITED | E10: BUY | F10: 20,001 | G10: 32.78 | H10: BSE
A11: 2023-01-25 | B11: 511764 | C11: AASTAFIN | D11: BP EQUITIES PVT. LTD. | E11: BUY | F11: 52,089 | G11: 32.62 | H11: BSE
A12: 2023-01-25 | B12: 511764 | C12: AASTAFIN | D12: BP COMTRADE PRIVATE LIMITED | E12: SELL | F12: 41,165 | G12: 32.52 | H12: BSE
A13: 2023-01-25 | B13: 511764 | C13: AASTAFIN | D13: BP EQUITIES PVT. LTD. | E13: SELL | F13: 96,563 | G13: 32.77 | H13: BSE
A14: 2023-01-25 | B14: 511764 | C14: AASTAFIN | D14: MUMBAI STOCK BROKERS PVT LTD | E14: BUY | F14: 30,000 | G14: 32.78 | H14: BSE
A15: 2023-01-25 | B15: 511764 | C15: AASTAFIN | D15: SPARK FINANCE | E15: BUY | F15: 22,171 | G15: 32.44 | H15: BSE
A16: 2023-01-25 | B16: 511764 | C16: AASTAFIN | D16: SPARK FINANCE | E16: SELL | F16: 22,171 | G16: 32.78 | H16: BSE
A17: 2023-01-25 | B17: 511764 | C17: AASTAFIN | D17: BHAVIK VISHANRAJ MEHTA | E17: BUY | F17: 25,000 | G17: 32.78 | H17: BSE
A18: 2023-01-25 | B18: 511764 | C18: AASTAFIN | D18: FOURTH AXIS ADVISORS LLP | E18: BUY | F18: 50,000 | G18: 32.78 | H18: BSE
A19: 2023-01-25 | B19: 511764 | C19: AASTAFIN | D19: NIRVAAN CHOPRA | E19: SELL | F19: 70,038 | G19: 32.61 | H19: BSE
A20: 2023-01-25 | B20: 511764 | C20: AASTAFIN | D20: RUCHIRA GOYAL | E20: SELL | F20: 23,797 | G20: 32.31 | H20: BSE
A21: 2023-01-25 | B21: 511764 | C21: AASTAFIN | D21: RUCHIRA GOYAL | E21: BUY | F21: 10,000 | G21: 32.78 | H21: BSE
A22: 2023-01-25 | B22: 511764 | C22: AASTAFIN | D22: MANSI SHARE & STOCK ADVISORS PRIVATE LIMITED | E22: BUY | F22: 25,000 | G22: 32.78 | H22: BSE
A23: 2023-01-25 | B23: 511764 | C23: AASTAFIN | D23: MANSI SHARE & STOCK ADVISORS PRIVATE LIMITED | E23: SELL | F23: 25,000 | G23: 32.78 | H23: BSE
A24: 2023-01-25 | B24: 511764 | C24: AASTAFIN | D24: PREETI BHAUKA | E24: BUY | F24: 25,000 | G24: 32.72 | H24: BSE
A25: 2023-01-25 | B25: 511764 | C25: AASTAFIN | D25: TEJAS TRADEFIN LLP | E25: SELL | F25: 33,526 | G25: 32.78 | H25: BSE
A26: 2023-01-25 | B26: 511764 | C26: AASTAFIN | D26: TOPGAIN FINANCE PRIVATE LIMITED | E26: SELL | F26: 50,000 | G26: 32.78 | H26: BSE
A27: 2023-01-25 | B27: 511764 | C27: AASTAFIN | D27: TEJAS TRADEFIN LLP | E27: BUY | F27: 33,526 | G27: 32.2 | H27: BSE
A28: 2023-01-25 | B28: 511764 | C28: AASTAFIN | D28: TOPGAIN FINANCE PRIVATE LIMITED | E28: BUY | F28: 50,000 | G28: 32.4 | H28: BSE
A29: 2023-01-25 | B29: 511764 | C29: AASTAFIN | D29: BHARATKUMARPUKHRAJJI | E29: SELL | F29: 46,624 | G29: 32.78 | H29: BSE
A30: 2023-01-25 | B30: 539773 | C30: ADVIKCA | D30: BHAVYA DHIMAN | E30: SELL | F30: 2,494,117 | G30: 3.97 | H30: BSE
A31: 2023-01-25 | B31: 539773 | C31: ADVIKCA | D31: BHAVYA DHIMAN | E31: BUY | F31: 2,518,721 | G31: 3.9 | H31: BSE
A32: 2023-01-25 | B32: 539773 | C32: ADVIKCA | D32: VISHESH GUPTA | E32: BUY | F32: 1,500,000 | G32: 4.06 | H32: BSE
A33: 2023-01-25 | B33: 539773 | C33: ADVIKCA | D33: VRINDAA ADVANCED MATERIALS LIMITED | E33: BUY | F33: 1,500,000 | G33: 3.98 | H33: BSE
A34: 2023-01-25 | B34: 526488 | C34: BHUDEVI | D34: VIVEK KANDA | E34: SELL | F34: 25,000 | G34: 4.35 | H34: BSE
A35: 2023-01-25 | B35: 539559 | C35: DDIL | D35: MULTIPLIER SHARE & STOCK ADVISORS PRIVATE LIMITED | E35: SELL | F35: 215,327 | G35: 18.45 | H35: BSE
A36: 2023-01-25 | B36: 539559 | C36: DDIL | D36: MULTIPLIER SHARE & STOCK ADVISORS PRIVATE LIMITED | E36: BUY | F36: 135,000 | G36: 18.45 | H36: BSE
A37: 2023-01-25 | B37: 537707 | C37: ETT | D37: DIPAK DWIWEDI | E37: BUY | F37: 45,269 | G37: 59.37 | H37: BSE
A38: 2023-01-25 | B38: 537707 | C38: ETT | D38: DIPAK DWIWEDI | E38: SELL | F38: 53,815 | G38: 59.59 | H38: BSE
A39: 2023-01-25 | B39: 530077 | C39: FRSHTRP* | D39: FRESHTROP FRUITS LIMITED | E39: BUY | F39: 71,939 | G39: 114.74 | H39: BSE
A40: 2023-01-25 | B40: 540614 | C40: GGENG | D40: BHAVYA DHIMAN | E40: BUY | F40: 2,616,184 | G40: 1.32 | H40: BSE
A41: 2023-01-25 | B41: 540936 | C41: GGL | D41: YACOOBALI AIYUB MOHAMMED | E41: SELL | F41: 162,269 | G41: 21.05 | H41: BSE
A42: 2023-01-25 | B42: 540936 | C42: GGL | D42: YACOOBALI AIYUB MOHAMMED | E42: BUY | F42: 112,581 | G42: 20.82 | H42: BSE
A43: 2023-01-25 | B43: 540936 | C43: GGL | D43: GANGA RAM RAJPUT | E43: BUY | F43: 60,000 | G43: 21.05 | H43: BSE
A44: 2023-01-25 | B44: 540936 | C44: GGL | D44: KISHORPREMCHANDDOWLANI | E44: BUY | F44: 54,000 | G44: 20.95 | H44: BSE
A45: 2023-01-25 | B45: 507598 | C45: KLRFM | D45: MOUNTAIN VENTURES | E45: BUY | F45: 28,400 | G45: 176.15 | H45: BSE
A46: 2023-01-25 | B46: 541973 | C46: MACH | D46: CHIRAG D BHANUSHALI HUF | E46: BUY | F46: 58,500 | G46: 34.94 | H46: BSE
A47: 2023-01-25 | B47: 541973 | C47: MACH | D47: BHAVIN RAMESH SHAH | E47: SELL | F47: 25,500 | G47: 35 | H47: BSE
A48: 2023-01-25 | B48: 541337 | C48: MILEFUR | D48: BP EQUITIES PVT. LTD. | E48: BUY | F48: 33,000 | G48: 10.03 | H48: BSE
A49: 2023-01-25 | B49: 541337 | C49: MILEFUR | D49: BP COMTRADE PRIVATE LIMITED | E49: BUY | F49: 63,000 | G49: 9.48 | H49: BSE
A50: 2023-01-25 | B50: 541337 | C50: MILEFUR | D50: BP COMTRADE PRIVATE LIMITED | E50: SELL | F50: 24,000 | G50: 10.05 | H50: BSE
A51: 2023-01-25 | B51: 541337 | C51: MILEFUR | D51: BP EQUITIES PVT. LTD. | E51: SELL | F51: 57,000 | G51: 10.09 | H51: BSE
A52: 2023-01-25 | B52: 541337 | C52: MILEFUR | D52: SONAL GAJENDRA MALU | E52: BUY | F52: 90,000 | G52: 10.1 | H52: BSE
A53: 2023-01-25 | B53: 541337 | C53: MILEFUR | D53: KINCHIT SUNILKUMAR MEHTA HUF | E53: BUY | F53: 30,000 | G53: 9.16 | H53: BSE
A54: 2023-01-25 | B54: 541337 | C54: MILEFUR | D54: KINCHIT SUNILKUMAR MEHTA HUF | E54: SELL | F54: 60,000 | G54: 10.08 | H54: BSE
A55: 2023-01-25 | B55: 541337 | C55: MILEFUR | D55: SUNILKUMAR CHANDRAKANT MEHTA (HUF) | E55: SELL | F55: 60,000 | G55: 10.1 | H55: BSE
A56: 2023-01-25 | B56: 541337 | C56: MILEFUR | D56: KIFS ENTERPRISE | E56: BUY | F56: 105,000 | G56: 10.1 | H56: BSE
A57: 2023-01-25 | B57: 541337 | C57: MILEFUR | D57: VIVEK KUMAR BHAUKA | E57: SELL | F57: 51,000 | G57: 9.22 | H57: BSE
A58: 2023-01-25 | B58: 541337 | C58: MILEFUR | D58: MULTIPLIER SHARE & STOCK ADVISORS PRIVATE LIMITED | E58: SELL | F58: 249,000 | G58: 9.74 | H58: BSE
A59: 2023-01-25 | B59: 541337 | C59: MILEFUR | D59: MULTIPLIER SHARE & STOCK ADVISORS PRIVATE LIMITED | E59: BUY | F59: 189,000 | G59: 9.63 | H59: BSE
A60: 2023-01-25 | B60: 541337 | C60: MILEFUR | D60: SAJU MALETHUKALAYIL VARGHESE | E60: BUY | F60: 54,000 | G60: 9.25 | H60: BSE
A61: 2023-01-25 | B61: 541337 | C61: MILEFUR | D61: ANUBHAVMITTAL | E61: BUY | F61: 102,000 | G61: 10.1 | H61: BSE
A62: 2023-01-25 | B62: 541337 | C62: MILEFUR | D62: ABHINAVGOSWAMI | E62: BUY | F62: 387,000 | G62: 9.55 | H62: BSE
A63: 2023-01-25 | B63: 541337 | C63: MILEFUR | D63: ANUBHAVMITTAL | E63: SELL | F63: 27,000 | G63: 9.14 | H63: BSE
A64: 2023-01-25 | B64: 541337 | C64: MILEFUR | D64: ANALAKADHARINARAYANAN | E64: SELL | F64: 66,000 | G64: 10.1 | H64: BSE
A65: 2023-01-25 | B65: 541337 | C65: MILEFUR | D65: MAYANK RASIKLAL KOTADIA | E65: SELL | F65: 141,000 | G65: 9.14 | H65: BSE
A66: 2023-01-25 | B66: 526263 | C66: MOLDTEK | D66: SUNEET LAL | E66: BUY | F66: 173,717 | G66: 162.42 | H66: BSE
A67: 2023-01-25 | B67: 526263 | C67: MOLDTEK | D67: SUNEET LAL | E67: SELL | F67: 173,717 | G67: 163.36 | H67: BSE
A68: 2023-01-25 | B68: 543305 | C68: NAVODAYENT | D68: ANMOL JAIN | E68: BUY | F68: 48,000 | G68: 5.99 | H68: BSE
A69: 2023-01-25 | B69: 543305 | C69: NAVODAYENT | D69: NNM SECURITIES PVT LTD | E69: BUY | F69: 24,000 | G69: 5.71 | H69: BSE
A70: 2023-01-25 | B70: 543305 | C70: NAVODAYENT | D70: NNM SECURITIES PVT LTD | E70: SELL | F70: 72,000 | G70: 5.68 | H70: BSE
A71: 2023-01-25 | B71: 543305 | C71: NAVODAYENT | D71: PRATEEKDHUPER | E71: BUY | F71: 60,000 | G71: 5.65 | H71: BSE
A72: 2023-01-25 | B72: 543351 | C72: NBL | D72: VIRATH SHAH | E72: SELL | F72: 11,200 | G72: 75.89 | H72: BSE
A73: 2023-01-25 | B73: 519528 | C73: NORBTEAEXP | D73: AKSHAY AGGARWAL | E73: SELL | F73: 60,072 | G73: 13 | H73: BSE
A74: 2023-01-25 | B74: 519528 | C74: NORBTEAEXP | D74: AKSHAY AGGARWAL | E74: BUY | F74: 4,572 | G74: 12.38 | H74: BSE
A75: 2023-01-25 | B75: 531465 | C75: NOUVEAU | D75: CASTERLY REAL ESTATE PRIVATE LIMITED | E75: BUY | F75: 1,050,000 | G75: 1 | H75: BSE
A76: 2023-01-25 | B76: 531465 | C76: NOUVEAU | D76: ATTRIBUTE SHARES & SECURITIES PVT LTD | E76: SELL | F76: 2,700,000 | G76: 1 | H76: BSE
A77: 2023-01-25 | B77: 531465 | C77: NOUVEAU | D77: GAJMUKH TRADING PRIVATE LIMITED | E77: BUY | F77: 1,150,000 | G77: 1 | H77: BSE
A78: 2023-01-25 | B78: 531454 | C78: POLYLINK | D78: MONET SECURITIES PRIVATE LTD | E78: SELL | F78: 118,000 | G78: 26.1 | H78: BSE
A79: 2023-01-25 | B79: 501314 | C79: PRISMX | D79: BANAS FINANCE LIMITED | E79: BUY | F79: 2,200,000 | G79: 2.39 | H79: BSE
A80: 2023-01-25 | B80: 543460 | C80: QRIL | D80: DHAVAL HARSHADRAI GANATRA | E80: SELL | F80: 10,000 | G80: 67.51 | H80: BSE
A81: 2023-01-25 | B81: 535719 | C81: QUEST | D81: SONAL KALPESH KORADIA | E81: SELL | F81: 77,000 | G81: 66.5 | H81: BSE
A82: 2023-01-25 | B82: 515127 | C82: RAMASIGNS | D82: PRIYAM RANDHIR KUMAR SRIVASTAVA | E82: SELL | F82: 142,909 | G82: 3.77 | H82: BSE
A83: 2023-01-25 | B83: 512115 | C83: ROSEMER | D83: GAUTAM DALMIA . | E83: BUY | F83: 7,146 | G83: 36.52 | H83: BSE
A84: 2023-01-25 | B84: 512115 | C84: ROSEMER | D84: GOURAVKUMAR | E84: BUY | F84: 6,714 | G84: 36.48 | H84: BSE
A85: 2023-01-25 | B85: 539584 | C85: SIPTL | D85: HANSABEN BHARATKUMAR PATEL | E85: SELL | F85: 686,498 | G85: 1.18 | H85: BSE
A86: 2023-01-25 | B86: 540914 | C86: SRUSTEELS | D86: PRADIP RAMESHBHAI MAKWANA | E86: BUY | F86: 55,000 | G86: 17.1 | H86: BSE
A87: 2023-01-25 | B87: 540914 | C87: SRUSTEELS | D87: PREM PRAKASH AGARWAL | E87: SELL | F87: 50,000 | G87: 17.1 | H87: BSE
A88: 2023-01-25 | B88: 540914 | C88: SRUSTEELS | D88: KALI DAS CHAUHAN | E88: SELL | F88: 50,000 | G88: 17.1 | H88: BSE
A89: 2023-01-25 | B89: 539278 | C89: SYMBIOX | D89: BP EQUITIES PVT. LTD. | E89: BUY | F89: 140,360 | G89: 7.12 | H89: BSE
A90: 2023-01-25 | B90: 539278 | C90: SYMBIOX | D90: BP EQUITIES PVT. LTD. | E90: SELL | F90: 185,355 | G90: 6.99 | H90: BSE
A91: 2023-01-25 | B91: 539278 | C91: SYMBIOX | D91: SKSE SECURITIES LIMITED CORP CM/TM PROP A/C | E91: SELL | F91: 54,549 | G91: 7.12 | H91: BSE
A92: 2023-01-25 | B92: 539278 | C92: SYMBIOX | D92: SKSE SECURITIES LIMITED CORP CM/TM PROP A/C | E92: BUY | F92: 302,624 | G92: 6.9 | H92: BSE
A93: 2023-01-25 | B93: 521005 | C93: TITANIN | D93: VIDYA BABAN SHINDE | E93: BUY | F93: 15,000 | G93: 34.53 | H93: BSE
A94: 2023-01-25 | B94: 539040 | C94: TTIL | D94: PARESH DHIRAJLAL SHAH | E94: BUY | F94: 30,000 | G94: 25.95 | H94: BSE
A95: 2023-01-25 | B95: 502893 | C95: UNITEDINT | D95: GITESH BALARAM TAMBE | E95: BUY | F95: 15,631 | G95: 61.8 | H95: BSE
A96: 2023-01-25 | B96: 502893 | C96: UNITEDINT | D96: ANITA DEEPAK DALAL | E96: SELL | F96: 14,900 | G96: 61.8 | H96: BSE
A97: 2023-01-25 | B97: 539402 | C97: VAL | D97: BHAVANA KESHAVLAL CHHABHAYA | E97: BUY | F97: 90,000 | G97: 24.54 | H97: BSE
A98: 2023-01-25 | B98: 539402 | C98: VAL | D98: MULTIPLIER SHARE & STOCK ADVISORS PRIVATE LIMITED | E98: SELL | F98: 96,681 | G98: 26.06 | H98: BSE
A99: 2023-01-25 | B99: 539402 | C99: VAL | D99: MULTIPLIER SHARE & STOCK ADVISORS PRIVATE LIMITED | E99: BUY | F99: 67,682 | G99: 25.87 | H99: BSE
A100: 2023-01-25 | B100: AARTI-RE | C100: Aarti Surfactants Limited | D100: NIKHIL PARIMAL DESAI | E100: BUY | F100: 52,026 | G100: 18.4 | H100: NSE
A101: 2023-01-25 | B101: AARTI-RE | C101: Aarti Surfactants Limited | D101: NIKHIL HOLDINGS PRIVATE LIMITED | E101: BUY | F101: 200,000 | G101: 18.06 | H101: NSE
A102: 2023-01-25 | B102: BRIGHT | C102: Bright Solar Limited | D102: MULTIPLIER SHARE & STOCK ADVISORS PRIVATE LIMITED | E102: BUY | F102: 342,000 | G102: 8.7 | H102: NSE
A103: 2023-01-25 | B103: FIBERWEB | C103: Fiberweb India Limited | D103: MANJU SINGHI | E103: BUY | F103: 159,225 | G103: 36.53 | H103: NSE
A104: 2023-01-25 | B104: GOYALALUM | C104: Goyal Aluminiums Limited | D104: ANANT WEALTH CONSULTANTS PRIVATE LIMITED | E104: BUY | F104: 191,923 | G104: 177.48 | H104: NSE
A105: 2023-01-25 | B105: GOYALALUM | C105: Goyal Aluminiums Limited | D105: TOUCHLINE SECURITIES PRIVATE LIMITED | E105: BUY | F105: 1,803 | G105: 182 | H105: NSE
A106: 2023-01-25 | B106: GOYALALUM | C106: Goyal Aluminiums Limited | D106: NIRAJ RAJNIKANT SHAH | E106: BUY | F106: 100,000 | G106: 176.08 | H106: NSE
A107: 2023-01-25 | B107: GOYALALUM | C107: Goyal Aluminiums Limited | D107: ECONO TRADING & INVESTMENT PRIVATE LIMITED | E107: BUY | F107: 494,300 | G107: 164.56 | H107: NSE
A108: 2023-01-25 | B108: GSTL | C108: Globesecure Techno Ltd | D108: VEENA RAJESH SHAH | E108: BUY | F108: 64,000 | G108: 99.12 | H108: NSE
A109: 2023-01-25 | B109: HOMESFY | C109: Homesfy Realty Limited | D109: SANJAY B SHAH (HUF) | E109: BUY | F109: 16,200 | G109: 438.26 | H109: NSE
A110: 2023-01-25 | B110: JETFREIGHT | C110: Jet Freight Logistics Ltd | D110: JILESH NAVIN CHHEDA | E110: BUY | F110: 248,266 | G110: 18.34 | H110: NSE
A111: 2023-01-25 | B111: KOHINOOR | C111: Kohinoor Foods Limited | D111: SAROJ GUPTA | E111: BUY | F111: 366,174 | G111: 80.09 | H111: NSE
A112: 2023-01-25 | B112: KOHINOOR | C112: Kohinoor Foods Limited | D112: GAJANAN REALCON PRIVATE LIMITED | E112: BUY | F112: 200,000 | G112: 82.68 | H112: NSE
A113: 2023-01-25 | B113: KOHINOOR | C113: Kohinoor Foods Limited | D113: ORATOR MARKETING PRIVATE LIMITED | E113: BUY | F113: 200,000 | G113: 81.96 | H113: NSE
A114: 2023-01-25 | B114: KOHINOOR | C114: Kohinoor Foods Limited | D114: NK SECURITIES RESEARCH PRIVATE LIMITED | E114: BUY | F114: 300,037 | G114: 81.63 | H114: NSE
A115: 2023-01-25 | B115: LAMBODHARA | C115: Lambodhara Textiles Ltd. | D115: QE SECURITIES | E115: BUY | F115: 66,614 | G115: 186.53 | H115: NSE
A116: 2023-01-25 | B116: MAKS | C116: Maks Energy Sol India Ltd | D116: INDIACREDIT RISK MANAGEMENT LLP | E116: BUY | F116: 60,000 | G116: 35.5 | H116: NSE
A117: 2023-01-25 | B117: NURECA | C117: Nureca Limited | D117: GRAVITON RESEARCH CAPITAL LLP | E117: BUY | F117: 87,303 | G117: 457.48 | H117: NSE
A118: 2023-01-25 | B118: NURECA | C118: Nureca Limited | D118: QE SECURITIES | E118: BUY | F118: 76,366 | G118: 456.98 | H118: NSE
A119: 2023-01-25 | B119: NURECA | C119: Nureca Limited | D119: SUNEET LAL | E119: BUY | F119: 68,681 | G119: 461.73 | H119: NSE
A120: 2023-01-25 | B120: SHRADHA | C120: Shradha Infraprojects Ltd | D120: MULTIPLIER SHARE & STOCK ADVISORS PRIVATE LIMITED | E120: BUY | F120: 223,798 | G120: 61.74 | H120: NSE
A121: 2023-01-25 | B121: SOUTHBANK | C121: South Indian Bank Ltd. | D121: HI GROWTH CORPORATE SERVICES PVT LTD | E121: BUY | F121: 16,105,938 | G121: 17.27 | H121: NSE
A122: 2023-01-25 | B122: SVPGLOB | C122: SVP GLOBAL TEXTILES LTD | D122: VIGNESH | E122: BUY | F122: 780,956 | G122: 41.45 | H122: NSE
A123: 2023-01-25 | B123: SVPGLOB | C123: SVP GLOBAL TEXTILES LTD | D123: MAHAVEER COMSTOCK TRADIND LLP | E123: BUY | F123: 1,011,739 | G123: 38.55 | H123: NSE
A124: 2023-01-25 | B124: SVPGLOB | C124: SVP GLOBAL TEXTILES LTD | D124: M/S. PRARTHANA ENTERPRISES | E124: BUY | F124: 1,401,390 | G124: 42.67 | H124: NSE
A125: 2023-01-25 | B125: VAISHALI | C125: Vaishali Pharma Limited | D125: AMAYSHA TEXTILES PRIVATE LIMITED | E125: BUY | F125: 100,000 | G125: 146.97 | H125: NSE
A126: 2023-01-25 | B126: VAISHALI | C126: Vaishali Pharma Limited | D126: VIKRAMKUMAR KARANRAJ SAKARIA HUF DAKSH CORPORATION | E126: BUY | F126: 2,400 | G126: 145.8 | H126: NSE
A127: 2023-01-25 | B127: VASA | C127: Vasa Retail & Oversea Ltd | D127: SOMANI VENTURES AND INNOVATIONS LIMITED | E127: BUY | F127: 64,000 | G127: 21.7 | H127: NSE
A128: 2023-01-25 | B128: AARTI-RE | C128: Aarti Surfactants Limited | D128: JAYA CHANDRAKANT GOGRI | E128: SELL | F128: 132,633 | G128: 18.07 | H128: NSE
A129: 2023-01-25 | B129: AARTI-RE | C129: Aarti Surfactants Limited | D129: LABDHI BUSINESS TRUST | E129: SELL | F129: 29,411 | G129: 18 | H129: NSE
A130: 2023-01-25 | B130: AARTI-RE | C130: Aarti Surfactants Limited | D130: PANBAI WELFARE FOUNDATION | E130: SELL | F130: 8,130 | G130: 18 | H130: NSE
A131: 2023-01-25 | B131: AARTI-RE | C131: Aarti Surfactants Limited | D131: MANISHA RASHESH GOGRI | E131: SELL | F131: 6,470 | G131: 18 | H131: NSE
A132: 2023-01-25 | B132: AARTI-RE | C132: Aarti Surfactants Limited | D132: RASHESH C. GOGRI | E132: SELL | F132: 25,280 | G132: 18.15 | H132: NSE
A133: 2023-01-25 | B133: AARTI-RE | C133: Aarti Surfactants Limited | D133: AARNAV RASHESH GOGRI | E133: SELL | F133: 6,469 | G133: 21 | H133: NSE
A134: 2023-01-25 | B134: AARTI-RE | C134: Aarti Surfactants Limited | D134: DHIREN KISHORE SHAH | E134: SELL | F134: 14,244 | G134: 21.95 | H134: NSE
A135: 2023-01-25 | B135: AARTI-RE | C135: Aarti Surfactants Limited | D135: ALCHEMIE FINANCIAL SERVICES LIMITED | E135: SELL | F135: 7,917 | G135: 18.05 | H135: NSE
A136: 2023-01-25 | B136: AARTI-RE | C136: Aarti Surfactants Limited | D136: ANUSHAKTI ENTERPRISE PRIVATE LIMITED | E136: SELL | F136: 29,323 | G136: 18.05 | H136: NSE
A137: 2023-01-25 | B137: BRIGHT | C137: Bright Solar Limited | D137: SUNIL HASMUKHLAL SHAH | E137: SELL | F137: 174,000 | G137: 8.7 | H137: NSE
A138: 2023-01-25 | B138: FIBERWEB | C138: Fiberweb India Limited | D138: BHARAT CAPITAL AND HOLDINGS LIMITED | E138: SELL | F138: 350,000 | G138: 36.65 | H138: NSE
A139: 2023-01-25 | B139: GODHA | C139: Godha Cabcon Insulat Ltd | D139: MADHU DEVI GODHA | E139: SELL | F139: 1,628,808 | G139: 1.7 | H139: NSE
A140: 2023-01-25 | B140: GOYALALUM | C140: Goyal Aluminiums Limited | D140: NIRAJ RAJNIKANT SHAH | E140: SELL | F140: 100,000 | G140: 164.12 | H140: NSE
A141: 2023-01-25 | B141: GOYALALUM | C141: Goyal Aluminiums Limited | D141: ANANT WEALTH CONSULTANTS PRIVATE LIMITED | E141: SELL | F141: 200,000 | G141: 165.05 | H141: NSE
A142: 2023-01-25 | B142: GOYALALUM | C142: Goyal Aluminiums Limited | D142: TOUCHLINE SECURITIES PRIVATE LIMITED | E142: SELL | F142: 200,000 | G142: 164.42 | H142: NSE
A143: 2023-01-25 | B143: GSTL | C143: Globesecure Techno Ltd | D143: VEENA RAJESH SHAH | E143: SELL | F143: 64,000 | G143: 96.58 | H143: NSE
A144: 2023-01-25 | B144: GSTL | C144: Globesecure Techno Ltd | D144: JYOTHI KAILASH KABRA | E144: SELL | F144: 96,000 | G144: 96.52 | H144: NSE
A145: 2023-01-25 | B145: JETFREIGHT | C145: Jet Freight Logistics Ltd | D145: SANJAY GARG | E145: SELL | F145: 197,384 | G145: 17.9 | H145: NSE
A146: 2023-01-25 | B146: JETFREIGHT | C146: Jet Freight Logistics Ltd | D146: JILESH NAVIN CHHEDA | E146: SELL | F146: 248,266 | G146: 18.6 | H146: NSE
A147: 2023-01-25 | B147: KOHINOOR | C147: Kohinoor Foods Limited | D147: SAROJ GUPTA | E147: SELL | F147: 479,813 | G147: 81.47 | H147: NSE
A148: 2023-01-25 | B148: KOHINOOR | C148: Kohinoor Foods Limited | D148: KSHITI RISHIT MANIAR | E148: SELL | F148: 250,000 | G148: 80.03 | H148: NSE
A149: 2023-01-25 | B149: KOHINOOR | C149: Kohinoor Foods Limited | D149: NK SECURITIES RESEARCH PRIVATE LIMITED | E149: SELL | F149: 300,037 | G149: 81.69 | H149: NSE
A150: 2023-01-25 | B150: LAMBODHARA | C150: Lambodhara Textiles Ltd. | D150: QE SECURITIES | E150: SELL | F150: 63,638 | G150: 185.38 | H150: NSE
A151: 2023-01-25 | B151: MAKS | C151: Maks Energy Sol India Ltd | D151: MIKER FINANCIAL CONSULTANTS PVT LTD | E151: SELL | F151: 60,000 | G151: 35.5 | H151: NSE
A152: 2023-01-25 | B152: NURECA | C152: Nureca Limited | D152: QE SECURITIES | E152: SELL | F152: 81,946 | G152: 457.77 | H152: NSE
A153: 2023-01-25 | B153: NURECA | C153: Nureca Limited | D153: SUNEET LAL | E153: SELL | F153: 58,681 | G153: 463.66 | H153: NSE
A154: 2023-01-25 | B154: NURECA | C154: Nureca Limited | D154: GRAVITON RESEARCH CAPITAL LLP | E154: SELL | F154: 87,303 | G154: 457.51 | H154: NSE
A155: 2023-01-25 | B155: SHRADHA | C155: Shradha Infraprojects Ltd | D155: MULTIPLIER SHARE & STOCK ADVISORS PRIVATE LIMITED | E155: SELL | F155: 327,459 | G155: 62.35 | H155: NSE
A156: 2023-01-25 | B156: SHRADHA | C156: Shradha Infraprojects Ltd | D156: NOPEA CAPITAL SERVICES PRIVATE LIMITED | E156: SELL | F156: 135,000 | G156: 62.35 | H156: NSE
A157: 2023-01-25 | B157: SOUTHBANK | C157: South Indian Bank Ltd. | D157: HI GROWTH CORPORATE SERVICES PVT LTD | E157: SELL | F157: 16,948,790 | G157: 17.26 | H157: NSE
A158: 2023-01-25 | B158: SVPGLOB | C158: SVP GLOBAL TEXTILES LTD | D158: MAHAVEER COMSTOCK TRADIND LLP | E158: SELL | F158: 10,739 | G158: 40.39 | H158: NSE
A159: 2023-01-25 | B159: SVPGLOB | C159: SVP GLOBAL TEXTILES LTD | D159: M/S. PRARTHANA ENTERPRISES | E159: SELL | F159: 1,066,740 | G159: 38.56 | H159: NSE
A160: 2023-01-25 | B160: SVPGLOB | C160: SVP GLOBAL TEXTILES LTD | D160: VIGNESH | E160: SELL | F160: 755,936 | G160: 42.94 | H160: NSE
A161: 2023-01-25 | B161: VAISHALI | C161: Vaishali Pharma Limited | D161: VIKRAMKUMAR KARANRAJ SAKARIA HUF DAKSH CORPORATION | E161: SELL | F161: 53,400 | G161: 147.42 | H161: NSE
A162: 2023-01-25 | B162: VASA | C162: Vasa Retail & Oversea Ltd | D162: HARDIK BHUPENDRA VASA | E162: SELL | F162: 48,000 | G162: 21.4 | H162: NSE

Sheet Call Tracker (Equity & F&O)
M5: Back To Main Page
A6: Retail Research Technical Calls & Fundamental Performance Report for the month of Jan-2022
M7: =Main!B10 -> 2023-01-27
B8: Positional Call
A9: Sr.no | B9: Date | D9: Company | E9: Rec | F9: Rec Price | G9: Stop Loss*** | H9: Call Closed At | I9: Target | J9: Remark | K9: Profit / Loss per Share | L9: All charges | M9: Net Gain / Loss % | N9: Status | O9: Closed Date | P9: Market Closing Price
A10: 1 | B10: 2022-10-27 | D10: ASHOKLEY | E10: Buy | F10: 147 | G10: 137 | H10: 154 | I10: 160-170 | J10: Part profit of Rs.7/- | K10: =H10-F10 -> 7 | L10: =(F10*-0.7)/100 -> -1.03 | M10: =(K10+L10)/F10 -> 4.06% | N10: Successful | O10: 2022-11-01 | R10: N
A11: 2 | B11: 2022-11-11 | D11: ULTRACEMCO | E11: Buy | F11: 6800 | G11: 6340 | H11: 7195 | I11: 7400-8000 | J11: Profit of Rs.395/- | K11: =H11-F11 -> 395 | L11: =(F11*-0.7)/100 -> -47.60 | M11: =(K11+L11)/F11 -> 5.11% | N11: Successful | O11: 2023-01-13 | R11: H
A12: 3 | B12: 2022-11-25 | D12: SANOFI | E12: Buy | F12: 5670 | G12: 5250 | H12: 5905 | I12: 6200-6500 | J12: Part profit of Rs.235/- | K12: =H12-F12 -> 235 | L12: =(F12*-0.7)/100 -> -39.69 | M12: =(K12+L12)/F12 -> 3.44% | N12: Successful | O12: 2022-12-28 | R12: H
A13: 4 | B13: 2022-12-01 | D13: TCS | E13: Buy<> | F13: 3380 | G13: 3140 | I13: 3800-4000 | J13: Open | R13: H
A14: 5 | B14: 2022-12-27 | D14: GSPL | E14: Buy | F14: 262.5 | G14: 246 | H14: 281.5 | I14: 290-300 | J14: Profit of Rs.19/- | K14: =H14-F14 -> 19 | L14: =(F14*-0.7)/100 -> -1.84 | M14: =(K14+L14)/F14 -> 6.54% | N14: Successful | O14: 2023-01-09 | R14: N
A15: 6 | B15: 2023-01-04 | D15: BEL | E15: Buy | F15: 98 | G15: 89 | H15: 103.5 | I15: 110-115 | J15: Part profit of Rs.5.50/- | K15: 5.5 | L15: -0.69 | M15: 4.91% | N15: Successful | O15: 2023-01-18 | R15: H
A16: 7 | B16: 2023-01-04 | D16: APOLLOHOSP | E16: Buy | F16: 4400-4450 | G16: 4180 | I16: 4700-4900 | J16: Open | R16: H
A17: 8 | B17: 2023-01-05 | D17: MARUTI | E17: Buy | F17: 8430 | G17: 7900 | H17: 8790 | I17: 9200-9500 | J17: Part profit of Rs.360/- | K17: =H17-F17 -> 360 | L17: =(F17*-0.7)/100 -> -59.01 | M17: =(K17+L17)/F17 -> 3.57% | N17: Successful | O17: 2023-01-25 | R17: N
A18: 9 | B18: 2023-01-09 | D18: ICICIBANK | E18: Buy | F18: 860-870 | G18: 818 | I18: 920-960 | J18: Open | R18: H
A19: 10 | B19: 2023-01-09 | D19: POWERGRID | E19: Buy | F19: 210 | G19: 198 | H19: 223.5 | I19: 222-235 | J19: Profit of Rs.13.50/- | K19: =H19-F19 -> 13.5 | L19: =(F19*-0.7)/100 -> -1.47 | M19: =(K19+L19)/F19 -> 5.73% | N19: Successful | O19: 2023-01-20 | R19: N
A20: 11 | B20: 2023-01-09 | D20: TATAELXSI | E20: Buy | F20: 6225 | G20: 5690 | H20: 6595 | I20: 6800-7200 | J20: Profit of Rs.370/- | K20: 370 | L20: -43.58 | M20: 5.24% | N20: Successful | O20: 2023-01-23 | R20: H
A21: 12 | B21: 2023-01-10 | D21: BHARTIARTL | E21: Buy | F21: 780-800 | G21: 735 | I21: 870-900 | J21: Open | R21: H
A22: 13 | B22: 2023-01-10 | D22: REDINGTON | E22: Buy | F22: 178.5 | G22: 167 | H22: 190.5 | I22: 195-200 | J22: Profit of Rs.12/- | K22: =H22-F22 -> 12 | L22: =(F22*-0.7)/100 -> -1.25 | M22: =(K22+L22)/F22 -> 6.02% | N22: Successful | O22: 2023-01-18 | R22: H
A23: 14 | B23: 2023-01-16 | D23: NAVINFLUOR | E23: Buy | F23: 4000-4050 | G23: 3770 | I23: 4300-4500 | J23: Open | R23: N
A24: 15 | B24: 2023-01-19 | D24: SRF | E24: Buy | F24: 2130-2150 | G24: 2000 | I24: 2300-2400 | J24: Open | R24: N
A25: 16 | B25: 2023-01-24 | D25: PIIND | E25: Accu | F25: 3085-3005 | G25: 2890 | I25: 3300-3400 | J25: Open
A26: 17 | B26: 2023-01-24 | D26: KIMS | E26: Buy | F26: 1430-1440 | G26: 1340 | I26: 1580-1650 | J26: Open
A27: 18 | B27: 2023-01-25 | D27: REDINGTON | E27: Accu | F27: 180.5-174.5 | G27: 167 | I27: 195-200 | J27: Open
A34: CLBS = Closing Basis ***
A35: Dividend adjusted <> | F35: Reinitiated $
A36: Part book {} | D36: s | F36: Revised stoploss #
B38: Momentum Call
A39: Sr.no | B39: Date | D39: Company | E39: Rec | F39: Rec Price | G39: Stop Loss | H39: Call Closed At | I39: Target | J39: Remark | K39: Profit / Loss per Share/Lot | L39: All charges | M39: Net Gain / Loss % | N39: Status | O39: Closed Date
A40: 1 | B40: 2022-12-26 | D40: M&M | E40: Buy | F40: 1239.5 | G40: 1200 | H40: 1273.5 | I40: 1280-1310 | J40: Profit of Rs.34/- | K40: =H40-F40 -> 34 | L40: =(F40*-0.7)/100 -> -8.68 | M40: =(K40+L40)/F40 -> 2.04% | N40: Successful | O40: 2023-01-06 | R40: N
A41: 2 | B41: 2022-12-28 | D41: VARROC | E41: Buy | F41: 304.5 | G41: 295 | H41: 295 | I41: 315-325 | J41: Loss of Rs.9.5/- | K41: =H41-F41 -> -9.5 | L41: =(F41*-0.7)/100 -> -2.13 | M41: =(K41+L41)/F41 -> -3.82% | N41: Unsuccessful | O41: 2023-01-05 | R41: N
A42: 3 | B42: 2023-12-02 | D42: ADANIPORTS | E42: Buy | F42: 819 | G42: 795 | H42: 795 | I42: 850-860 | J42: Loss of Rs.24/- | K42: =H42-F42 -> -24 | L42: =(F42*-0.7)/100 -> -5.73 | M42: =(K42+L42)/F42 -> -3.63% | N42: Unsuccessful | O42: 2023-01-16 | R42: H
A43: 4 | B43: 2023-12-02 | D43: COFORGE | E43: Buy | F43: 3915 | G43: 3780 | H43: 4025 | I43: 4050-4150 | J43: Profit of Rs.110/- | K43: =H43-F43 -> 110 | L43: =(F43*-0.7)/100 -> -27.41 | M43: =(K43+L43)/F43 -> 2.11% | N43: Successful | O43: 2023-01-03 | R43: H
A44: 5 | B44: 2023-01-04 | D44: TATACONSUM | E44: Buy | F44: 763 | G44: 744 | H44: 743 | I44: 790-800 | J44: Loss of Rs.20/- | K44: -20 | L44: -5.34 | M44: -3.32% | N44: Unsuccessful | O44: 2023-01-20 | R44: H
A45: 6 | B45: 2023-01-04 | D45: TATAPOWER | E45: Buy | F45: 208.5 | G45: 202 | H45: 201.5 | I45: 218-222 | J45: Loss of Rs.7/- | K45: =H45-F45 -> -7 | L45: =(F45*-0.7)/100 -> -1.46 | M45: =(K45+L45)/F45 -> -4.06% | N45: Unsuccessful | O45: 2023-01-25 | R45: N
A46: 7 | B46: 2023-01-05 | D46: COFORGE | E46: Buy | F46: 3915 | G46: 3780 | H46: 4022 | I46: 4050-4150 | J46: Profit of Rs.107/- | K46: =H46-F46 -> 107 | L46: =(F46*-0.7)/100 -> -27.41 | M46: =(K46+L46)/F46 -> 2.03% | N46: Successful | O46: 2023-01-09 | R46: H
A47: 8 | B47: 2023-01-09 | D47: HCLTECH | E47: Buy | F47: 1065 | G47: 1035 | H47: 1098 | I47: 1100-1135 | J47: Profit of Rs.33/- | K47: =H47-F47 -> 33 | L47: =(F47*-0.7)/100 -> -7.46 | M47: =(K47+L47)/F47 -> 2.40% | N47: Successful | O47: 2023-01-16 | R47: H
A48: 9 | B48: 2023-01-12 | D48: BAJFINANCE | E48: Buy | F48: 5920-5960 | G48: 5780 | I48: 6100-6200 | J48: Open | R48: H
A49: 10 | B49: 2023-01-16 | D49: PIDILITIND | E49: Buy | F49: 2505 | G49: 2430 | H49: 2430 | I49: 2580-2630 | J49: Loss of Rs.75/- | K49: =H49-F49 -> -75 | L49: =(F49*-0.7)/100 -> -17.54 | M49: =(K49+L49)/F49 -> -3.69% | N49: Unsuccessful | O49: 2023-01-17 | R49: N
A50: 11 | B50: 2023-01-23 | D50: SWSOLAR | E50: Buy | F50: 267-269 | G50: 259 | I50: 280-290 | J50: Open
A51: 12 | B51: 2023-01-25 | D51: ULTRACEMCO | E51: Buy | F51: 6650-6700 | G51: 6470 | I51: 6950-7050 | J51: Open
A55: CLBS = Closing Basis *** | H55: *
A56: Dividend adjusted <> | F56: Reinitiated $
F57: Revised stoploss #
A59: Master Trade High Risk
A60: Sr.no | B60: Date | D60: Company | E60: Rec | F60: Rec Price | G60: Stop Loss | H60: Call Closed At | I60: Target | J60: Remark | K60: Profit / Loss per share | L60: All charges | M60: Gain / Loss per Lot | N60: Lot | O60: Status | P60: Closed Date
A61: 1 | B61: 2022-12-27 | D61: BHARTIARTL JAN FUT | E61: Buy | F61: 819 | G61: 805 | H61: 805 | I61: 835-845 | J61: Loss of Rs.14/- | K61: =H61-F61 -> -14 | L61: =(H61*N61)*0.07% -> 535.33 | M61: =(K61*N61)-L61 -> -13835.3 | N61: 950 | O61: Unsuccessful | P61: 2022-01-05 | R61: N
A62: 2 | B62: 2023-12-30 | D62: ICICIBANK JAN FUT | E62: Buy | F62: 908 | G62: 890 | H62: 890 | I62: 935-945 | J62: Loss of Rs.18/- | K62: =H62-F62 -> -18 | L62: =(H62*N62)*0.07% -> 436.10 | M62: =(K62*N62)-L62 -> -13036.1 | N62: 700 | O62: Unsuccessful | P62: 2022-01-05 | R62: N
A63: 3 | B63: 2023-01-02 | D63: SIEMENS JAN FUT | E63: Buy | F63: 2852.5 | G63: 2805 | H63: 2885 | I63: 2920-2950 | J63: Profit of Rs.32.5/- | K63: 32.5 | L63: 555.36 | M63: 8382.1 | N63: 275 | O63: Successful | P63: 2022-01-05 | R63: N
A64: 4 | B64: 2023-01-03 | D64: APOLLOHOSP JAN FUT | E64: Buy | F64: 4460 | G64: 4360 | H64: 4525 | I64: 4600-4700 | J64: Profit of Rs.65/- | K64: =H64-F64 -> 65 | L64: =(H64*N64)*0.07% -> 395.94 | M64: =(K64*N64)-L64 -> 7729.1 | N64: 125 | O64: Successful | P64: 2022-01-03 | R64: H
A65: 5 | B65: 2023-01-03 | D65: ASIANPAINT JAN FUT | E65: Buy | F65: 3055 | G65: 2990 | H65: 2990 | I65: 3150-3200 | J65: Loss of Rs.65/- | K65: -65 | L65: 418.60 | M65: -13418.6 | N65: 200 | O65: Unsuccessful | P65: 2022-01-06 | R65: H
A66: 6 | B66: 2023-01-04 | D66: APOLLOHOSP JAN FUT | E66: Buy | F66: 4475 | G66: 4370 | H66: 4370 | I66: 4600-4700 | J66: Loss of Rs.105/- | K66: =H66-F66 -> -105 | L66: =(H66*N66)*0.07% -> 382.38 | M66: =(K66*N66)-L66 -> -13507.4 | N66: 125 | O66: Unsuccessful | P66: 2022-01-11 | R66: H
A67: 7 | B67: 2023-01-04 | D67: UPL JAN FUT | E67: Buy | F67: 717 | G67: 707 | H67: 724.5 | I67: 730-735 | J67: Profit of Rs.7.5/- | K67: =H67-F67 -> 7.5 | L67: =(H67*N67)*0.07% -> 659.30 | M67: =(K67*N67)-L67 -> 9090.7 | N67: 1300 | O67: Successful | P67: 2022-01-05 | R67: H
A68: 8 | B68: 2023-01-05 | D68: M&M JAN FUT | E68: Buy | F68: 1251 | G68: 1233 | H68: 1263.5 | I68: 1275-1295 | J68: Profit of Rs.12.5/- | K68: =H68-F68 -> 12.5 | L68: =(H68*N68)*0.07% -> 619.12 | M68: =(K68*N68)-L68 -> 8130.9 | N68: 700 | O68: Successful | P68: 2022-01-06 | R68: H
A69: 9 | B69: 2023-01-09 | D69: UPL JAN FUT | E69: Buy | F69: 736 | G69: 725 | H69: 725 | I69: 750-755 | J69: Loss of Rs.11/- | K69: -11 | L69: 659.75 | M69: -14959.8 | N69: 1300 | O69: Unsuccessful | P69: 2022-01-10 | R69: H
A70: 10 | B70: 2023-01-10 | D70: COFORGE JAN FUT | E70: Buy | F70: 3955 | G70: 3865 | H70: 4015 | I70: 4050-4100 | J70: Profit of Rs.60/- | K70: =H70-F70 -> 60 | L70: =(H70*N70)*0.07% -> 421.58 | M70: =(K70*N70)-L70 -> 8578.4 | N70: 150 | O70: Successful | P70: 2022-01-10 | R70: H
A71: 11 | B71: 2023-01-10 | D71: NIFTY JAN FUT | E71: Buy | F71: 17965 | G71: 17795 | H71: 18045 | I71: 18200-18300 | J71: Profit of Rs.80/- | K71: =H71-F71 -> 80 | L71: =(H71*N71)*0.07% -> 631.58 | M71: =(K71*N71)-L71 -> 3368.4 | N71: 50 | O71: Successful | P71: 2022-01-11 | R71: H
A72: 12 | B72: 2023-01-11 | D72: UPL JAN FUT | E72: Buy | F72: 718 | G72: 708 | H72: 724.5 | I72: 735-740 | J72: Profit of Rs.6.5/- | K72: 6.5 | L72: 659.30 | M72: 7790.7 | N72: 1300 | O72: Successful | P72: 2023-01-13 | R72: H
A73: 13 | B73: 2023-01-11 | D73: COFORGE JAN FUT | E73: Buy | F73: 3940 | G73: 3850 | H73: 3860 | I73: 4050-4100 | J73: Loss of Rs.70/- | K73: =H73-F73 -> -80 | L73: =(H73*N73)*0.07% -> 405.30 | M73: =(K73*N73)-L73 -> -12405.3 | N73: 150 | O73: Unsuccessful | P73: 2022-01-12 | R73: H
A76: Master Trade Medium Risk
A77: Sr.no | B77: Date | D77: Company | E77: Rec | F77: Rec Price | G77: Stop Loss | H77: Call Closed At | I77: Target | J77: Remark | K77: Profit/ Loss per lot | L77: All charges | M77: Gain / Loss per Lot | N77: Lot | O77: Status | P77: Closed Date
A78: 1 | B78: 2022-12-29 | D78: HINDUNILVR 2580 CE JAN | E78: Buy | F78: 54 | G78: 36 | H78: 36 | I78: 75-90 | J78: Loss of Rs.18/- | K78: =H78-F78 -> -18 | L78: 100.00 | M78: =(K78*N78)-L78 -> -5500.0 | N78: 300 | O78: Unsuccessful | P78: 2023-01-03 | R78: N
A79: 2 | B79: 2023-12-30 | D79: LT 2140 CE JAN | E79: Buy | F79: 42 | G79: 25 | H79: 27 | I79: 60-70 | J79: Loss of Rs.15/- | K79: =H79-F79 -> -15 | L79: 100.00 | M79: =(K79*N79)-L79 -> -4600.0 | N79: 300 | O79: Unsuccessful | P79: 2023-01-02 | R79: N
A80: 3 | B80: 2023-01-02 | D80: RELIANCE 2580 CE JAN | E80: Buy | F80: 56 | G80: 35 | H80: 35 | I80: 80-90 | J80: Loss of Rs.21/- | K80: =H80-F80 -> -21 | L80: 100.00 | M80: =(K80*N80)-L80 -> -5350.0 | N80: 250 | O80: Unsuccessful | P80: 2023-01-04 | R80: H
A81: 4 | B81: 2023-01-03 | D81: INFY 1540 CE JAN | E81: Buy | F81: 32 | G81: 19.5 | H81: 19.5 | I81: 45-55 | J81: Loss of Rs.12.5/- | K81: =H81-F81 -> -12.5 | L81: 100.00 | M81: =(K81*N81)-L81 -> -5100.0 | N81: 400 | O81: Unsuccessful | P81: 2023-01-05 | R81: H
A82: 5 | B82: 2023-01-03 | D82: CIPLA 1080 CE JAN | E82: Buy | F82: 25.5 | G82: 18 | H82: 29.5 | I82: 35-40 | J82: Profit of Rs.4/- | K82: =H82-F82 -> 4 | L82: 100.00 | M82: =(K82*N82)-L82 -> 2500.0 | N82: 650 | O82: Successful | P82: 2023-01-05 | R82: H
A83: 6 | B83: 2023-01-03 | D83: TATACONSUM 780 CE JAN | E83: Buy | F83: 9.5 | G83: 4.5 | H83: 11.5 | I83: 15-20 | J83: Profit of Rs.2/- | K83: =H83-F83 -> 2 | L83: 100.00 | M83: =(K83*N83)-L83 -> 1700.0 | N83: 900 | O83: Successful | P83: 2023-01-05 | R83: H
A84: 7 | B84: 2023-01-04 | D84: TCS 3360 CE JAN | E84: Buy | F84: 48 | G84: 19 | H84: 58 | I84: 80-100 | J84: Profit of Rs.10/- | K84: =H84-F84 -> 10 | L84: 100.00 | M84: =(K84*N84)-L84 -> 1650.0 | N84: 175 | O84: Successful | P84: 2023-01-05 | R84: H
A85: 8 | B85: 2023-01-04 | D85: NIFTY 18100 CE 5-JAN | E85: Buy | F85: 51.5 | G85: 19 | H85: 71.5 | I85: 90-110 | J85: Profit of Rs.20/- | K85: =H85-F85 -> 20 | L85: 100.00 | M85: =(K85*N85)-L85 -> 900.0 | N85: 50 | O85: Successful | P85: 2023-01-04 | R85: H
A86: 9 | B86: 2023-01-05 | D86: TATACONSUM 780 CE JAN | E86: Buy | F86: 9.25 | G86: 4.5 | H86: 4.5 | I86: 15-17 | J86: Loss of Rs.4.75/- | K86: -4.75 | L86: 100.00 | M86: -4375.0 | N86: 900 | O86: Unsuccessful | P86: 2023-01-12 | R86: H
A87: 10 | B87: 2023-01-06 | D87: LT 2100 CE JAN | E87: Buy | F87: 42 | G87: 27 | H87: 49 | I87: 65-80 | J87: Profit of Rs.7/- | K87: =H87-F87 -> 7 | L87: 100.00 | M87: =(K87*N87)-L87 -> 2000.0 | N87: 300 | O87: Successful | P87: 2023-01-09 | R87: N
A88: 11 | B88: 2023-01-09 | D88: HDFC 2620 CE JAN | E88: Buy | F88: 45 | G88: 28 | H88: 28 | I88: 65-80 | J88: Loss of Rs.17/- | K88: -17 | L88: 100.00 | M88: -5200.0 | N88: 300 | O88: Unsuccessful | P88: 2023-01-10 | R88: N
A89: 12 | B89: 2023-01-10 | D89: UPL 750 CE JAN | E89: Buy | F89: 9 | G89: 5 | H89: 5 | I89: 14-18 | J89: Loss of Rs.4/- | K89: =H89-F89 -> -4 | L89: 100.00 | M89: =(K89*N89)-L89 -> -5300.0 | N89: 1300 | O89: Unsuccessful | P89: 2023-01-12 | R89: H
A90: 13 | B90: 2023-01-10 | D90: NIFTY 18100 CE 12-JAN | E90: Buy | F90: 61.5 | G90: 30 | H90: 30 | I90: 90-110 | J90: Loss of Rs.31.5/- | K90: =H90-F90 -> -31.5 | L90: 100.00 | M90: =(K90*N90)-L90 -> -1675.0 | N90: 50 | O90: Unsuccessful | P90: 2023-01-10 | R90: N
A91: 14 | B91: 2023-01-10 | D91: TCS 3300 CE JAN | E91: Buy | F91: 39 | G91: 14 | H91: 50.5 | I91: 70-90 | J91: Profit of Rs.11.5/- | K91: 11.5 | L91: 100.00 | M91: 1625.0 | N91: 150 | O91: Successful | P91: 2023-01-10 | R91: H
A92: 15 | B92: 2023-01-10 | D92: LT 2100 CE JAN | E92: Buy | F92: 38 | G92: 23 | H92: 47 | I92: 65-80 | J92: Profit of Rs.9/- | K92: =H92-F92 -> 9 | L92: 100.00 | M92: =(K92*N92)-L92 -> 2600.0 | N92: 300 | O92: Successful | P92: 2023-01-11 | R92: N
A93: 16 | B93: 2023-01-11 | D93: NIFTY 17900 PE 12-JAN | E93: Buy | F93: 47.5 | G93: 17 | H93: 70 | I93: 80-100 | J93: Profit of Rs.22.5/- | K93: =H93-F93 -> 22.5 | L93: 100.00 | M93: =(K93*N93)-L93 -> 1025.0 | N93: 50 | O93: Successful | P93: 2023-01-11 | R93: H
A94: 17 | B94: 2023-01-16 | D94: LT 2160 CE JAN | E94: Buy | F94: 21 | G94: 7 | H94: 29 | I94: 35-45 | J94: Profit of Rs.8/- | K94: 8 | L94: 100.00 | M94: 2300.0 | N94: 300 | O94: Successful | P94: 2023-01-17 | R94: N
A95: 18 | B95: 2023-01-17 | D95: SIEMENS 2980 CE JAN | E95: Buy | F95: 49 | H95: 66 | J95: Profit of Rs.11/- | K95: 17 | L95: 100.00 | M95: 4575.0 | N95: 275 | O95: Successful | P95: 2023-01-18 | R95: N
D96: SIEMENS 3040 CE JAN | E96: Sell | F96: 29 | H96: 35 | K96: =F96-H96 -> -6 | L96: 100.00 | M96: -1750.0 | N96: 275
A97: 19 | B97: 2023-01-18 | D97: ULTRACEMCO 7300 CE JAN | E97: Buy | F97: 102 | G97: 60 | H97: 128 | I97: 150-180 | J97: Profit of Rs.8/- | K97: =H97-F97 -> 26 | L97: 100.00 | M97: =(K97*N97)-L97 -> 2500.0 | N97: 100 | O97: Successful | P97: 2023-01-19 | R97: N
A98: 20 | B98: 2023-01-18 | D98: BHARTIARTL 780 CE JAN | E98: Buy | F98: 6.25 | G98: 2 | H98: 2 | I98: 11.00-14.00 | J98: Loss of Rs.4.25/- | K98: -4.25 | L98: 100.00 | M98: -4137.5 | N98: 950 | O98: Unsuccessful | P98: 2023-01-20 | R98: N
A99: 21 | B99: 2023-01-19 | D99: ULTRACEMCO 7200 CE JAN | E99: Buy | F99: 107 | G99: 65 | H99: 65 | I99: 150-180 | J99: Loss of Rs.42/- | K99: =H99-F99 -> -42 | L99: 100.00 | M99: =(K99*N99)-L99 -> -4300.0 | N99: 100 | O99: Unsuccessful | P99: 2023-01-20 | R99: N
A100: 22 | B100: 2023-01-23 | D100: NIFTY 18100 PE JAN | E100: Buy | F100: 59 | G100: 30 | H100: 61.5 | I100: 110-130 | J100: Profit of Rs.2.5/- | K100: 2.5 | L100: 100.00 | M100: 25.0 | N100: 50 | O100: Neutral | P100: 2023-01-23
A101: 23 | B101: 2023-01-24 | D101: NIFTY 18300 CE JAN | E101: Buy | F101: 100 | H101: 242.5 | J101: Profit of Rs.112/- | K101: =H101-F101 -> 142.5 | L101: 100.00 | M101: =K101*50 -> 7125.0 | N101: 50 | O101: Successful | P101: 2023-01-25
D102: NIFTY 18000 PE JAN | E102: Buy | F102: 78 | H102: 47.5 | K102: =H102-F102 -> -30.5 | L102: 100.00 | M102: =K102*50 -> -1525.0 | N102: 50
A103: 24 | B103: 2023-01-25 | D103: NIFTY 18100 CE JAN | E103: Buy | F103: 94-98 | J103: Open
D104: NIFTY 17700 PE JAN | E104: Buy | F104: 106-110
A105: 25 | B105: 2023-01-25 | D105: BEL 107 CE FEB | E105: Buy | F105: 0.90-1 | G105: 0.2 | I105: 2-2.50 | J105: Open
A106: 26 | B106: 2023-01-25 | D106: BANKNIFTY 41800 CE JAN | E106: Buy | F106: 95 | H106: 145 | I106: 250-300 | J106: Profit of Rs.50/- | K106: =H106-F106 -> 50 | L106: 100.00 | M106: =(K106*N106)-L106 -> 1150.0 | N106: 25 | O106: Successful | P106: 2023-01-25
A110: Techno -Funda (positional)
A111: Sr.no | B111: Date | D111: Company | E111: Rec | F111: Rec Price | G111: Stop Loss*** | H111: Call Closed At | I111: Target | J111: Remark | K111: Profit / Loss per Share/Lot | L111: All charges | M111: Net Gain / Loss % | N111: Status | O111: Closed Date | P111: Market Closing Price
A112: 1 | B112: 2022-10-06 | D112: HDFCBANK | E112: Buy | F112: 1405 | G112: 1240 | H112: 1700 | I112: 1700-1800 | J112: Profit of Rs.295/- | K112: =H112-F112 -> 295 | L112: =(F112*-0.7)/100 -> -9.84 | M112: =(K112+L112)/F112 -> 20.30% | N112: Successful | O112: 2023-01-24 | R112: H
A113: 2 | B113: 2022-10-06 | D113: AMBIKCO | E113: Buy | F113: 1420-1620 | G113: 1220 | I113: 2000-2300 | J113: Open | R113: H
A115: CLBS = Closing Basis *** | F115: Reinitiated $
A116: Dividend adjusted <> | F116: Revised stoploss # | H116: .................
B120: Investment Idea
A121: Sr.no | B121: Date | D121: Company | E121: Rec | F121: Rec Price | G121: Point of Review | H121: Close Rate | I121: Target | J121: Remark | K121: Profit / Loss per Share | L121: Gain / Loss % | M121: Status | N121: Closed Date
A122: 1 | B122: 2013-11-01 | D122: L&T Finance Holding | E122: Accu | F122: 82.00 | G122: - | H122: 100 | I122: 100.00 | J122: Target Achieved | K122: =H122-F122 -> 18.00 | L122: =K122/F122 -> 21.95% | M122: Successful | N122: 2016-10-14
A123: 2 | B123: 2014-06-04 | D123: Finolex Inds | E123: Buy | F123: 257.00 | G123: - | H123: 300 | I123: 300.00 | J123: Target Achieved | K123: 43.00 | L123: 16.73% | M123: Successful | N123: 2014-07-02
A124: 3 | B124: 2014-07-08 | D124: JK Cement | E124: Buy | F124: 393.00 | G124: - | H124: 468 | I124: 468.00 | J124: Target Achieved | K124: 75.00 | L124: 19.08% | M124: Successful | N124: 2014-08-12
A125: 4 | B125: 2014-08-06 | D125: Finolex Cables | E125: Buy | F125: 205.00 | G125: - | H125: 275 | I125: 250.00 | J125: Target Achieved | K125: 70.00 | L125: 34.15% | M125: Successful | N125: 2014-11-19
A126: 5 | B126: 2014-09-04 | D126: Exide Inds | E126: Buy | F126: 162.00 | G126: - | H126: 190 | I126: 190.00 | J126: Target Achieved | K126: 28.00 | L126: 17.28% | M126: Successful | N126: 2015-01-02
A127: 6 | B127: 2014-09-04 | D127: Deepak Nitrite | E127: Buy | F127: 75.00 | G127: - | H127: 91.5 | I127: 95-100 | J127: Profit of Rs.16.50/- | K127: 16.50 | L127: 22.00% | M127: Successful | N127: 2014-11-11
A128: 7 | B128: 2014-10-01 | D128: Mercks | E128: Buy | F128: 850.00 | G128: - | H128: 982.5 | I128: 1050.00 | J128: Profit of Rs.132.50/- | K128: 132.50 | L128: 15.59% | M128: Successful | N128: 2015-02-04
A129: 8 | B129: 2014-10-01 | D129: Grindwell Norton | E129: Buy | F129: 475.00 | G129: - | H129: 515 | I129: 600.00 | J129: Profit of Rs.40/- | K129: 40.00 | L129: 8.42% | M129: Successful | N129: 2014-10-27
A130: 9 | B130: 2014-10-01 | D130: Snowman Logistics | E130: Buy | F130: 86.00 | G130: - | H130: 99 | I130: 140.00 | J130: Profit of Rs.13.00/- | K130: 13.00 | L130: 15.12% | M130: Successful | N130: 2014-10-27
A131: 10 | B131: 2014-10-14 | D131: Birla Corp | E131: Buy | F131: 496.60 | G131: - | H131: 621 | I131: 580.00 | J131: Target Achieved | K131: 124.40 | L131: 25.05% | M131: Successful | N131: 2016-08-23
A132: 11 | B132: 2014-10-14 | D132: Ultratech Cem | E132: Buy | F132: 2481.90 | G132: - | H132: 2840 | I132: 2870.00 | J132: Profit of Rs.358.10/- | K132: 358.10 | L132: 14.43% | M132: Successful | N132: 2015-01-13
A133: 12 | B133: 2014-10-16 | D133: Sintex Inds | E133: Buy | F133: 84.50 | G133: - | H133: 93 | I133: 110.00 | J133: Profit of Rs.8.50/- | K133: 8.50 | L133: 10.06% | M133: Successful | N133: 2014-10-27
A134: 13 | B134: 2014-10-16 | D134: HSIL | E134: Buy | F134: 401.00 | G134: - | H134: 428 | I134: 450.00 | J134: Profit of Rs.27.00/- | K134: 27.00 | L134: 6.73% | M134: Successful | N134: 2015-01-16
A135: 14 | B135: 2014-10-16 | D135: Eveready Inds | E135: Buy | F135: 101.00 | G135: - | H135: 112 | I135: 120.00 | J135: Profit of Rs.11.00/- | K135: 11.00 | L135: 10.89% | M135: Successful | N135: 2014-10-27
A136: 15 | B136: 2014-11-11 | D136: Pennar Inds | E136: Buy | F136: 59.00 | G136: - | H136: 76 | I136: 76.00 | J136: Target Achieved | K136: 17.00 | L136: 28.81% | M136: Successful | N136: 2017-10-24
A137: 16 | B137: 2014-11-11 | D137: Snowman Logistics | E137: Buy | F137: 99.00 | G137: - | H137: 120 | I137: 120.00 | J137: Profit of Rs.21/- | K137: 21.00 | L137: 21.21% | M137: Successful | N137: 2014-11-17
A138: 17 | B138: 2014-11-13 | D138: Dharamsi Morarji Chem | E138: Buy | F138: 22.00 | G138: - | H138: 33.55 | I138: 32.00 | J138: Profit of Rs 11.55/- | K138: 11.55 | L138: 52.50% | M138: Successful | N138: 2015-07-03
A139: 18 | B139: 2014-12-03 | D139: Tatachem | E139: Buy | F139: 440.00 | G139: - | H139: 520 | I139: 520.00 | J139: Profit of Rs 80.00/- | K139: 80.00 | L139: 18.18% | M139: Successful | N139: 2015-07-23
A140: 19 | B140: 2014-12-03 | D140: Advanta | E140: Buy | F140: 360.00 | G140: - | H140: 427 | I140: 425.00 | J140: Profit of Rs.67.00/- | K140: 67.00 | L140: 18.61% | M140: Successful | N140: 2015-02-23
A141: 20 | B141: 2015-01-08 | D141: GDL | E141: Buy | F141: 360.00 | G141: - | H141: 455 | I141: 420.00 | J141: Profit of Rs.95.00/- | K141: 95.00 | L141: 26.39% | M141: Successful | N141: 2015-01-20
A142: 21 | B142: 2015-01-08 | D142: NRB Bearing | E142: Buy | F142: 130.00 | H142: 175.5 | I142: 165.00 | J142: Profit of Rs 45.50/- | K142: 45.50 | L142: 35.00% | M142: Successful | N142: 2017-12-19
A143: 22 | B143: 2015-02-05 | D143: GSFC | E143: Accu | F143: 98.00 | H143: 120 | I143: 120.00 | J143: Target Achieved | K143: 22.00 | L143: 22.45% | M143: Successful | N143: 2017-01-18
A144: 23 | B144: 2015-02-05 | D144: Sundrmfast | E144: Accu | F144: 196.00 | H144: 262 | I144: 255.00 | J144: Target Achieved | K144: 66.00 | L144: 33.67% | M144: Successful | N144: 2016-08-17
A145: 24 | B145: 2015-03-04 | D145: GPPL | E145: Accu | F145: 235 | H145: 77.00 | I145: 280-285 | J145: Loss of Rs.158/- | K145: -158.00 | L145: -67.23% | M145: Unsuccessful | N145: 2019-02-26
A146: 25 | B146: 2015-03-04 | D146: ORIENTCEM | E146: Accu | F146: 185.00 | H146: 224 | I146: 220-225 | J146: Target Achieved | K146: 39.00 | L146: 21.08% | M146: Successful | N146: 2016-10-04
A147: 26 | B147: 2015-03-27 | D147: PFS | E147: Accu | F147: 49.5 | H147: 15.85 | I147: 67.00 | J147: Loss of Rs.33.65/- | K147: -33.65 | L147: -68% | M147: Unsuccessful | N147: 2019-06-11
A148: 27 | B148: 2015-03-30 | D148: Walchandnagar Ind Ltd | E148: Accu | F148: 183.50 | H148: 219 | I148: 218.00 | J148: Profit of Rs.35.50/- | K148: 35.50 | L148: 19.35% | M148: Successful | N148: 2015-04-09
A149: 28 | B149: 2015-04-20 | D149: Kalpataru Power Transmission Ltd | E149: Accu | F149: =(227+237)/2 -> 232.00 | H149: 298 | I149: 298.00 | J149: Target Achieved | K149: 66.00 | L149: 28.45% | M149: Successful | N149: 2017-03-29
A150: 29 | B150: 2015-05-04 | D150: Mastek Ltd | E150: Buy | F150: 385.00 | H150: =212.5+331 -> 543.5 | I150: 510.00 | J150: Profit of Rs 158.50/- | K150: 158.50 | L150: 41.17% | M150: Successful | N150: 2015-08-19
A151: 30 | B151: 2015-05-04 | D151: Suprajit Eng | E151: Buy | F151: 115.50 | H151: 146 | I151: 142.00 | J151: Profit of Rs 30.50/- | K151: 30.50 | L151: 26.41% | M151: Successful | N151: 2015-07-17
A152: 31 | B152: 2015-05-27 | D152: TCI | E152: Buy | F152: 237.50 | H152: 279.5 | I152: 278.00 | J152: Target Achieved | K152: 42.00 | L152: 17.68% | M152: Successful | N152: 2015-08-06
A153: 32 | B153: 2015-06-19 | D153: HSIL | E153: Accu | F153: 340.00 | H153: 448 | I153: 448.00 | J153: Target Achieved | K153: 108.00 | L153: 31.76% | M153: Successful | N153: 2017-10-10
A154: 33 | B154: 2015-07-06 | D154: Capital First | E154: Accu | F154: 390.00 | H154: 460 | I154: 460.00 | J154: Target Achieved | K154: 70.00 | L154: 17.95% | M154: Successful | N154: 2016-04-18
A155: 34 | B155: 2015-07-10 | D155: Dolphin OffShore | E155: Accu | F155: 122.5 | H155: 61.00 | I155: 172.00 | J155: Loss of Rs.61.50/- | K155: -61.50 | L155: -50.20% | M155: Unsuccessful | N155: 2018-08-21
A156: 35 | B156: 2015-08-03 | D156: Allcargo logistics | E156: Accu | F156: 297.50 | H156: 350 | I156: 360.00 | J156: Profit of Rs 52.50/- | K156: 52.50 | L156: 17.65% | M156: Successful | N156: 2015-08-16
A157: 36 | B157: 2015-08-03 | D157: Camline Fine | E157: Accu | F157: 115.50 | H157: 149 | I157: 140.00 | J157: Profit of Rs 33.50/- | K157: 33.50 | L157: 29.00% | M157: Successful | N157: 2017-01-05
A158: 37 | B158: 2015-09-04 | D158: TCI | E158: Accu | F158: 226.00 | H158: 292 | I158: 292.00 | J158: Target Achieved | K158: 66.00 | L158: 29.20% | M158: Successful | N158: 2015-10-09
A159: 38 | B159: 2015-09-07 | D159: Kalpataru Power Transmission Ltd | E159: Accu | F159: 232.50 | H159: 312.5 | I159: 310.00 | J159: Target Achieved | K159: 80.00 | L159: 34.41% | M159: Successful | N159: 2017-03-29
A160: 39 | B160: 2015-09-21 | D160: LLOYD ELECTRIC & ENG LTD | E160: Accu | F160: 196.50 | H160: 238 | I160: 238.00 | J160: Target Achieved | K160: 41.50 | L160: 21.12% | M160: Successful | N160: 2015-10-14
A161: 40 | B161: 2015-09-24 | D161: L&T Finance Holding | E161: Accu | F161: 65.00 | H161: 82 | I161: 82.00 | J161: Target Achieved | K161: 17.00 | L161: 26.15% | M161: Successful | N161: 2016-07-27
A162: 41 | B162: 2015-10-14 | D162: KEC International ltd | E162: Accu | F162: 144.00 | H162: 182.5 | I162: 181.00 | J162: Target Achieved | K162: 38.50 | L162: 26.74% | M162: Successful | N162: 2017-03-23
A163: 42 | B163: 2015-10-14 | D163: Gruh Finance | E163: Accu | F163: 264.00 | H163: 311 | I163: 311.00 | J163: Target Achieved | K163: 47.00 | L163: 17.80% | M163: Successful | N163: 2016-08-22
A164: 43 | B164: 2015-11-10 | D164: Pidilitind | E164: Buy | F164: 549.50 | H164: 630 | I164: 630.00 | J164: Target Achieved | K164: 80.50 | L164: 14.65% | M164: Successful | N164: 2016-02-19
A165: 44 | B165: 2015-12-04 | D165: Zensar Technology | E165: Accu | F165: 1027.50 | H165: 1315 | I165: 1250.00 | J165: Target Achieved | K165: 287.50 | L165: 27.98% | M165: Successful | N165: 2018-05-24
A166: 45 | B166: 2015-12-29 | D166: Vinati Organics Ltd | E166: Accu | F166: 465.00 | H166: 540 | I166: 540.00 | J166: Target Achieved | K166: 75.00 | L166: 16.13% | M166: Successful | N166: 2016-06-09
A167: 46 | B167: 2016-01-11 | D167: GSFC | E167: Buy | F167: 81.00 | H167: 110 | I167: 110.00 | J167: Target Achieved | K167: 29.00 | L167: 35.80% | M167: Successful | N167: 2017-01-10
A168: 47 | B168: 2016-01-13 | D168: SSWL | E168: Buy | F168: 417.50 | H168: 547 | I168: 535.00 | J168: Target Achieved | K168: 129.50 | L168: 31.02% | M168: Successful | N168: 2016-07-27
A169: 48 | B169: 2016-02-08 | D169: Persistent System Ltd | E169: Accu | F169: 650.00 | H169: 800 | I169: 800.00 | J169: Target Achieved | K169: 150.00 | L169: 23.08% | M169: Successful | N169: 2018-02-23
A170: 49 | B170: 2016-03-04 | D170: UPL | E170: Accu | F170: 437.50 | H170: 504.5 | I170: 522.00 | J170: Profit of Rs.67/- | K170: 67.00 | L170: 15.31% | M170: Successful | N170: 2016-04-20
A171: 50 | B171: 2016-03-09 | D171: Ashoka Buildcon Ltd | E171: Accu | F171: 189.50 | H171: 218 | I171: 218.00 | J171: Target Achieved | K171: 28.50 | L171: 15.04% | M171: Successful | N171: 2017-10-26
A172: 51 | B172: 2016-04-11 | D172: PTC INDIA FIN SERV LTD | E172: Accu | F172: 36.5 | H172: 15.85 | I172: 60.00 | J172: Loss of Rs.20.65/- | K172: -20.65 | L172: -56.58% | M172: Unsuccessful | N172: 2019-06-11
A173: 52 | B173: 2016-04-12 | D173: CAMLINFINE $ | E173: Accu | F173: 93.00 | H173: 149 | I173: 140.00 | J173: Profit of Rs 56/- | K173: 56.00 | L173: 60.22% | M173: Successful | N173: 2017-01-05
A174: 53 | B174: 2016-04-12 | D174: Greaves Cotton Ltd. | E174: Accu | F174: 130.00 | H174: 150 | I174: 150-155 | J174: Target Achieved | K174: 20.00 | L174: 15.38% | M174: Successful | N174: 2016-07-13
A175: 54 | B175: 2016-04-13 | D175: DHFL | E175: Accu | F175: 196.00 | H175: 299 | I175: 299.00 | J175: Target Achieved | K175: 103.00 | L175: 52.55% | M175: Successful | N175: 2016-09-07
A176: 55 | B176: 2016-04-13 | D176: Magma | E176: Accu | F176: 88.00 | H176: 103 | I176: 103.00 | J176: Target Achieved | K176: 15.00 | L176: 17.05% | M176: Successful | N176: 2016-06-09
A177: 56 | B177: 2016-05-02 | D177: KEC International ltd $ | E177: Accu | F177: 127.50 | H177: 148 | I177: 148-150 | J177: Target Achieved | K177: =H177-F177 -> 20.50 | L177: =K177/F177 -> 16.08% | M177: Successful | N177: 2016-07-13
A178: 57 | B178: 2016-05-03 | D178: Mindtree | E178: Accu | F178: 675.00 | H178: 815 | I178: 790-800 | J178: Target Achieved | K178: =H178-F178 -> 140.00 | L178: =K178/F178 -> 20.74% | M178: Successful | N178: 2018-02-23
A179: 58 | B179: 2016-06-01 | D179: Atulauto | E179: Accu | F179: 500 | H179: 232.50 | I179: 565-570 | J179: Loss of Rs.267.50 /- | K179: =H179-F179 -> -267.50 | L179: =K179/F179 -> -53.50% | M179: Unsuccessful | N179: 2019-09-27
A180: 59 | B180: 2016-06-06 | D180: TRITURBINE | E180: Accu | F180: 110.00 | H180: 126.5 | I180: 125.00 | J180: Profit of Rs.16.50/- | K180: =H180-F180 -> 16.50 | L180: =K180/F180 -> 15.00% | M180: Successful | N180: 2016-07-01
A181: 60 | B181: 2016-06-17 | D181: Pennar Industries Ltd | E181: Accu | F181: 44.00 | H181: 69.5 | I181: 69.50 | J181: Profit of Rs.25.50/- | K181: =H181-F181 -> 25.50 | L181: =K181/F181 -> 57.95% | M181: Successful | N181: 2017-08-30
A182: 61 | B182: 2016-06-28 | D182: EVEREADY | E182: Accu | F182: 262.50 | H182: 340 | I182: 333.00 | J182: Profit of Rs.77.50/- | K182: 77.50 | L182: 29.52% | M182: Successful | N182: 2017-10-09
A183: 62 | B183: 2016-06-28 | D183: FIEMIND | E183: Accu | F183: 840.00 | H183: 1230 | I183: 1230.00 | J183: Target Achieved | K183: 390.00 | L183: 46.43% | M183: Successful | N183: 2016-10-06
A184: 63 | B184: 2016-07-05 | D184: Bajaj Corp Ltd | E184: Accu | F184: 395 | H184: =(468.5+342.5)/2 -> 405.50 | I184: 510.00 | J184: Profit of Rs.10.50/- | K184: =H184-F184 -> 10.50 | L184: =K184/F184 -> 3% | M184: Neutral | N184: 2019-05-21
A185: 64 | B185: 2016-08-02 | D185: GPPL $ | E185: Buy | F185: =169.5-12.8 -> 156.7 | H185: 77.00 | I185: 198-200 | J185: Loss of Rs.79.7/- | K185: -79.70 | L185: -50.86% | M185: Unsuccessful | N185: 2019-02-26
A186: 65 | B186: 2016-08-04 | D186: WONDERLA HOLIDAYS LTD | E186: Accu | F186: 400 | H186: 305.00 | I186: 475.00 | J186: Loss of Rs.95/- | K186: -95.00 | L186: -23.75% | M186: Unsuccessful | N186: 2019-05-21
A187: 66 | B187: 2016-08-11 | D187: CAMLINFINE | E187: Accu | F187: 86.50 | H187: 130 | I187: 130.00 | J187: Profit of Rs.43.50/- | K187: 43.50 | L187: 50.29% | M187: Successful | N187: 2017-12-22
A188: 67 | B188: 2016-08-18 | D188: GRANULES | E188: Accu | F188: 133.5 | H188: 126.50 | I188: 178.00 | J188: Exit | K188: -7.00 | L188: -5.24% | M188: Unsuccessful | N188: 2016-09-02
A189: 68 | B189: 2016-08-31 | D189: VA TECH WABAG | E189: Accu | F189: 560.00 | H189: 725 | I189: 725.00 | J189: Target Achieved | K189: 165.00 | L189: 29.46% | M189: Successful | N189: 2016-03-27
A190: 69 | B190: 2016-09-01 | D190: SKIPPER LIMITED | E190: Accu | F190: 160.50 | H190: 210 | I190: 210.00 | J190: Target Achieved | K190: 49.50 | L190: 30.84% | M190: Successful | N190: 2017-05-16
A191: 70 | B191: 2016-10-03 | D191: IFBIND | E191: Accu | F191: 430.00 | H191: 596 | I191: 575.00 | J191: Profit of Rs.166/- | K191: 166.00 | L191: 38.60% | M191: Successful | N191: 2017-02-03
A192: 71 | B192: 2016-10-14 | D192: ASIANTILES | E192: Accu | F192: 280.00 | H192: 345 | I192: 345.00 | J192: Target Achieved | K192: =H192-F192 -> 65.00 | L192: =K192/F192 -> 23.21% | M192: Successful | N192: 2017-03-20
A193: 72 | B193: 2016-10-14 | D193: DEEPIND | E193: Accu | F193: 245.00 | H193: 325.5 | I193: 330.00 | J193: Profit of Rs.80.5/- | K193: 80.50 | L193: =K193/F193 -> 32.86% | M193: Successful | N193: 2017-02-03
A194: 73 | B194: 2016-10-17 | D194: DCBBANK | E194: Accu | F194: 125.00 | H194: 160 | I194: 160.00 | J194: Target Achieved | K194: 35.00 | L194: 28.00% | M194: Successful | N194: 2017-03-09
A195: 74 | B195: 2016-10-17 | D195: ORIENTREF | E195: Accu | F195: 114.00 | H195: 145 | I195: 145.00 | J195: Target Achieved | K195: 31.00 | L195: =K195/F195 -> 27.19% | M195: Successful | N195: 2017-05-04
A196: 75 | B196: 2016-10-17 | D196: GANECOS | E196: Accu | F196: 212.00 | H196: 280 | I196: 276.00 | J196: Profit of Rs.68/- | K196: 68.00 | L196: =K196/F196 -> 32.08% | M196: Successful | N196: 2017-05-03
A197: 76 | B197: 2016-11-04 | D197: NBCC | E197: Accu | F197: 155.00 | H197: 210 | I197: 210.00 | J197: Profit of Rs.55/- | K197: 55.00 | L197: =K197/F197 -> 35.48% | M197: Successful | N197: 2017-07-28
A198: 77 | B198: 2016-12-06 | D198: PRECAM | E198: Accu | F198: 150.5 | H198: 72.50 | I198: 174.00 | J198: Loss of Rs.78/- | K198: -78.00 | L198: -51.83% | M198: Unsuccessful | N198: 2018-08-21
A199: 78 | B199: 2016-12-08 | D199: INFRATEL | E199: Accu | F199: 380.00 | H199: 478 | I199: 468.00 | J199: Target Achieved | K199: =H199-F199 -> 98.00 | L199: =K199/F199 -> 25.79% | M199: Successful | N199: 2017-10-17
A200: 79 | B200: 2016-12-30 | D200: GODREJPROP | E200: Accu | F200: 305.00 | H200: 375 | I200: 375.00 | J200: Target Achieved | K200: =H200-F200 -> 70.00 | L200: =K200/F200 -> 22.95% | M200: Successful | N200: 2017-02-02
A201: 80 | B201: 2017-01-04 | D201: DEEPAKNTR | E201: Accu | F201: 99.50 | H201: 158 | I201: 158.00 | J201: Target Achieved | K201: =H201-F201 -> 58.50 | L201: =K201/F201 -> 58.79% | M201: Successful | N201: 2017-06-12
A202: 81 | B202: 2017-01-04 | D202: DEEPAKNTR | E202: Accu | F202: 99.50 | H202: 158 | I202: 158.00 | J202: Target Achieved | K202: 58.50 | L202: 58.79% | M202: Successful | N202: 2017-06-12
A203: 82 | B203: 2017-02-20 | D203: RECLTD | E203: Accu | F203: 140.50 | H203: 220 | I203: 220.00 | J203: Target Achieved | K203: =H203-F203 -> 79.50 | L203: =K203/F203 -> 56.58% | M203: Successful | N203: 2017-05-09
A204: 83 | B204: 2017-02-20 | D204: SUBROS | E204: Accu | F204: 202.50 | H204: 234 | I204: 234.00 | J204: Target Achieved | K204: 31.50 | L204: 15.56% | M204: Successful | N204: 2017-04-11
A205: 84 | B205: 2017-03-24 | D205: VRLLOG | E205: Accu | F205: 300.50 | H205: 417.5 | I205: 420.00 | J205: Profit of Rs.117/- | K205: =H205-F205 -> 117.00 | L205: =K205/F205 -> 38.94% | M205: Successful | N205: 2017-12-01
A206: 85 | B206: 2017-03-24 | D206: FIEMIND | E206: Accu | F206: 850.00 | H206: 1042.5 | I206: 1023.00 | J206: Profit of Rs 192.50/- | K206: 192.50 | L206: 22.65% | M206: Successful | N206: 2017-04-05
A207: 86 | B207: 2017-04-05 | D207: RATNAMANI | E207: Accu | F207: 785.00 | H207: 930 | I207: 920.00 | J207: Profit of Rs.145/- | K207: =H207-F207 -> 145.00 | L207: =K207/F207 -> 18.47% | M207: Successful | N207: 2017-08-29
A208: 87 | B208: 2017-04-06 | D208: ZEEMEDIA | E208: Accu | F208: 40 | H208: 13.10 | I208: 60.00 | J208: Loss of Rs.26.9/- | K208: -26.90 | L208: -67.25% | M208: Unsuccessful | N208: 2018-02-07
A209: 88 | B209: 2017-04-12 | D209: DABUR | E209: Accu | F209: 289.50 | H209: 354 | I209: 360.00 | J209: Profit of Rs.64.5/- | K209: =H209-F209 -> 64.50 | L209: =K209/F209 -> 22.28% | M209: Successful | N209: 2017-11-01
A210: 89 | B210: 2017-04-20 | D210: KPRMILL | E210: Accu | F210: 700.00 | H210: 840 | I210: 840.00 | J210: Profit of Rs.140/- | K210: 140.00 | L210: 20.00% | M210: Successful | N210: 2017-06-07
A211: 90 | B211: 2017-06-01 | D211: ESSELPACK | E211: Accu | F211: 130.00 | H211: 144.25 | I211: 170.00 | J211: Profit of Rs.14.25/- | K211: 14.25 | L211: 10.96% | M211: Successful | N211: 2019-07-29
A212: 91 | B212: 2017-06-15 | D212: KEI | E212: Accu | F212: 214.50 | H212: 262 | I212: 262.00 | J212: Profit of Rs.47.5/- | K212: 47.50 | L212: 22.14% | M212: Successful | N212: 2017-08-30
A213: 92 | B213: 2017-07-17 | D213: MAYURUNIQ | E213: Accu | F213: 370.00 | H213: 447.5 | I213: 450.00 | J213: Target Achieved | K213: 77.50 | L213: 20.95% | M213: Successful | N213: 2017-10-27
A214: 93 | B214: 2017-07-27 | D214: RAMCOCEM | E214: Accu | F214: 657.50 | H214: 825 | I214: 820.00 | J214: Target Achieved | K214: 167.50 | L214: 25.48% | M214: Successful | N214: 2017-12-21
A215: 94 | B215: 2017-08-17 | D215: FINPIPE | E215: Accu | F215: 605.00 | H215: 750 | I215: 750.00 | J215: Profit of Rs.145/- | K215: 145.00 | L215: 23.97% | M215: Successful | N215: 2017-10-19
A216: 95 | B216: 2017-09-01 | D216: SHK | E216: Accu | F216: 255 | H216: 217.25 | I216: 320.00 | J216: Loss of Rs.37.75/- | K216: -37.75 | L216: -15% | M216: Unsuccessful | N216: 2019-07-15
A217: 96 | B217: 2017-09-19 | D217: SKIPPER | E217: Accu | F217: 215.00 | H217: 258 | I217: 258.00 | J217: Target Achieved | K217: 43.00 | L217: 20.00% | M217: Successful | N217: 2017-11-01
A218: 97 | B218: 2017-09-19 | D218: SKIPPER | E218: Accu | F218: 215.00 | H218: 258 | I218: 258.00 | J218: Target Achieved | K218: 43.00 | L218: 20.00% | M218: Successful | N218: 2017-11-01
A219: 98 | B219: 2017-09-20 | D219: CAMLINFINE$ | E219: Accu | F219: 75.00 | H219: 90 | I219: 90.00 | J219: Profit of Rs.15.00/- | K219: =H219-F219 -> 15.00 | L219: =K219/F219 -> 20.00% | M219: Successful | N219: 2017-10-11
A220: 99 | B220: 2017-10-03 | D220: GNA | E220: Accu | F220: 315.00 | H220: 392 | I220: 384.00 | J220: Profit of Rs.77/- | K220: 77.00 | L220: 24.44% | M220: Successful | N220: 2017-10-09
A221: 100 | B221: 2017-10-05 | D221: NOCIL | E221: Accu | F221: 145.00 | H221: 179 | I221: 180.00 | J221: Profit of Rs.34/- | K221: 34.00 | L221: 23.45% | M221: Successful | N221: 2017-10-17
A222: 101 | B222: 2017-10-06 | D222: CENTURYPLY | E222: Accu | F222: 256.00 | H222: 323 | I222: 320.00 | J222: Target Achieved | K222: 67.00 | L222: 26.17% | M222: Successful | N222: 2017-11-28
A223: 102 | B223: 2017-10-09 | D223: EIHOTEL | E223: Accu | F223: 137.50 | H223: 184 | I223: 183.00 | J223: Profit of Rs.46.5/- | K223: 46.50 | L223: 33.82% | M223: Successful | N223: 2018-01-08
A224: 103 | B224: 2017-10-10 | D224: NRBBEARING | E224: Accu | F224: 125.50 | H224: 158 | I224: 155.00 | J224: Profit of Rs.32.5/- | K224: 32.50 | L224: 25.90% | M224: Successful | N224: 2017-11-28
... 79 more rows
